Workbook

Sheet 00. MENU
B6: CONCESSÃO DE TRANSPORTE COLETIVO DE PONTA GROSSA
B7: 01. PC
B8: Painel de controle das principais variáveis do modelo. Nesta aba é possível alterar variáveis como prazo do projeto, NIG, WACC, VPL e etc. Além de alterar as premissas, é possível ver os principais outputs do modelo.
B9: 02. FCL
B10: Apresenta o Fluxo de Caixa Livre do Projeto. O resultado obtido pode ser alterado a depender do que é selecionado no Painel de Controle.
B11: 03. D&A
B12: Calcula a depreciação e amortização fiscais dos ativos.
B13: 04. NIG
B14: Calcula a necessidade de investimento no giro.
B15: 05. CAPEX
B16: Detalhamento dos valores de CAPEX na compra e venda dos veículos da frota.
B17: 06. OPEX
B18: Aba de entrada dos inputs relacionados à operação. Utilizada para inserir os valores na moeda de referência dos preços.
B19: 07. (a)TRIBUTOS LREAL
B20: Calcula os tributos do regime fiscal de Lucro Real para cada ano para o FCL do Projeto.
B21: 07. (b)TRIBUTOS LPRESUMID
B22: Calcula os tributos do regime fiscal de Lucro Presumido para cada ano para o FCL do Projeto.
B23: 08. RECEITA E DEMANDA
B24: Calcula a previsão de receita com base na tarifa e perspectiva de demanda de passageiros
B25: 09. SENSIBILIDADE
B26: Calcula o impacto nos principais indicadores do Projeto, quando da variação da Receita, OPEX, CAPEX e encargos.
B27: 10. ÍNDICES
B28: Relação de índices econômicos publicados.
B29: 11. WACC
B30: Cálculo do custo médio ponderado de capital (WACC).
B32: Padrão de formatação utilizado - Legenda
B33: Células com fundo amarelo e fonte azul | F33: Inputs (Podem ser alteradas)
B34: Células com fonte verde | F34: Células que têm origem em outra aba (Não alterar)
B35: Células com fonte preta | F35: Fórmulas (Não alterar)

Sheet 01. PC
Q3: sim | R3: não
Q4: sim | R4: não
Q5: sim | R5: não
Q6: sim | R6: não
B8: Premissas | C8: Valor
B10: WACC - % a.a. | C10: ='11. WACC '!C27 -> 0.08411311767
B12: TIR de Projeto - Real | C12: ='02. FCL'!C41 -> 0.08410173317
B14: VPL - R$ Milhões | C14: ='02. FCL'!C42 -> 0
B16: NIG - meses | C16: 0
B18: Prazo - em anos | C18: 10
B20: Tarifa remuneração | C20: 3.527216481
B22: Passageiros Equivalentes por ano | C22: 200000
B24: Tipo de Ônibus | C24: Básico
B26: Idade | C26: 15
B28: Correção OPEX | F28: Regra para correção OPEX
B30: Combustível | C30: IPCA | F30: IGP-M
B31: Lubrificante Diesel | C31: IPCA | F31: IGP-M
B32: Arla 32 | C32: IPCA | F32: IGP-M
B33: Rodagem | C33: IPCA | F33: IGP-M
B34: Peças e Materiais de Manutenção | C34: IPCA | F34: IPCA
B35: Motoristas - Direção | C35: IPCA | F35: IPCA
B36: Motoristas - Cobrança | C36: IPCA | F36: IPCA
B37: Cobradores | C37: IPCA | F37: IPCA
B38: Benefícios Trabalhistas | C38: IPCA | F38: IPCA
B39: Operação da Frota Auxiliar (Serviços) | C39: IPCA | F39: IPCA
B40: Operac. e Manut. Infra Garagem | C40: IPCA | F40: IPCA
B41: Operação de ITS | C41: IPCA | F41: IPCA
B42: Operação de Bilhetagem | C42: IPCA | F42: IPCA
B43: Fiscalização | C43: IPCA | F43: IPCA
B44: Mão de Obra Manutenção, Adm. e Diretoria | C44: IPCA | F44: IPCA
B45: Despesas Administrativas Gerais | C45: IPCA | F45: IPCA
B46: Locação de Infraestrutura Garagem | C46: IPCA | F46: INCC-M
B47: Manutenção de Infraestrutura | C47: IPCA | F47: INCC-M
B48: Despesas Ambientais | C48: IPCA | F48: IPCA
B49: Garantias Contratuais | C49: IPCA | F49: IPCA
B50: Manutenção Infra Elétrica | C50: IPCA | F50: IPCA
B51: Seguro e Licenciamento | C51: IPCA | F51: IPCA
B52: Reposição de Baterias | C52: IPCA
B53: Operação ITS/SBE Embarcado | C53: IPCA
B55: Correção CAPEX
B57: Frota | C57: IPCA
B59: Correção Contrato (Receita)
B61: Receita | C61: IPCA
B63: Premissas Marcoeconômicas | C63: 1 | D63: =C63+1 -> 2 | E63: =D63+1 -> 3 | F63: 4 | G63: 5 | H63: 6 | I63: 7 | J63: 8 | K63: 9 | L63: 10 | M63: 11 | N63: 12 | O63: 13 | P63: 14 | Q63: 15 | R63: 16 | S63: 17 | T63: 18 | U63: 19 | V63: 20 | W63: 21 | X63: 22 | Y63: 23 | Z63: 24 | AA63: 25
B65: Projeção de Inflação anual | C65: 0.05 | D65: =$C$65 -> 0.05 | E65: =$C$65 -> 0.05 | F65: 0.05 | G65: 0.05 | H65: 0.05 | I65: 0.05 | J65: 0.05 | K65: 0.05 | L65: 0.05 | M65: 0.05 | N65: 0.05 | O65: 0.05 | P65: 0.05 | Q65: 0.05 | R65: 0.05 | S65: 0.05 | T65: 0.05 | U65: 0.05 | V65: 0.05 | W65: 0.05 | X65: 0.05 | Y65: 0.05 | Z65: 0.05 | AA65: 0.05
B66: Fonte: BACEN
B69: Idosos <65
B71: % de perda

Sheet 02. FCL
B6: Fluxo de Caixa Livre (R$ Milhões)
B8: PRAZO | C8: =IF(C10<=('01. PC'!$C$18),1,0) -> 1 | D8: =IF(D10<=('01. PC'!$C$18),1,0) -> 1 | E8: =IF(E10<=('01. PC'!$C$18),1,0) -> 1 | F8: =IF(F10<=('01. PC'!$C$18),1,0) -> 1 | G8: =IF(G10<=('01. PC'!$C$18),1,0) -> 1 | H8: =IF(H10<=('01. PC'!$C$18),1,0) -> 1 | I8: =IF(I10<=('01. PC'!$C$18),1,0) -> 1 | J8: =IF(J10<=('01. PC'!$C$18),1,0) -> 1 | K8: =IF(K10<=('01. PC'!$C$18),1,0) -> 1 | L8: =IF(L10<=('01. PC'!$C$18),1,0) -> 1
B10: ANO | C10: 1 | D10: =C10+1 -> 2 | E10: =D10+1 -> 3 | F10: 4 | G10: 5 | H10: 6 | I10: 7 | J10: 8 | K10: 9 | L10: 10 | N10: TOTAL | P10: VPL
B12: Receitas | C12: =(C14)*C$8 -> 0.7054432962 | D12: =(D14)*D$8 -> 0.7054432962 | E12: 0.7054432962 | F12: 0.7054432962 | G12: 0.7054432962 | H12: 0.7054432962 | I12: 0.7054432962 | J12: 0.7054432962 | K12: 0.7054432962 | L12: 0.7054432962 | N12: =SUM(C12:L12) -> 7.054432962 | P12: =NPV('01. PC'!$C$10,'02. FCL'!D12:L12)+'02. FCL'!C12 -> 5.037880064
B14: Receita Tarifária | C14: =('08. RECEITA E DEMANDA'!C14)*C8 -> 0.7054432962 | D14: =('08. RECEITA E DEMANDA'!D14)*D8 -> 0.7054432962 | E14: =('08. RECEITA E DEMANDA'!E14)*E8 -> 0.7054432962 | F14: =('08. RECEITA E DEMANDA'!F14)*F8 -> 0.7054432962 | G14: =('08. RECEITA E DEMANDA'!G14)*G8 -> 0.7054432962 | H14: =('08. RECEITA E DEMANDA'!H14)*H8 -> 0.7054432962 | I14: =('08. RECEITA E DEMANDA'!I14)*I8 -> 0.7054432962 | J14: =('08. RECEITA E DEMANDA'!J14)*J8 -> 0.7054432962 | K14: =('08. RECEITA E DEMANDA'!K14)*K8 -> 0.7054432962 | L14: =('08. RECEITA E DEMANDA'!L14)*L8 -> 0.7054432962 | N14: =SUM(C14:L14) -> 7.054432962 | P14: =NPV('01. PC'!$C$10,'02. FCL'!D14:L14)+'02. FCL'!C14 -> 5.037880064
B16: Opex | C16: =-(C18+C19)*C$8 -> -0.6021173705 | D16: =-(D18+D19)*D$8 -> -0.6021173705 | E16: -0.6021173705 | F16: -0.6021173705 | G16: -0.6021173705 | H16: -0.6021173705 | I16: -0.6021173705 | J16: -0.6021173705 | K16: -0.6021173705 | L16: -0.6021173705 | N16: =SUM(C16:L16) -> -6.021173705 | P16: =NPV('01. PC'!$C$10,'02. FCL'!D16:L16)+'02. FCL'!C16 -> -4.299984298
B18: Custos Variaveis | C18: =('06. OPEX'!C10)*C$8 -> 0.4608030262 | D18: =('06. OPEX'!D10)*D$8 -> 0.4608030262 | E18: =('06. OPEX'!E10)*E$8 -> 0.4608030262 | F18: =('06. OPEX'!F10)*F$8 -> 0.4608030262 | G18: =('06. OPEX'!G10)*G$8 -> 0.4608030262 | H18: =('06. OPEX'!H10)*H$8 -> 0.4608030262 | I18: =('06. OPEX'!I10)*I$8 -> 0.4608030262 | J18: =('06. OPEX'!J10)*J$8 -> 0.4608030262 | K18: =('06. OPEX'!K10)*K$8 -> 0.4608030262 | L18: =('06. OPEX'!L10)*L$8 -> 0.4608030262 | N18: =SUM(C18:L18) -> 4.608030262 | P18: =NPV('01. PC'!$C$10,'02. FCL'!D18:L18)+'02. FCL'!C18 -> 3.290796569
B19: Custos Fixos | C19: =('06. OPEX'!C67)*C$8 -> 0.1413143443 | D19: =('06. OPEX'!D67)*D$8 -> 0.1413143443 | E19: =('06. OPEX'!E67)*E$8 -> 0.1413143443 | F19: =('06. OPEX'!F67)*F$8 -> 0.1413143443 | G19: =('06. OPEX'!G67)*G$8 -> 0.1413143443 | H19: =('06. OPEX'!H67)*H$8 -> 0.1413143443 | I19: =('06. OPEX'!I67)*I$8 -> 0.1413143443 | J19: =('06. OPEX'!J67)*J$8 -> 0.1413143443 | K19: =('06. OPEX'!K67)*K$8 -> 0.1413143443 | L19: =('06. OPEX'!L67)*L$8 -> 0.1413143443 | N19: =SUM(C19:L19) -> 1.413143443 | P19: =NPV('01. PC'!$C$10,'02. FCL'!D19:L19)+'02. FCL'!C19 -> 1.009187729
B21: Capex | C21: =-(C23+C24)*C$8 -> -0.508371 | D21: =-(D23+D24)*D$8 -> 0 | E21: 0 | F21: 0 | G21: 0 | H21: 0 | I21: 0 | J21: 0 | K21: 0 | L21: 0 | N21: =SUM(C21:L21) -> -0.508371 | P21: =NPV('01. PC'!$C$10,'02. FCL'!D21:L21)+'02. FCL'!C21 -> -0.508371
B23: Compra de Frota | C23: =('05. CAPEX'!D87)*C8 -> 0.508371 | D23: =('05. CAPEX'!E87)*D8 -> 0 | E23: =('05. CAPEX'!F87)*E8 -> 0 | F23: =('05. CAPEX'!G87)*F8 -> 0 | G23: =('05. CAPEX'!H87)*G8 -> 0 | H23: =('05. CAPEX'!I87)*H8 -> 0 | I23: =('05. CAPEX'!J87)*I8 -> 0 | J23: =('05. CAPEX'!K87)*J8 -> 0 | K23: =('05. CAPEX'!L87)*K8 -> 0 | L23: =('05. CAPEX'!M87)*L8 -> 0 | N23: =SUM(C23:L23) -> 0.508371 | P23: =NPV('01. PC'!$C$10,'02. FCL'!D23:L23)+'02. FCL'!C23 -> 0.508371
B24: Carregadores e Placas | C24: ='05. CAPEX'!AF25/10^6 -> 0 | D24: 0 | E24: 0 | F24: 0 | G24: 0 | H24: 0 | I24: 0 | J24: 0 | K24: 0 | L24: 0
B26: Tributos | C26: =-(C28+C29+C30+C31)*C$8 -> -0.02116329889 | D26: =-(D28+D29+D30+D31)*D$8 -> -0.02116329889 | E26: -0.02116329889 | F26: -0.02116329889 | G26: -0.04071800408 | H26: -0.04071800408 | I26: -0.04071800408 | J26: -0.04071800408 | K26: -0.04889215535 | L26: -0.04909859203 | N26: =SUM(C26:L26) -> -0.3455159593 | P26: =NPV('01. PC'!$C$10,'02. FCL'!D26:L26)+'02. FCL'!C26 -> -0.2295430801
B28: ISS | C28: ='07. (a)TRIBUTOS LREAL'!C16 -> 0.02116329889 | D28: ='07. (a)TRIBUTOS LREAL'!D16 -> 0.02116329889 | E28: ='07. (a)TRIBUTOS LREAL'!E16 -> 0.02116329889 | F28: ='07. (a)TRIBUTOS LREAL'!F16 -> 0.02116329889 | G28: ='07. (a)TRIBUTOS LREAL'!G16 -> 0.02116329889 | H28: ='07. (a)TRIBUTOS LREAL'!H16 -> 0.02116329889 | I28: ='07. (a)TRIBUTOS LREAL'!I16 -> 0.02116329889 | J28: ='07. (a)TRIBUTOS LREAL'!J16 -> 0.02116329889 | K28: ='07. (a)TRIBUTOS LREAL'!K16 -> 0.02116329889 | L28: ='07. (a)TRIBUTOS LREAL'!L16 -> 0.02116329889 | N28: =SUM(C28:L28) -> 0.2116329889 | P28: =NPV('01. PC'!$C$10,'02. FCL'!D28:L28)+'02. FCL'!C28 -> 0.1511364019
B29: INSS | C29: ='07. (a)TRIBUTOS LREAL'!C21 -> 0 | D29: ='07. (a)TRIBUTOS LREAL'!D21 -> 0 | E29: ='07. (a)TRIBUTOS LREAL'!E21 -> 0 | F29: ='07. (a)TRIBUTOS LREAL'!F21 -> 0 | G29: ='07. (a)TRIBUTOS LREAL'!G21 -> 0 | H29: ='07. (a)TRIBUTOS LREAL'!H21 -> 0 | I29: ='07. (a)TRIBUTOS LREAL'!I21 -> 0 | J29: ='07. (a)TRIBUTOS LREAL'!J21 -> 0 | K29: ='07. (a)TRIBUTOS LREAL'!K21 -> 0 | L29: ='07. (a)TRIBUTOS LREAL'!L21 -> 0 | N29: =SUM(C29:L29) -> 0 | P29: =NPV('01. PC'!$C$10,'02. FCL'!D29:L29)+'02. FCL'!C29 -> 0
B30: RESEGE | C30: ='07. (a)TRIBUTOS LREAL'!C26 -> 0 | D30: ='07. (a)TRIBUTOS LREAL'!D26 -> 0 | E30: ='07. (a)TRIBUTOS LREAL'!E26 -> 0 | F30: ='07. (a)TRIBUTOS LREAL'!F26 -> 0 | G30: ='07. (a)TRIBUTOS LREAL'!G26 -> 0 | H30: ='07. (a)TRIBUTOS LREAL'!H26 -> 0 | I30: ='07. (a)TRIBUTOS LREAL'!I26 -> 0 | J30: ='07. (a)TRIBUTOS LREAL'!J26 -> 0 | K30: ='07. (a)TRIBUTOS LREAL'!K26 -> 0 | L30: ='07. (a)TRIBUTOS LREAL'!L26 -> 0 | N30: =SUM(C30:L30) -> 0 | P30: =NPV('01. PC'!$C$10,'02. FCL'!D30:L30)+'02. FCL'!C30 -> 0
B31: IRPJ/CSLL | C31: =IF('07. (a)TRIBUTOS LREAL'!C125="Real",'07. (a)TRIBUTOS LREAL'!C76,'07. (b)TRIBUTOS LPRESUMID'!C34) -> 0 | D31: =IF('07. (a)TRIBUTOS LREAL'!D125="Real",'07. (a)TRIBUTOS LREAL'!D76,'07. (b)TRIBUTOS LPRESUMID'!D34) -> 0 | E31: =IF('07. (a)TRIBUTOS LREAL'!E125="Real",'07. (a)TRIBUTOS LREAL'!E76,'07. (b)TRIBUTOS LPRESUMID'!E34) -> 0 | F31: =IF('07. (a)TRIBUTOS LREAL'!F125="Real",'07. (a)TRIBUTOS LREAL'!F76,'07. (b)TRIBUTOS LPRESUMID'!F34) -> 0 | G31: =IF('07. (a)TRIBUTOS LREAL'!G125="Real",'07. (a)TRIBUTOS LREAL'!G76,'07. (b)TRIBUTOS LPRESUMID'!G34) -> 0.0195547052 | H31: =IF('07. (a)TRIBUTOS LREAL'!H125="Real",'07. (a)TRIBUTOS LREAL'!H76,'07. (b)TRIBUTOS LPRESUMID'!H34) -> 0.0195547052 | I31: =IF('07. (a)TRIBUTOS LREAL'!I125="Real",'07. (a)TRIBUTOS LREAL'!I76,'07. (b)TRIBUTOS LPRESUMID'!I34) -> 0.0195547052 | J31: =IF('07. (a)TRIBUTOS LREAL'!J125="Real",'07. (a)TRIBUTOS LREAL'!J76,'07. (b)TRIBUTOS LPRESUMID'!J34) -> 0.0195547052 | K31: =IF('07. (a)TRIBUTOS LREAL'!K125="Real",'07. (a)TRIBUTOS LREAL'!K76,'07. (b)TRIBUTOS LPRESUMID'!K34) -> 0.02772885646 | L31: =IF('07. (a)TRIBUTOS LREAL'!L125="Real",'07. (a)TRIBUTOS LREAL'!L76,'07. (b)TRIBUTOS LPRESUMID'!L34) -> 0.02793529314 | N31: =SUM(C31:L31) -> 0.1338829704 | P31: =NPV('01. PC'!$C$10,'02. FCL'!D31:L31)+'02. FCL'!C31 -> 0.07840667819
B33: Outorga Inicial | N33: =SUM(C33:L33) -> 0 | P33: =NPV('01. PC'!$C$10,'02. FCL'!D33:L33)+'02. FCL'!C33 -> 0
B35: NIG | C35: ='04. NIG'!C20 -> 0 | D35: ='04. NIG'!D20 -> 0 | E35: ='04. NIG'!E20 -> 0 | F35: ='04. NIG'!F20 -> 0 | G35: ='04. NIG'!G20 -> 0 | H35: ='04. NIG'!H20 -> 0 | I35: ='04. NIG'!I20 -> 0 | J35: ='04. NIG'!J20 -> 0 | K35: ='04. NIG'!K20 -> 0 | L35: ='04. NIG'!L20 -> 0 | N35: =SUM(C35:L35) -> 0 | P35: =NPV('01. PC'!$C$10,'02. FCL'!D35:L35)+'02. FCL'!C35 -> 0
B37: FCL | C37: =C12+C16+C21+C26+C33+C35 -> -0.4262083731 | D37: 0.08216262688 | E37: 0.08216262688 | F37: 0.08216262688 | G37: 0.06260792168 | H37: 0.06260792168 | I37: 0.06260792168 | J37: 0.06260792168 | K37: 0.05443377042 | L37: 0.05422733374 | N37: =SUM(C37:L37) -> 0.1793722984 | P37: =NPV('01. PC'!$C$10,'02. FCL'!D37:L37)+'02. FCL'!C37 -> -1.831406043e-05
B39: FCL Acumulado | C39: =C37 -> -0.4262083731 | D39: =(C39+D37)*D8 -> -0.3440457462 | E39: -0.2618831194 | F39: -0.1797204925 | G39: -0.1171125708 | H39: -0.05450464911 | I39: 0.008103272569 | J39: 0.07071119425 | K39: 0.1251449647 | L39: 0.1793722984
B41: TIR de Projeto (% ao ano) | C41: =IRR(C37:L37) -> 0.08410173317
B42: VPL (em R$ Milhões) | C42: =ROUND(NPV('01. PC'!$C$10,'02. FCL'!D37:L37)+'02. FCL'!C37,4) -> 0

Sheet 03. D&A Fiscal
B6: VIDA ÚTIL | C6: ANOS
B7: ='01. PC'!C24 -> Básico | C7: ='01. PC'!C26 -> 15
B9: D&A (R$ Milhões)
B11: PRAZO | C11: =IF(C13<=('01. PC'!$C$18),1,0) -> 1 | D11: =IF(D13<=('01. PC'!$C$18),1,0) -> 1 | E11: =IF(E13<=('01. PC'!$C$18),1,0) -> 1 | F11: =IF(F13<=('01. PC'!$C$18),1,0) -> 1 | G11: =IF(G13<=('01. PC'!$C$18),1,0) -> 1 | H11: =IF(H13<=('01. PC'!$C$18),1,0) -> 1 | I11: =IF(I13<=('01. PC'!$C$18),1,0) -> 1 | J11: =IF(J13<=('01. PC'!$C$18),1,0) -> 1 | K11: =IF(K13<=('01. PC'!$C$18),1,0) -> 1 | L11: =IF(L13<=('01. PC'!$C$18),1,0) -> 1
B13: ANO | C13: 1 | D13: =C13+1 -> 2 | E13: =D13+1 -> 3 | F13: 4 | G13: 5 | H13: 6 | I13: 7 | J13: 8 | K13: 9 | L13: 10 | AC13: TOTAL
B15: Capex | C15: =C17+C18 -> 0.508371 | D15: =D17+D18 -> 0 | E15: 0 | F15: 0 | G15: 0 | H15: 0 | I15: 0 | J15: 0 | K15: 0 | L15: 0 | AC15: =SUM(C15:AA15) -> 0.508371
B17: ='01. PC'!$C$24 -> Básico | C17: =('05. CAPEX'!D86)*C$11 -> 0.508371 | D17: =('05. CAPEX'!E86)*D$11 -> 0 | E17: =('05. CAPEX'!F86)*E$11 -> 0 | F17: =('05. CAPEX'!G86)*F$11 -> 0 | G17: =('05. CAPEX'!H86)*G$11 -> 0 | H17: =('05. CAPEX'!I86)*H$11 -> 0 | I17: =('05. CAPEX'!J86)*I$11 -> 0 | J17: =('05. CAPEX'!K86)*J$11 -> 0 | K17: =('05. CAPEX'!L86)*K$11 -> 0 | L17: =('05. CAPEX'!M86)*L$11 -> 0 | AC17: =SUM(C17:AA17) -> 0.508371
B18: Carregadores e Placas | C18: ='05. CAPEX'!AF25/10^6 -> 0 | D18: =-'02. FCL'!D33 -> 0 | E18: =-'02. FCL'!E33 -> 0 | F18: =-'02. FCL'!F33 -> 0 | G18: =-'02. FCL'!G33 -> 0 | H18: =-'02. FCL'!H33 -> 0 | I18: =-'02. FCL'!I33 -> 0 | J18: =-'02. FCL'!J33 -> 0 | K18: =-'02. FCL'!K33 -> 0 | L18: =-'02. FCL'!L33 -> 0 | AC18: 0
B20: Cronograma | C20: =C22+C35 -> 0.508371 | D20: 0 | E20: 0 | F20: 0 | G20: 0 | H20: 0 | I20: 0 | J20: 0 | K20: 0 | L20: 0 | AC20: =SUM(C20:AA20) -> 0.508371
B22: ='01. PC'!$C$24 -> Básico | C22: =SUM(C23:C32) -> 0.508371 | D22: 0 | E22: 0 | F22: 0 | G22: 0 | H22: 0 | I22: 0 | J22: 0 | K22: 0 | L22: 0 | AC22: =SUM(C22:AA22) -> 0.508371
B23: 1 | C23: =C$17 -> 0.508371 | AC23: =SUM(C23:AA23) -> 0.508371
B24: =B23+1 -> 2 | D24: =D$17 -> 0 | AC24: =SUM(C24:AA24) -> 0
B25: =B24+1 -> 3 | E25: =E$17 -> 0 | AC25: 0
B26: 4 | F26: =F$17 -> 0 | AC26: 0
B27: 5 | G27: =G$17 -> 0 | AC27: 0
B28: 6 | H28: =H$17 -> 0 | AC28: 0
B29: 7 | I29: =I$17 -> 0 | AC29: 0
B30: 8 | J30: =J$17 -> 0 | AC30: 0
B31: =B30+1 -> 9 | K31: =K$17 -> 0 | AC31: 0
B32: 10 | L32: =L$17 -> 0 | AC32: 0
B35: Carregadores e Placas | C35: =SUM(C36:C45) -> 0 | D35: 0 | E35: 0 | F35: 0 | G35: 0 | H35: 0 | I35: 0 | J35: 0 | K35: 0 | L35: 0 | AC35: =SUM(C35:AA35) -> 0
B36: 1 | C36: =C$18 -> 0 | AC36: =SUM(C36:AA36) -> 0
B37: =B36+1 -> 2 | D37: =D$18 -> 0 | AC37: 0
B38: =B37+1 -> 3 | E38: =E$18 -> 0 | AC38: 0
B39: 4 | F39: =F$18 -> 0 | AC39: 0
B40: 5 | G40: =G$18 -> 0 | AC40: 0
B41: 6 | H41: =H$18 -> 0 | AC41: 0
B42: 7 | I42: =I$18 -> 0 | AC42: 0
B43: 8 | J43: =J$18 -> 0 | AC43: 0
B44: 9 | K44: =K$18 -> 0 | AC44: 0
B45: 10 | L45: =L$18 -> 0 | AC45: 0
B47: Dep. sem perdas reais | C47: =C49+C61 -> 0.12709275 | D47: 0.12709275 | E47: 0.12709275 | F47: 0.12709275 | G47: 0 | H47: 0 | I47: 0 | J47: 0 | K47: 0 | L47: 0 | AC47: =SUM(C47:AA47) -> 0.508371
B49: ='01. PC'!$C$24 -> Básico | C49: =SUM(C50:C59) -> 0.12709275 | D49: 0.12709275 | E49: 0.12709275 | F49: 0.12709275 | G49: 0 | H49: 0 | I49: 0 | J49: 0 | K49: 0 | L49: 0 | AC49: =SUM(C49:AA49) -> 0.508371
B50: 1 | C50: =$AC50*(1/$AD50)*C$11 -> 0.12709275 | D50: =IFERROR(IF(SUM($C50:C50)<$AC50,$AC50*(1/$AD50),0),0)*D$11 -> 0.12709275 | E50: =IFERROR(IF(SUM($C50:D50)<$AC50,$AC50*(1/$AD50),0),0)*E$11 -> 0.12709275 | F50: =IFERROR(IF(SUM($C50:E50)<$AC50,$AC50*(1/$AD50),0),0)*F$11 -> 0.12709275 | G50: =IFERROR(IF(SUM($C50:F50)<$AC50,$AC50*(1/$AD50),0),0)*G$11 -> 0 | H50: =IFERROR(IF(SUM($C50:G50)<$AC50,$AC50*(1/$AD50),0),0)*H$11 -> 0 | I50: =IFERROR(IF(SUM($C50:H50)<$AC50,$AC50*(1/$AD50),0),0)*I$11 -> 0 | J50: =IFERROR(IF(SUM($C50:I50)<$AC50,$AC50*(1/$AD50),0),0)*J$11 -> 0 | K50: =IFERROR(IF(SUM($C50:J50)<$AC50,$AC50*(1/$AD50),0),0)*K$11 -> 0 | L50: =IFERROR(IF(SUM($C50:K50)<$AC50,$AC50*(1/$AD50),0),0)*L$11 -> 0 | AC50: =AC23 -> 0.508371 | AD50: 4
B51: =B50+1 -> 2 | D51: =IFERROR(IF(SUM($C51:C51)<$AC51,$AC51*(1/$AD51),0),0)*D$11 -> 0 | E51: =IFERROR(IF(SUM($C51:D51)<$AC51,$AC51*(1/$AD51),0),0)*E$11 -> 0 | F51: =IFERROR(IF(SUM($C51:E51)<$AC51,$AC51*(1/$AD51),0),0)*F$11 -> 0 | G51: =IFERROR(IF(SUM($C51:F51)<$AC51,$AC51*(1/$AD51),0),0)*G$11 -> 0 | H51: =IFERROR(IF(SUM($C51:G51)<$AC51,$AC51*(1/$AD51),0),0)*H$11 -> 0 | I51: =IFERROR(IF(SUM($C51:H51)<$AC51,$AC51*(1/$AD51),0),0)*I$11 -> 0 | J51: =IFERROR(IF(SUM($C51:I51)<$AC51,$AC51*(1/$AD51),0),0)*J$11 -> 0 | K51: =IFERROR(IF(SUM($C51:J51)<$AC51,$AC51*(1/$AD51),0),0)*K$11 -> 0 | L51: =IFERROR(IF(SUM($C51:K51)<$AC51,$AC51*(1/$AD51),0),0)*L$11 -> 0 | AC51: 0 | AD51: =AD50 -> 4
B52: =B51+1 -> 3 | E52: =IFERROR(IF(SUM($C52:D52)<$AC52,$AC52*(1/$AD52),0),0)*E$11 -> 0 | F52: =IFERROR(IF(SUM($C52:E52)<$AC52,$AC52*(1/$AD52),0),0)*F$11 -> 0 | G52: =IFERROR(IF(SUM($C52:F52)<$AC52,$AC52*(1/$AD52),0),0)*G$11 -> 0 | H52: =IFERROR(IF(SUM($C52:G52)<$AC52,$AC52*(1/$AD52),0),0)*H$11 -> 0 | I52: =IFERROR(IF(SUM($C52:H52)<$AC52,$AC52*(1/$AD52),0),0)*I$11 -> 0 | J52: =IFERROR(IF(SUM($C52:I52)<$AC52,$AC52*(1/$AD52),0),0)*J$11 -> 0 | K52: =IFERROR(IF(SUM($C52:J52)<$AC52,$AC52*(1/$AD52),0),0)*K$11 -> 0 | L52: =IFERROR(IF(SUM($C52:K52)<$AC52,$AC52*(1/$AD52),0),0)*L$11 -> 0 | AC52: 0 | AD52: =AD51 -> 4
B53: 4 | F53: =IFERROR(IF(SUM($C53:E53)<$AC53,$AC53*(1/$AD53),0),0)*F$11 -> 0 | G53: =IFERROR(IF(SUM($C53:F53)<$AC53,$AC53*(1/$AD53),0),0)*G$11 -> 0 | H53: =IFERROR(IF(SUM($C53:G53)<$AC53,$AC53*(1/$AD53),0),0)*H$11 -> 0 | I53: =IFERROR(IF(SUM($C53:H53)<$AC53,$AC53*(1/$AD53),0),0)*I$11 -> 0 | J53: =IFERROR(IF(SUM($C53:I53)<$AC53,$AC53*(1/$AD53),0),0)*J$11 -> 0 | K53: =IFERROR(IF(SUM($C53:J53)<$AC53,$AC53*(1/$AD53),0),0)*K$11 -> 0 | L53: =IFERROR(IF(SUM($C53:K53)<$AC53,$AC53*(1/$AD53),0),0)*L$11 -> 0 | AC53: 0 | AD53: 4
B54: 5 | G54: =IFERROR(IF(SUM($C54:F54)<$AC54,$AC54*(1/$AD54),0),0)*G$11 -> 0 | H54: =IFERROR(IF(SUM($C54:G54)<$AC54,$AC54*(1/$AD54),0),0)*H$11 -> 0 | I54: =IFERROR(IF(SUM($C54:H54)<$AC54,$AC54*(1/$AD54),0),0)*I$11 -> 0 | J54: =IFERROR(IF(SUM($C54:I54)<$AC54,$AC54*(1/$AD54),0),0)*J$11 -> 0 | K54: =IFERROR(IF(SUM($C54:J54)<$AC54,$AC54*(1/$AD54),0),0)*K$11 -> 0 | L54: =IFERROR(IF(SUM($C54:K54)<$AC54,$AC54*(1/$AD54),0),0)*L$11 -> 0 | AC54: 0 | AD54: 4
B55: 6 | H55: =IFERROR(IF(SUM($C55:G55)<$AC55,$AC55*(1/$AD55),0),0)*H$11 -> 0 | I55: =IFERROR(IF(SUM($C55:H55)<$AC55,$AC55*(1/$AD55),0),0)*I$11 -> 0 | J55: =IFERROR(IF(SUM($C55:I55)<$AC55,$AC55*(1/$AD55),0),0)*J$11 -> 0 | K55: =IFERROR(IF(SUM($C55:J55)<$AC55,$AC55*(1/$AD55),0),0)*K$11 -> 0 | L55: =IFERROR(IF(SUM($C55:K55)<$AC55,$AC55*(1/$AD55),0),0)*L$11 -> 0 | AC55: 0 | AD55: 4
B56: 7 | I56: =IFERROR(IF(SUM($C56:H56)<$AC56,$AC56*(1/$AD56),0),0)*I$11 -> 0 | J56: =IFERROR(IF(SUM($C56:I56)<$AC56,$AC56*(1/$AD56),0),0)*J$11 -> 0 | K56: =IFERROR(IF(SUM($C56:J56)<$AC56,$AC56*(1/$AD56),0),0)*K$11 -> 0 | L56: =IFERROR(IF(SUM($C56:K56)<$AC56,$AC56*(1/$AD56),0),0)*L$11 -> 0 | AC56: 0 | AD56: 4
B57: 8 | J57: =IFERROR(IF(SUM($C57:I57)<$AC57,$AC57*(1/$AD57),0),0)*J$11 -> 0 | K57: =IFERROR(IF(SUM($C57:J57)<$AC57,$AC57*(1/$AD57),0),0)*K$11 -> 0 | L57: =IFERROR(IF(SUM($C57:K57)<$AC57,$AC57*(1/$AD57),0),0)*L$11 -> 0 | AC57: 0 | AD57: 4
B58: 9 | K58: =IFERROR(IF(SUM($C58:J58)<$AC58,$AC58*(1/$AD58),0),0)*K$11 -> 0 | L58: =IFERROR(IF(SUM($C58:K58)<$AC58,$AC58*(1/$AD58),0),0)*L$11 -> 0 | AC58: 0 | AD58: 4
B59: 10 | L59: =IFERROR(IF(SUM($C59:K59)<$AC59,$AC59*(1/$AD59),0),0)*L$11 -> 0 | AC59: 0 | AD59: 4
B61: Carregadores e Placas | C61: =SUM(C62:C71) -> 0 | D61: 0 | E61: 0 | F61: 0 | G61: 0 | H61: 0 | I61: 0 | J61: 0 | K61: 0 | L61: 0 | AC61: =SUM(C61:AA61) -> 0
B62: 1 | C62: =$AC62*(1/$AD62)*C$11 -> 0 | D62: =IFERROR(IF(SUM($C62:C62)<$AC62,$AC62*(1/$AD62),0),0)*D$11 -> 0 | E62: =IFERROR(IF(SUM($C62:D62)<$AC62,$AC62*(1/$AD62),0),0)*E$11 -> 0 | F62: =IFERROR(IF(SUM($C62:E62)<$AC62,$AC62*(1/$AD62),0),0)*F$11 -> 0 | G62: =IFERROR(IF(SUM($C62:F62)<$AC62,$AC62*(1/$AD62),0),0)*G$11 -> 0 | H62: =IFERROR(IF(SUM($C62:G62)<$AC62,$AC62*(1/$AD62),0),0)*H$11 -> 0 | I62: =IFERROR(IF(SUM($C62:H62)<$AC62,$AC62*(1/$AD62),0),0)*I$11 -> 0 | J62: =IFERROR(IF(SUM($C62:I62)<$AC62,$AC62*(1/$AD62),0),0)*J$11 -> 0 | K62: =IFERROR(IF(SUM($C62:J62)<$AC62,$AC62*(1/$AD62),0),0)*K$11 -> 0 | L62: =IFERROR(IF(SUM($C62:K62)<$AC62,$AC62*(1/$AD62),0),0)*L$11 -> 0 | AC62: =AC36 -> 0 | AD62: 15
B63: =B62+1 -> 2 | D63: =IFERROR(IF(SUM($C63:C63)<$AC63,$AC63*(1/$AD63),0),0)*D$11 -> 0 | E63: =IFERROR(IF(SUM($C63:D63)<$AC63,$AC63*(1/$AD63),0),0)*E$11 -> 0 | F63: =IFERROR(IF(SUM($C63:E63)<$AC63,$AC63*(1/$AD63),0),0)*F$11 -> 0 | G63: =IFERROR(IF(SUM($C63:F63)<$AC63,$AC63*(1/$AD63),0),0)*G$11 -> 0 | H63: =IFERROR(IF(SUM($C63:G63)<$AC63,$AC63*(1/$AD63),0),0)*H$11 -> 0 | I63: =IFERROR(IF(SUM($C63:H63)<$AC63,$AC63*(1/$AD63),0),0)*I$11 -> 0 | J63: =IFERROR(IF(SUM($C63:I63)<$AC63,$AC63*(1/$AD63),0),0)*J$11 -> 0 | K63: =IFERROR(IF(SUM($C63:J63)<$AC63,$AC63*(1/$AD63),0),0)*K$11 -> 0 | L63: =IFERROR(IF(SUM($C63:K63)<$AC63,$AC63*(1/$AD63),0),0)*L$11 -> 0 | AC63: 0 | AD63: =AD62-1 -> 14
B64: =B63+1 -> 3 | E64: =IFERROR(IF(SUM($C64:D64)<$AC64,$AC64*(1/$AD64),0),0)*E$11 -> 0 | F64: =IFERROR(IF(SUM($C64:E64)<$AC64,$AC64*(1/$AD64),0),0)*F$11 -> 0 | G64: =IFERROR(IF(SUM($C64:F64)<$AC64,$AC64*(1/$AD64),0),0)*G$11 -> 0 | H64: =IFERROR(IF(SUM($C64:G64)<$AC64,$AC64*(1/$AD64),0),0)*H$11 -> 0 | I64: =IFERROR(IF(SUM($C64:H64)<$AC64,$AC64*(1/$AD64),0),0)*I$11 -> 0 | J64: =IFERROR(IF(SUM($C64:I64)<$AC64,$AC64*(1/$AD64),0),0)*J$11 -> 0 | K64: =IFERROR(IF(SUM($C64:J64)<$AC64,$AC64*(1/$AD64),0),0)*K$11 -> 0 | L64: =IFERROR(IF(SUM($C64:K64)<$AC64,$AC64*(1/$AD64),0),0)*L$11 -> 0 | AC64: 0 | AD64: =AD63-1 -> 13
B65: 4 | F65: =IFERROR(IF(SUM($C65:E65)<$AC65,$AC65*(1/$AD65),0),0)*F$11 -> 0 | G65: =IFERROR(IF(SUM($C65:F65)<$AC65,$AC65*(1/$AD65),0),0)*G$11 -> 0 | H65: =IFERROR(IF(SUM($C65:G65)<$AC65,$AC65*(1/$AD65),0),0)*H$11 -> 0 | I65: =IFERROR(IF(SUM($C65:H65)<$AC65,$AC65*(1/$AD65),0),0)*I$11 -> 0 | J65: =IFERROR(IF(SUM($C65:I65)<$AC65,$AC65*(1/$AD65),0),0)*J$11 -> 0 | K65: =IFERROR(IF(SUM($C65:J65)<$AC65,$AC65*(1/$AD65),0),0)*K$11 -> 0 | L65: =IFERROR(IF(SUM($C65:K65)<$AC65,$AC65*(1/$AD65),0),0)*L$11 -> 0 | AC65: 0 | AD65: 12
B66: 5 | G66: =IFERROR(IF(SUM($C66:F66)<$AC66,$AC66*(1/$AD66),0),0)*G$11 -> 0 | H66: =IFERROR(IF(SUM($C66:G66)<$AC66,$AC66*(1/$AD66),0),0)*H$11 -> 0 | I66: =IFERROR(IF(SUM($C66:H66)<$AC66,$AC66*(1/$AD66),0),0)*I$11 -> 0 | J66: =IFERROR(IF(SUM($C66:I66)<$AC66,$AC66*(1/$AD66),0),0)*J$11 -> 0 | K66: =IFERROR(IF(SUM($C66:J66)<$AC66,$AC66*(1/$AD66),0),0)*K$11 -> 0 | L66: =IFERROR(IF(SUM($C66:K66)<$AC66,$AC66*(1/$AD66),0),0)*L$11 -> 0 | AC66: 0 | AD66: 11
B67: 6 | H67: =IFERROR(IF(SUM($C67:G67)<$AC67,$AC67*(1/$AD67),0),0)*H$11 -> 0 | I67: =IFERROR(IF(SUM($C67:H67)<$AC67,$AC67*(1/$AD67),0),0)*I$11 -> 0 | J67: =IFERROR(IF(SUM($C67:I67)<$AC67,$AC67*(1/$AD67),0),0)*J$11 -> 0 | K67: =IFERROR(IF(SUM($C67:J67)<$AC67,$AC67*(1/$AD67),0),0)*K$11 -> 0 | L67: =IFERROR(IF(SUM($C67:K67)<$AC67,$AC67*(1/$AD67),0),0)*L$11 -> 0 | AC67: 0 | AD67: 10
B68: 7 | I68: =IFERROR(IF(SUM($C68:H68)<$AC68,$AC68*(1/$AD68),0),0)*I$11 -> 0 | J68: =IFERROR(IF(SUM($C68:I68)<$AC68,$AC68*(1/$AD68),0),0)*J$11 -> 0 | K68: =IFERROR(IF(SUM($C68:J68)<$AC68,$AC68*(1/$AD68),0),0)*K$11 -> 0 | L68: =IFERROR(IF(SUM($C68:K68)<$AC68,$AC68*(1/$AD68),0),0)*L$11 -> 0 | AC68: 0 | AD68: 9
B69: 8 | J69: =IFERROR(IF(SUM($C69:I69)<$AC69,$AC69*(1/$AD69),0),0)*J$11 -> 0 | K69: =IFERROR(IF(SUM($C69:J69)<$AC69,$AC69*(1/$AD69),0),0)*K$11 -> 0 | L69: =IFERROR(IF(SUM($C69:K69)<$AC69,$AC69*(1/$AD69),0),0)*L$11 -> 0 | AC69: 0 | AD69: 8
B70: 9 | K70: =IFERROR(IF(SUM($C70:J70)<$AC70,$AC70*(1/$AD70),0),0)*K$11 -> 0 | L70: =IFERROR(IF(SUM($C70:K70)<$AC70,$AC70*(1/$AD70),0),0)*L$11 -> 0 | AC70: 0 | AD70: 7
B71: 10 | L71: =IFERROR(IF(SUM($C71:K71)<$AC71,$AC71*(1/$AD71),0),0)*L$11 -> 0 | AC71: 0 | AD71: 6
B73: Dep. com perdas reais | C73: =SUM(C75:C84) -> 0.1210407143 | D73: 0.1152768707 | E73: 0.109787496 | F73: 0.10455952 | G73: 0 | H73: 0 | I73: 0 | J73: 0 | K73: 0 | L73: 0 | AC73: =SUM(C73:AA73) -> 0.4506646009
B75: 1 | C75: =(C50+C62)/C98 -> 0.1210407143 | D75: 0.1152768707 | E75: 0.109787496 | F75: 0.10455952 | G75: 0 | H75: 0 | I75: 0 | J75: 0 | K75: 0 | L75: 0 | AC75: =SUM(C75:AA75) -> 0.4506646009
B76: =B75+1 -> 2 | D76: =(D51+D63)/D99 -> 0 | E76: 0 | F76: 0 | G76: 0 | H76: 0 | I76: 0 | J76: 0 | K76: 0 | L76: 0 | AC76: =SUM(C76:AA76) -> 0
B77: =B76+1 -> 3 | E77: =(E52+E64)/E100 -> 0 | F77: 0 | G77: 0 | H77: 0 | I77: 0 | J77: 0 | K77: 0 | L77: 0 | AC77: 0
B78: 4 | F78: =(F53+F65)/F101 -> 0 | G78: 0 | H78: 0 | I78: 0 | J78: 0 | K78: 0 | L78: 0 | AC78: 0
B79: 5 | G79: =(G54+G66)/G102 -> 0 | H79: 0 | I79: 0 | J79: 0 | K79: 0 | L79: 0 | AC79: 0
B80: 6 | H80: =(H55+H67)/H103 -> 0 | I80: =(I55+I67)/I103 -> 0 | J80: =(J55+J67)/J103 -> 0 | K80: =(K55+K67)/K103 -> 0 | L80: =(L55+L67)/L103 -> 0 | AC80: 0
B81: 7 | I81: =(I56+I68)/I104 -> 0 | J81: =(J56+J68)/J104 -> 0 | K81: =(K56+K68)/K104 -> 0 | L81: =(L56+L68)/L104 -> 0 | AC81: 0
B82: 8 | J82: =(J57+J69)/J105 -> 0 | K82: =(K57+K69)/K105 -> 0 | L82: =(L57+L69)/L105 -> 0 | AC82: 0
B83: 9 | K83: =(K58+K70)/K106 -> 0 | L83: =(L58+L70)/L106 -> 0 | AC83: 0
B84: 10 | L84: =(L59+L71)/L107 -> 0 | AC84: 0
B85: Inflação | C85: ='01. PC'!C65 -> 0.05 | D85: ='01. PC'!D65 -> 0.05 | E85: ='01. PC'!E65 -> 0.05 | F85: ='01. PC'!F65 -> 0.05 | G85: ='01. PC'!G65 -> 0.05 | H85: ='01. PC'!H65 -> 0.05 | I85: ='01. PC'!I65 -> 0.05 | J85: ='01. PC'!J65 -> 0.05 | K85: ='01. PC'!K65 -> 0.05 | L85: ='01. PC'!L65 -> 0.05
B86: 1 | C86: =C85 -> 0.05 | D86: =D85 -> 0.05 | E86: =E85 -> 0.05 | F86: =F85 -> 0.05 | G86: 0.05 | H86: 0.05 | I86: 0.05 | J86: 0.05 | K86: 0.05 | L86: 0.05
B87: =B86+1 -> 2 | D87: =D86 -> 0.05 | E87: 0.05 | F87: 0.05 | G87: 0.05 | H87: 0.05 | I87: 0.05 | J87: 0.05 | K87: 0.05 | L87: 0.05
B88: =B87+1 -> 3 | E88: 0.05 | F88: 0.05 | G88: 0.05 | H88: 0.05 | I88: 0.05 | J88: 0.05 | K88: 0.05 | L88: 0.05
B89: 4 | F89: 0.05 | G89: 0.05 | H89: 0.05 | I89: 0.05 | J89: 0.05 | K89: 0.05 | L89: 0.05
B90: 5 | G90: 0.05 | H90: 0.05 | I90: 0.05 | J90: 0.05 | K90: 0.05 | L90: 0.05
B91: 6 | H91: 0.05 | I91: 0.05 | J91: 0.05 | K91: 0.05 | L91: 0.05
B92: 7 | I92: 0.05 | J92: 0.05 | K92: 0.05 | L92: 0.05
B93: 8 | J93: 0.05 | K93: 0.05 | L93: 0.05
B94: 9 | K94: 0.05 | L94: 0.05
B95: 10 | L95: 0.05
B97: Inflação acumulada | C97: =C98 -> 1.05 | D97: =D98 -> 1.1025 | E97: 1.157625 | F97: 1.21550625 | G97: 1.276281563 | H97: 1.340095641 | I97: 1.407100423 | J97: 1.477455444 | K97: 1.551328216 | L97: 1.628894627
B98: 1 | C98: =C86+1 -> 1.05 | D98: =C98*(1+D86) -> 1.1025 | E98: 1.157625 | F98: 1.21550625 | G98: 1.276281563 | H98: 1.340095641 | I98: 1.407100423 | J98: 1.477455444 | K98: 1.551328216 | L98: 1.628894627
B99: =B98+1 -> 2 | D99: =D87+1 -> 1.05 | E99: =D99*(1+E87) -> 1.1025 | F99: 1.157625 | G99: 1.21550625 | H99: 1.276281563 | I99: 1.340095641 | J99: 1.407100423 | K99: 1.477455444 | L99: 1.551328216
B100: =B99+1 -> 3 | E100: =E88+1 -> 1.05 | F100: =E100*(1+F88) -> 1.1025 | G100: 1.157625 | H100: 1.21550625 | I100: 1.276281563 | J100: 1.340095641 | K100: 1.407100423 | L100: 1.477455444
B101: 4 | F101: =F89+1 -> 1.05 | G101: =F101*(1+G89) -> 1.1025 | H101: 1.157625 | I101: 1.21550625 | J101: 1.276281563 | K101: 1.340095641 | L101: 1.407100423
B102: 5 | G102: =G90+1 -> 1.05 | H102: =G102*(1+H90) -> 1.1025 | I102: =H102*(1+I90) -> 1.157625 | J102: =I102*(1+J90) -> 1.21550625 | K102: =J102*(1+K90) -> 1.276281563 | L102: =K102*(1+L90) -> 1.340095641
B103: 6 | H103: =H91+1 -> 1.05 | I103: =H103*(1+I91) -> 1.1025 | J103: =I103*(1+J91) -> 1.157625 | K103: =J103*(1+K91) -> 1.21550625 | L103: =K103*(1+L91) -> 1.276281563
B104: 7 | I104: =I92+1 -> 1.05 | J104: =I104*(1+J92) -> 1.1025 | K104: =J104*(1+K92) -> 1.157625 | L104: =K104*(1+L92) -> 1.21550625
B105: 8 | J105: =J93+1 -> 1.05 | K105: =J105*(1+K93) -> 1.1025 | L105: =K105*(1+L93) -> 1.157625
B106: 9 | K106: =K94+1 -> 1.05 | L106: =K106*(1+L94) -> 1.1025
B107: 10 | L107: =L95+1 -> 1.05
B109: Diferenças | C109: =C73-C47 -> -0.006052035714 | D109: -0.01181587925 | E109: -0.01730525405 | F109: -0.02253323005 | G109: 0 | H109: 0 | I109: 0 | J109: 0 | K109: 0 | L109: 0 | AC109: =SUM(C109:AA109) -> -0.05770639906

Sheet 04. NIG
B6: NIG (R$ Milhões)
B8: PRAZO | C8: =IF(C10<=('01. PC'!$C$18),1,0) -> 1 | D8: =IF(D10<=('01. PC'!$C$18),1,0) -> 1 | E8: =IF(E10<=('01. PC'!$C$18),1,0) -> 1 | F8: =IF(F10<=('01. PC'!$C$18),1,0) -> 1 | G8: =IF(G10<=('01. PC'!$C$18),1,0) -> 1 | H8: =IF(H10<=('01. PC'!$C$18),1,0) -> 1 | I8: =IF(I10<=('01. PC'!$C$18),1,0) -> 1 | J8: =IF(J10<=('01. PC'!$C$18),1,0) -> 1 | K8: =IF(K10<=('01. PC'!$C$18),1,0) -> 1 | L8: =IF(L10<=('01. PC'!$C$18),1,0) -> 1
B10: ANO | C10: 1 | D10: =C10+1 -> 2 | E10: =D10+1 -> 3 | F10: 4 | G10: 5 | H10: 6 | I10: 7 | J10: 8 | K10: 9 | L10: 10 | N10: TOTAL
B12: OPEX TOTAL | C12: =-(C13+C14)*C$8 -> -0.6021173705 | D12: =-(D13+D14)*D$8 -> -0.6021173705 | E12: -0.6021173705 | F12: -0.6021173705 | G12: -0.6021173705 | H12: -0.6021173705 | I12: -0.6021173705 | J12: -0.6021173705 | K12: -0.6021173705 | L12: -0.6021173705 | N12: =SUM(C12:L12) -> -6.021173705
B13: Custos Variaveis | C13: ='06. OPEX'!C10 -> 0.4608030262 | D13: ='06. OPEX'!D10 -> 0.4608030262 | E13: ='06. OPEX'!E10 -> 0.4608030262 | F13: ='06. OPEX'!F10 -> 0.4608030262 | G13: ='06. OPEX'!G10 -> 0.4608030262 | H13: ='06. OPEX'!H10 -> 0.4608030262 | I13: ='06. OPEX'!I10 -> 0.4608030262 | J13: ='06. OPEX'!J10 -> 0.4608030262 | K13: ='06. OPEX'!K10 -> 0.4608030262 | L13: ='06. OPEX'!L10 -> 0.4608030262 | N13: =SUM(C13:L13) -> 4.608030262
B14: Custos Fixos | C14: ='06. OPEX'!C67 -> 0.1413143443 | D14: ='06. OPEX'!D67 -> 0.1413143443 | E14: ='06. OPEX'!E67 -> 0.1413143443 | F14: ='06. OPEX'!F67 -> 0.1413143443 | G14: ='06. OPEX'!G67 -> 0.1413143443 | H14: ='06. OPEX'!H67 -> 0.1413143443 | I14: ='06. OPEX'!I67 -> 0.1413143443 | J14: ='06. OPEX'!J67 -> 0.1413143443 | K14: ='06. OPEX'!K67 -> 0.1413143443 | L14: ='06. OPEX'!L67 -> 0.1413143443 | N14: =SUM(C14:L14) -> 1.413143443
B16: NIG - Real | C16: =IF(D$8=1,(C12/12)*'01. PC'!$C$16-SUM(B16:$B16),IF(C$8=1,-SUM(B16:$C16),0)) -> 0 | D16: =IF(E$8=1,(D12/12)*'01. PC'!$C$16-SUM($C16:C16),IF(D$8=1,-SUM($C16:C16),0)) -> 0 | E16: =IF(F$8=1,(E12/10)*'01. PC'!$C$16-SUM($C16:D16),IF(E$8=1,-SUM($C16:D16),0)) -> 0 | F16: =IF(G$8=1,(F12/10)*'01. PC'!$C$16-SUM($C16:E16),IF(F$8=1,-SUM($C16:E16),0)) -> 0 | G16: =IF(H$8=1,(G12/10)*'01. PC'!$C$16-SUM($C16:F16),IF(G$8=1,-SUM($C16:F16),0)) -> 0 | H16: =IF(I$8=1,(H12/10)*'01. PC'!$C$16-SUM($C16:G16),IF(H$8=1,-SUM($C16:G16),0)) -> 0 | I16: =IF(J$8=1,(I12/10)*'01. PC'!$C$16-SUM($C16:H16),IF(I$8=1,-SUM($C16:H16),0)) -> 0 | J16: =IF(K$8=1,(J12/10)*'01. PC'!$C$16-SUM($C16:I16),IF(J$8=1,-SUM($C16:I16),0)) -> 0 | K16: =IF(L$8=1,(K12/10)*'01. PC'!$C$16-SUM($C16:J16),IF(K$8=1,-SUM($C16:J16),0)) -> 0 | L16: =IF(M8=1,(L12/10)*'01. PC'!$C$16-SUM($C16:K16),IF(L$8=1,-SUM($C16:K16),0)) -> 0 | N16: =SUM(C16:L16) -> 0
B18: Perda inflacionária | D18: =(C12*('01. PC'!D65/(1+'01. PC'!D65)))*D8*('01. PC'!$C$16/12) -> 0 | E18: =(D12*('01. PC'!E65/(1+'01. PC'!E65)))*E8*('01. PC'!$C$16/12) -> 0 | F18: =(E12*('01. PC'!F65/(1+'01. PC'!F65)))*F8*('01. PC'!$C$16/12) -> 0 | G18: =(F12*('01. PC'!G65/(1+'01. PC'!G65)))*G8*('01. PC'!$C$16/12) -> 0 | H18: =(G12*('01. PC'!H65/(1+'01. PC'!H65)))*H8*('01. PC'!$C$16/12) -> 0 | I18: =(H12*('01. PC'!I65/(1+'01. PC'!I65)))*I8*('01. PC'!$C$16/12) -> 0 | J18: =(I12*('01. PC'!J65/(1+'01. PC'!J65)))*J8*('01. PC'!$C$16/12) -> 0 | K18: =(J12*('01. PC'!K65/(1+'01. PC'!K65)))*K8*('01. PC'!$C$16/12) -> 0 | L18: =(K12*('01. PC'!L65/(1+'01. PC'!L65)))*L8*('01. PC'!$C$16/12) -> 0 | N18: =SUM(C18:L18) -> 0
B20: NIG Real com Perda inflacionária | C20: =C16+C18 -> 0 | D20: =D16+D18 -> 0 | E20: 0 | F20: 0 | G20: 0 | H20: 0 | I20: 0 | J20: 0 | K20: 0 | L20: 0 | N20: =SUM(C20:L20) -> 0

Sheet 05. CAPEX
B7: FROTA - TOTAL
B8: TIPO | D8: 1 | E8: =D8+1 -> 2 | F8: =E8+1 -> 3 | G8: 4 | H8: 5 | I8: 6 | J8: 7 | K8: 8 | L8: 9 | M8: 10 | N8: 11 | O8: 12 | P8: 13 | Q8: 14 | R8: 15 | S8: 16 | T8: 17 | U8: 18 | V8: 19 | W8: 20 | X8: 21 | Y8: 22 | Z8: 23 | AA8: 24 | AB8: 25
B9: ='01. PC'!$C$24 -> Básico | D9: 1 | E9: 1 | F9: 1 | G9: 1 | H9: 1 | I9: 1 | J9: 1 | K9: 1 | L9: 1 | M9: 1 | N9: =N15 -> 0 | O9: 0 | P9: 0 | Q9: 0 | R9: 0 | S9: 0 | T9: 0 | U9: 0 | V9: 0 | W9: 0 | X9: 0 | Y9: 0 | Z9: 0 | AA9: 0 | AB9: 0
B10: TOTAL | D10: =SUM(D9:D9) -> 1 | E10: 1 | F10: 1 | G10: 1 | H10: 1 | I10: 1 | J10: 1 | K10: 1 | L10: 1 | M10: 1 | N10: 0 | O10: 0 | P10: 0 | Q10: 0 | R10: 0 | S10: 0 | T10: 0 | U10: 0 | V10: 0 | W10: 0 | X10: 0 | Y10: 0 | Z10: 0 | AA10: 0 | AB10: 0
B12: IDADE - BÁSICO
B13: TIPO | C13: QUANT. | D13: 1 | E13: =D13+1 -> 2 | F13: =E13+1 -> 3 | G13: 4 | H13: 5 | I13: 6 | J13: 7 | K13: 8 | L13: 9 | M13: 10 | N13: 11 | O13: 12 | P13: 13 | Q13: 14 | R13: 15 | S13: 16 | T13: 17 | U13: 18 | V13: 19 | W13: 20 | X13: 21 | Y13: 22 | Z13: 23 | AA13: 24 | AB13: 25
B14: ='01. PC'!$C$24 -> Básico | C14: 1 | D14: 0 | E14: =IF(D14+1>'01. PC'!$C$26,0,D14+1) -> 1 | F14: =IF(E14+1>'01. PC'!$C$26,0,E14+1) -> 2 | G14: =IF(F14+1>'01. PC'!$C$26,0,F14+1) -> 3 | H14: =IF(G14+1>'01. PC'!$C$26,0,G14+1) -> 4 | I14: =IF(H14+1>'01. PC'!$C$26,0,H14+1) -> 5 | J14: =IF(I14+1>'01. PC'!$C$26,0,I14+1) -> 6 | K14: =IF(J14+1>'01. PC'!$C$26,0,J14+1) -> 7 | L14: =IF(K14+1>'01. PC'!$C$26,0,K14+1) -> 8 | M14: 9 | N14: =IF(M14+1>'01. PC'!$C$26,0,M14+1) -> 10 | O14: =IF(N14+1>'01. PC'!$C$26,0,N14+1) -> 11 | P14: =IF(O14+1>'01. PC'!$C$26,0,O14+1) -> 12 | Q14: =IF(P14+1>'01. PC'!$C$26,0,P14+1) -> 13 | R14: =IF(Q14+1>'01. PC'!$C$26,0,Q14+1) -> 14 | S14: =IF(R14+1>'01. PC'!$C$26,0,R14+1) -> 15 | T14: =IF(S14+1>'01. PC'!$C$26,0,S14+1) -> 0 | U14: =IF(T14+1>'01. PC'!$C$26,0,T14+1) -> 1 | V14: =IF(U14+1>'01. PC'!$C$26,0,U14+1) -> 2 | W14: =IF(V14+1>'01. PC'!$C$26,0,V14+1) -> 3 | X14: =IF(W14+1>'01. PC'!$C$26,0,W14+1) -> 4 | Y14: =IF(X14+1>'01. PC'!$C$26,0,X14+1) -> 5 | Z14: =IF(Y14+1>'01. PC'!$C$26,0,Y14+1) -> 6 | AA14: =IF(Z14+1>'01. PC'!$C$26,0,Z14+1) -> 7 | AB14: =IF(AA14+1>'01. PC'!$C$26,0,AA14+1) -> 8
B15: TOTAL | D15: =SUM(D14:D14) -> 0 | E15: 1 | F15: 2 | G15: 3 | H15: 4 | I15: 5 | J15: 6 | K15: 7 | L15: 8 | M15: 9
B18: QUANTIDADE | D18: =COUNT(#REF!) -> 0 | E18: =COUNT(#REF!) -> 0 | F18: =COUNT(#REF!) -> 0 | G18: =COUNT(#REF!) -> 0 | H18: =COUNT(#REF!) -> 0 | I18: =COUNT(#REF!) -> 0 | J18: =COUNT(#REF!) -> 0 | K18: =COUNT(#REF!) -> 0 | L18: =COUNT(#REF!) -> 0 | M18: =COUNT(#REF!) -> 0 | N18: =COUNT(#REF!) -> 0 | O18: =COUNT(#REF!) -> 0 | P18: =COUNT(#REF!) -> 0 | Q18: =COUNT(#REF!) -> 0 | R18: =COUNT(#REF!) -> 0 | S18: =COUNT(#REF!) -> 0 | T18: =COUNT(#REF!) -> 0 | U18: =COUNT(#REF!) -> 0 | V18: =COUNT(#REF!) -> 0 | W18: =COUNT(#REF!) -> 0 | X18: =COUNT(#REF!) -> 0 | Y18: =COUNT(#REF!) -> 0 | Z18: =COUNT(#REF!) -> 0 | AA18: =COUNT(#REF!) -> 0 | AB18: =COUNT(#REF!) -> 0
B20: FROTA - PREÇO
B21: TIPO | C21: QUANT. | D21: 1 | E21: =D21+1 -> 2 | F21: =E21+1 -> 3 | G21: 4 | H21: 5 | I21: 6 | J21: 7 | K21: 8 | L21: 9 | M21: 10 | N21: 11 | O21: 12 | P21: 13 | Q21: 14 | R21: 15 | S21: 16 | T21: 17 | U21: 18 | V21: 19 | W21: 20 | X21: 21 | Y21: 22 | Z21: 23 | AA21: 24 | AB21: =AA21+1 -> 25 | AE21: PREÇO
B22: ='01. PC'!$C$24 -> Básico | C22: 1 | D22: =IF(Prazo<D$21,0,IF(D14="",0,$AF$22)) -> 508371 | E22: 508371 | F22: 508371 | G22: 508371 | H22: 508371 | I22: 508371 | J22: 508371 | K22: 508371 | L22: 508371 | M22: 508371 | N22: 0 | O22: 0 | P22: 0 | Q22: 0 | R22: 0 | S22: 0 | T22: 0 | U22: 0 | V22: 0 | W22: 0 | X22: 0 | Y22: 0 | Z22: 0 | AA22: 0 | AB22: 0 | AE22: ='01. PC'!C24 -> Básico | AF22: 508371
B23: TOTAL | D23: =SUM(D22:D22) -> 508371 | E23: 508371 | F23: 508371 | G23: 508371 | H23: 508371 | I23: 508371 | J23: 508371 | K23: 508371 | L23: 508371 | M23: 508371 | N23: 0 | O23: 0 | P23: 0 | Q23: 0 | R23: 0 | S23: 0 | T23: 0 | U23: 0 | V23: 0 | W23: 0 | X23: 0 | Y23: 0 | Z23: 0 | AA23: 0 | AB23: 0 | AE23: BÁSICO SEM ITS | AF23: 476000
B25: FROTA - VALOR JUSTO | AE25: Carregadores e Placas | AF25: 0
B26: TIPO | C26: QUANT. | D26: 1 | E26: 2 | F26: 3 | G26: 4 | H26: 5 | I26: 6 | J26: 7 | K26: 8 | L26: 9 | M26: 10 | N26: 11 | O26: 12 | P26: 13 | Q26: 14 | R26: 15 | S26: 16 | T26: 17 | U26: 18 | V26: 19 | W26: 20 | X26: 21 | Y26: 22 | Z26: 23 | AA26: 24 | AB26: 25
B27: ='01. PC'!$C$24 -> Básico | C27: 1 | D27: =IF($B27='01. PC'!$C$24,IFERROR(D22*(1-VLOOKUP(D14,$AE$30:$AG$45,3,0)),0)) -> 508371 | E27: =IF($B27='01. PC'!$C$24,IFERROR(E22*(1-VLOOKUP(E14,$AE$30:$AG$45,3,0)),0)) -> 437961.6165 | F27: =IF($B27='01. PC'!$C$24,IFERROR(F22*(1-VLOOKUP(F14,$AE$30:$AG$45,3,0)),0)) -> 373449.3366 | G27: =IF($B27='01. PC'!$C$24,IFERROR(G22*(1-VLOOKUP(G14,$AE$30:$AG$45,3,0)),0)) -> 314783.3232 | H27: =IF($B27='01. PC'!$C$24,IFERROR(H22*(1-VLOOKUP(H14,$AE$30:$AG$45,3,0)),0)) -> 262014.4134 | I27: =IF($B27='01. PC'!$C$24,IFERROR(I22*(1-VLOOKUP(I14,$AE$30:$AG$45,3,0)),0)) -> 215091.7701 | J27: =IF($B27='01. PC'!$C$24,IFERROR(J22*(1-VLOOKUP(J14,$AE$30:$AG$45,3,0)),0)) -> 174015.3933 | K27: =IF($B27='01. PC'!$C$24,IFERROR(K22*(1-VLOOKUP(K14,$AE$30:$AG$45,3,0)),0)) -> 138836.1201 | L27: =IF($B27='01. PC'!$C$24,IFERROR(L22*(1-VLOOKUP(L14,$AE$30:$AG$45,3,0)),0)) -> 109503.1134 | M27: =IF($B27='01. PC'!$C$24,IFERROR(M22*(1-VLOOKUP(M14,$AE$30:$AG$45,3,0)),0)) -> 86016.3732 | N27: =IF($B27="BÁSICO",IFERROR(N22*(1-VLOOKUP(N14,$AE$30:$AG$45,3,0)),0)) -> 0 | O27: 0 | P27: 0 | Q27: 0 | R27: 0 | S27: 0 | T27: 0 | U27: 0 | V27: 0 | W27: 0 | X27: 0 | Y27: 0 | Z27: 0 | AA27: 0 | AB27: 0
AE28: DEPRECIAÇÃO
AE29: ANO | AF29: ANUAL | AG29: ACUM.
AE30: 0 | AF30: 0 | AG30: =AF30 -> 0
AE31: 1 | AF31: 0.1385 | AG31: =AG30+AF31 -> 0.1385
AE32: 2 | AF32: 0.1269 | AG32: =AG31+AF32 -> 0.2654
AE33: 3 | AF33: 0.1154 | AG33: 0.3808
AE34: 4 | AF34: 0.1038 | AG34: 0.4846
AE35: 5 | AF35: 0.0923 | AG35: 0.5769
AE36: 6 | AF36: 0.0808 | AG36: 0.6577
AE37: 7 | AF37: 0.0692 | AG37: 0.7269
AE38: 8 | AF38: 0.0577 | AG38: 0.7846
AE39: 9 | AF39: 0.0462 | AG39: 0.8308
AE40: 10 | AF40: 0.0346 | AG40: 0.8654
AE41: =AE40+1 -> 11 | AF41: 0.0231 | AG41: 0.8885
AE42: =AE41+1 -> 12 | AF42: 0.0115 | AG42: 0.9
AE43: =AE42+1 -> 13 | AF43: 0 | AG43: 0.9
AE44: =AE43+1 -> 14 | AF44: 0 | AG44: 0.9
AE45: =AE44+1 -> 15 | AF45: 0 | AG45: 0.9
B46: TOTAL | D46: =SUM(D27:D45) -> 508371 | E46: 437961.6165 | F46: 373449.3366 | G46: 314783.3232 | H46: 262014.4134 | I46: 215091.7701 | J46: 174015.3933 | K46: 138836.1201 | L46: 109503.1134 | M46: 86016.3732 | N46: 0 | O46: 0 | P46: 0 | Q46: 0 | R46: 0 | S46: 0 | T46: 0 | U46: 0 | V46: 0 | W46: 0 | X46: 0 | Y46: 0 | Z46: 0 | AA46: 0 | AB46: 0
B48: Auxiliar de depreciação contábil
B49: TIPO | C49: QUANT. | D49: 1 | E49: =D49+1 -> 2 | F49: =E49+1 -> 3 | G49: 4 | H49: 5 | I49: 6 | J49: 7 | K49: 8 | L49: 9 | M49: 10 | N49: 11 | O49: 12 | P49: 13 | Q49: 14 | R49: 15 | S49: 16 | T49: 17 | U49: 18 | V49: 19 | W49: 20 | X49: 21 | Y49: 22 | Z49: 23 | AA49: 24 | AB49: =AA49+1 -> 25
B50: ='01. PC'!$C$24 -> Básico | C50: 1 | D50: =IF(D78=1,1,0) -> 1 | E50: =IF(E78=1,1,D50+1) -> 2 | F50: 3 | G50: 4 | H50: 5 | I50: 6 | J50: 7 | K50: 8 | L50: 9 | M50: 10 | N50: 11 | O50: 12 | P50: 13 | Q50: 14 | R50: 15 | S50: 16 | T50: 17 | U50: 18 | V50: 19 | W50: 20 | X50: 21 | Y50: 22 | Z50: 23 | AA50: 24 | AB50: 25
B51: TOTAL | D51: =SUM(D50:D50) -> 1 | E51: 2 | F51: 3 | G51: 4 | H51: 5 | I51: 6 | J51: 7 | K51: 8 | L51: 9 | M51: 10 | N51: 11 | O51: 12 | P51: 13 | Q51: 14 | R51: 15 | S51: 16 | T51: 17 | U51: 18 | V51: 19 | W51: 20 | X51: 21 | Y51: 22 | Z51: 23 | AA51: 24 | AB51: 25
B53: FROTA - VALOR CONTÁBIL
B54: TIPO | C54: QUANT. | D54: 1 | E54: =D54+1 -> 2 | F54: =E54+1 -> 3 | G54: 4 | H54: 5 | I54: 6 | J54: 7 | K54: 8 | L54: 9 | M54: 10 | N54: 11 | O54: 12 | P54: 13 | Q54: 14 | R54: 15 | S54: 16 | T54: 17 | U54: 18 | V54: 19 | W54: 20 | X54: 21 | Y54: 22 | Z54: 23 | AA54: 24 | AB54: =AA54+1 -> 25
B55: ='01. PC'!$C$24 -> Básico | C55: 1 | D55: =IFERROR(D27*(1-VLOOKUP((D50),$AE$56:$AG$73,3,0)),0) -> 381278.25 | E55: 218980.8083 | F55: 93362.33415 | G55: 0 | H55: 0 | I55: 0 | J55: 0 | K55: 0 | L55: 0 | M55: 0 | N55: 0 | O55: 0 | P55: 0 | Q55: 0 | R55: 0 | S55: 0 | T55: 0 | U55: 0 | V55: 0 | W55: 0 | X55: 0 | Y55: 0 | Z55: 0 | AA55: 0 | AB55: 0
AE56: VENDA - BÁSICO
AE57: ANO | AF57: ANUAL | AG57: ACUM.
AE58: 0 | AF58: 0 | AG58: =AF58 -> 0
AE59: 1 | AF59: 0.25 | AG59: =AG58+AF59 -> 0.25
AE60: 2 | AF60: 0.25 | AG60: =AG59+AF60 -> 0.5
AE61: 3 | AF61: 0.25 | AG61: 0.75
AE62: 4 | AF62: 0.25 | AG62: 1
AE63: 5 | AF63: 0 | AG63: 1
AE64: 6 | AF64: 0 | AG64: 1
AE65: 7 | AF65: 0 | AG65: 1
AE66: 8 | AF66: 0 | AG66: 1
AE67: 9 | AF67: 0 | AG67: 1
AE68: 10 | AF68: 0 | AG68: 1
AE69: =AE68+1 -> 11 | AF69: 0 | AG69: 1
AE70: =AE69+1 -> 12 | AF70: 0 | AG70: 1
AE71: =AE70+1 -> 13 | AF71: 0 | AG71: 1
AE72: =AE71+1 -> 14 | AF72: 0 | AG72: 1
AE73: =AE72+1 -> 15 | AF73: 0 | AG73: 1
B74: TOTAL | D74: =SUM(D55:D73) -> 381278.25 | E74: 218980.8083 | F74: 93362.33415 | G74: 0 | H74: 0 | I74: 0 | J74: 0 | K74: 0 | L74: 0 | M74: 0 | N74: 0 | O74: 0 | P74: 0 | Q74: 0 | R74: 0 | S74: 0 | T74: 0 | U74: 0 | V74: 0 | W74: 0 | X74: 0 | Y74: 0 | Z74: 0 | AA74: 0 | AB74: 0
B76: REFERÊNCIA DE COMPRA
B77: TIPO | C77: QUANT. | D77: 1 | E77: =D77+1 -> 2 | F77: =E77+1 -> 3 | G77: 4 | H77: 5 | I77: 6 | J77: 7 | K77: 8 | L77: 9 | M77: 10 | N77: 11 | O77: 12 | P77: 13 | Q77: 14 | R77: 15 | S77: 16 | T77: 17 | U77: 18 | V77: 19 | W77: 20 | X77: 21 | Y77: 22 | Z77: 23 | AA77: 24 | AB77: =AA77+1 -> 25
B78: ='01. PC'!$C$24 -> Básico | C78: 1 | D78: =IF(D14<>"",1,0) -> 1 | E78: =IF(Prazo<E$77,0,IF(OR(E14="",E14<>0),0,1)) -> 0 | F78: 0 | G78: 0 | H78: 0 | I78: 0 | J78: 0 | K78: 0 | L78: 0 | M78: 0 | N78: 0 | O78: 0 | P78: 0 | Q78: 0 | R78: 0 | S78: 0 | T78: 0 | U78: 0 | V78: 0 | W78: 0 | X78: 0 | Y78: 0 | Z78: 0 | AA78: 0 | AB78: 0
B79: TOTAL | D79: =SUM(D78:D78) -> 1 | E79: 0 | F79: 0 | G79: 0 | H79: 0 | I79: 0 | J79: 0 | K79: 0 | L79: 0 | M79: 0 | N79: 0 | O79: 0 | P79: 0 | Q79: 0 | R79: 0 | S79: 0 | T79: 0 | U79: 0 | V79: 0 | W79: 0 | X79: 0 | Y79: 0 | Z79: 0 | AA79: 0 | AB79: 0
B81: FROTA VALOR COMPRA
B82: TIPO | C82: QUANT. | D82: 1 | E82: =D82+1 -> 2 | F82: =E82+1 -> 3 | G82: 4 | H82: 5 | I82: 6 | J82: 7 | K82: 8 | L82: 9 | M82: 10 | N82: 11 | O82: 12 | P82: 13 | Q82: 14 | R82: 15 | S82: 16 | T82: 17 | U82: 18 | V82: 19 | W82: 20 | X82: 21 | Y82: 22 | Z82: 23 | AA82: 24 | AB82: =AA82+1 -> 25
B83: ='01. PC'!$C$24 -> Básico | C83: 1 | D83: =IF(D78=1,D27,0) -> 508371 | E83: 0 | F83: 0 | G83: 0 | H83: 0 | I83: 0 | J83: 0 | K83: 0 | L83: 0 | M83: 0 | N83: 0 | O83: 0 | P83: 0 | Q83: 0 | R83: 0 | S83: 0 | T83: 0 | U83: 0 | V83: 0 | W83: 0 | X83: 0 | Y83: 0 | Z83: 0 | AA83: 0 | AB83: 0
B84: TOTAL | D84: =SUM(D83:D83) -> 508371 | E84: 0 | F84: 0 | G84: 0 | H84: 0 | I84: 0 | J84: 0 | K84: 0 | L84: 0 | M84: 0 | N84: 0 | O84: 0 | P84: 0 | Q84: 0 | R84: 0 | S84: 0 | T84: 0 | U84: 0 | V84: 0 | W84: 0 | X84: 0 | Y84: 0 | Z84: 0 | AA84: 0 | AB84: 0 | AE84: RISCO
B86: ='01. PC'!$C$24 -> Básico | D86: =SUM(D83:D83)/10^6*(1+$AE$86) -> 0.508371 | E86: 0 | F86: 0 | G86: 0 | H86: 0 | I86: 0 | J86: 0 | K86: 0 | L86: 0 | M86: 0 | N86: 0 | O86: 0 | P86: 0 | Q86: 0 | R86: 0 | S86: 0 | T86: 0 | U86: 0 | V86: 0 | W86: 0 | X86: 0 | Y86: 0 | Z86: 0 | AA86: 0 | AB86: 0 | AE86: ='09. SENSIBILIDADE'!$C$10 -> 0
B87: TOTAL | D87: =SUM(D86:D86) -> 0.508371 | E87: 0 | F87: 0 | G87: 0 | H87: 0 | I87: 0 | J87: 0 | K87: 0 | L87: 0 | M87: 0 | N87: 0 | O87: 0 | P87: 0 | Q87: 0 | R87: 0 | S87: 0 | T87: 0 | U87: 0 | V87: 0 | W87: 0 | X87: 0 | Y87: 0 | Z87: 0 | AA87: 0 | AB87: 0
B89: REFERÊNCIA DE VENDA
B90: TIPO | C90: QUANT. | D90: 1 | E90: =D90+1 -> 2 | F90: =E90+1 -> 3 | G90: 4 | H90: 5 | I90: 6 | J90: 7 | K90: 8 | L90: 9 | M90: 10 | N90: 11 | O90: 12 | P90: 13 | Q90: 14 | R90: 15 | S90: 16 | T90: 17 | U90: 18 | V90: 19 | W90: 20 | X90: 21 | Y90: 22 | Z90: 23 | AA90: 24 | AB90: =AA90+1 -> 25
B91: ='01. PC'!$C$24 -> Básico | C91: 1 | D91: 0 | E91: =IF(Prazo<E$90,0,IF(E14<D14,1,0)) -> 0 | F91: =IF(Prazo=F$90,IF(F14<>E14,1,0),IF(F14<E14,1,0)) -> 0 | G91: 0 | H91: 0 | I91: 0 | J91: 0 | K91: 0 | L91: 0 | M91: 1 | N91: 0 | O91: 0 | P91: 0 | Q91: 0 | R91: 0 | S91: 0 | T91: 1 | U91: 0 | V91: 0 | W91: 0 | X91: 0 | Y91: 0 | Z91: 0 | AA91: 0 | AB91: 0
B92: TOTAL | D92: =SUM(D91:D91) -> 0 | E92: 0 | F92: 0 | G92: 0 | H92: 0 | I92: 0 | J92: 0 | K92: 0 | L92: 0 | M92: 1 | N92: 0 | O92: 0 | P92: 0 | Q92: 0 | R92: 0 | S92: 0 | T92: 1 | U92: 0 | V92: 0 | W92: 0 | X92: 0 | Y92: 0 | Z92: 0 | AA92: 0 | AB92: 0
B94: VALOR BRUTO DE VENDA
B95: TIPO | C95: QUANT. | D95: 1 | E95: =D95+1 -> 2 | F95: =E95+1 -> 3 | G95: 4 | H95: 5 | I95: 6 | J95: 7 | K95: 8 | L95: 9 | M95: 10 | N95: 11 | O95: 12 | P95: 13 | Q95: 14 | R95: 15 | S95: 16 | T95: 17 | U95: 18 | V95: 19 | W95: 20 | X95: 21 | Y95: 22 | Z95: 23 | AA95: 24 | AB95: =AA95+1 -> 25
B96: ='01. PC'!$C$24 -> Básico | C96: 1 | D96: =IF(D91=1,C27,0) -> 0 | E96: 0 | F96: 0 | G96: 0 | H96: 0 | I96: 0 | J96: 0 | K96: 0 | L96: 0 | M96: 109503.1134 | N96: 0 | O96: 0 | P96: 0 | Q96: 0 | R96: 0 | S96: 0 | T96: 0 | U96: 0 | V96: 0 | W96: 0 | X96: 0 | Y96: 0 | Z96: 0 | AA96: 0 | AB96: 0
B97: TOTAL | D97: =SUM(D96:D96) -> 0 | E97: 0 | F97: 0 | G97: 0 | H97: 0 | I97: 0 | J97: 0 | K97: 0 | L97: 0 | M97: 109503.1134 | N97: 0 | O97: 0 | P97: 0 | Q97: 0 | R97: 0 | S97: 0 | T97: 0 | U97: 0 | V97: 0 | W97: 0 | X97: 0 | Y97: 0 | Z97: 0 | AA97: 0 | AB97: 0
B99: IR SOBRE A VENDA
B100: TIPO | C100: QUANT. | D100: 1 | E100: =D100+1 -> 2 | F100: =E100+1 -> 3 | G100: 4 | H100: 5 | I100: 6 | J100: 7 | K100: 8 | L100: 9 | M100: 10 | N100: 11 | O100: 12 | P100: 13 | Q100: 14 | R100: 15 | S100: 16 | T100: 17 | U100: 18 | V100: 19 | W100: 20 | X100: 21 | Y100: 22 | Z100: 23 | AA100: 24 | AB100: =AA100+1 -> 25
B101: ='01. PC'!$C$24 -> Básico | C101: 1 | D101: 0 | E101: =IF(E96-D55>0,0.34*(E96-D55),0) -> 0 | F101: 0 | G101: 0 | H101: 0 | I101: 0 | J101: 0 | K101: 0 | L101: 0 | M101: 37231.05856 | N101: 0 | O101: 0 | P101: 0 | Q101: 0 | R101: 0 | S101: 0 | T101: 0 | U101: 0 | V101: 0 | W101: 0 | X101: 0 | Y101: 0 | Z101: 0 | AA101: 0 | AB101: 0
B102: TOTAL | D102: =SUM(D101:D101) -> 0 | E102: 0 | F102: 0 | G102: 0 | H102: 0 | I102: 0 | J102: 0 | K102: 0 | L102: 0 | M102: 37231.05856 | N102: 0 | O102: 0 | P102: 0 | Q102: 0 | R102: 0 | S102: 0 | T102: 0 | U102: 0 | V102: 0 | W102: 0 | X102: 0 | Y102: 0 | Z102: 0 | AA102: 0 | AB102: 0
B104: VALOR DE VENDA LÍQUIDO
B105: TIPO | C105: QUANT. | D105: 1 | E105: =D105+1 -> 2 | F105: =E105+1 -> 3 | G105: 4 | H105: 5 | I105: 6 | J105: 7 | K105: 8 | L105: 9 | M105: 10 | N105: 11 | O105: 12 | P105: 13 | Q105: 14 | R105: 15 | S105: 16 | T105: 17 | U105: 18 | V105: 19 | W105: 20 | X105: 21 | Y105: 22 | Z105: 23 | AA105: 24 | AB105: =AA105+1 -> 25
B106: ='01. PC'!$C$24 -> Básico | C106: 1 | D106: 0 | E106: =E96-E101 -> 0 | F106: 0 | G106: 0 | H106: 0 | I106: 0 | J106: 0 | K106: 0 | L106: 0 | M106: 72272.05484 | N106: 0 | O106: 0 | P106: 0 | Q106: 0 | R106: 0 | S106: 0 | T106: 0 | U106: 0 | V106: 0 | W106: 0 | X106: 0 | Y106: 0 | Z106: 0 | AA106: 0 | AB106: 0
B107: TOTAL | D107: =SUM(D106:D106) -> 0 | E107: 0 | F107: 0 | G107: 0 | H107: 0 | I107: 0 | J107: 0 | K107: 0 | L107: 0 | M107: 72272.05484 | N107: 0 | O107: 0 | P107: 0 | Q107: 0 | R107: 0 | S107: 0 | T107: 0 | U107: 0 | V107: 0 | W107: 0 | X107: 0 | Y107: 0 | Z107: 0 | AA107: 0 | AB107: 0
B108: TOTAL - FCL | D108: =D107/10^6 -> 0 | E108: =E107/10^6 -> 0 | F108: 0 | G108: 0 | H108: 0 | I108: 0 | J108: 0 | K108: 0 | L108: 0 | M108: 0.07227205484 | N108: 0 | O108: 0 | P108: 0 | Q108: 0 | R108: 0 | S108: 0 | T108: 0 | U108: 0 | V108: 0 | W108: 0 | X108: 0 | Y108: 0 | Z108: 0 | AA108: 0 | AB108: 0

Sheet 06. OPEX
B6: Opex (R$ Milhões)
B8: Opex | C8: 1 | D8: =C8+1 -> 2 | E8: 3 | F8: 4 | G8: 5 | H8: 6 | I8: 7 | J8: 8 | K8: 9 | L8: 10 | N8: TOTAL | P8: RISCO
B10: Custo Variável | C10: =(C19+C25+C29+C40+C34+C45+C51+C56+C62)*'03. D&A Fiscal'!C11 -> 0.4608030262 | D10: =(D19+D25+D29+D40+D34+D45+D51+D56+D62)*'03. D&A Fiscal'!D11 -> 0.4608030262 | E10: =(E19+E25+E29+E40+E34+E45+E51+E56+E62)*'03. D&A Fiscal'!E11 -> 0.4608030262 | F10: =(F19+F25+F29+F40+F34+F45+F51+F56+F62)*'03. D&A Fiscal'!F11 -> 0.4608030262 | G10: =(G19+G25+G29+G40+G34+G45+G51+G56+G62)*'03. D&A Fiscal'!G11 -> 0.4608030262 | H10: =(H19+H25+H29+H40+H34+H45+H51+H56+H62)*'03. D&A Fiscal'!H11 -> 0.4608030262 | I10: =(I19+I25+I29+I40+I34+I45+I51+I56+I62)*'03. D&A Fiscal'!I11 -> 0.4608030262 | J10: =(J19+J25+J29+J40+J34+J45+J51+J56+J62)*'03. D&A Fiscal'!J11 -> 0.4608030262 | K10: =(K19+K25+K29+K40+K34+K45+K51+K56+K62)*'03. D&A Fiscal'!K11 -> 0.4608030262 | L10: =(L19+L25+L29+L40+L34+L45+L51+L56+L62)*'03. D&A Fiscal'!L11 -> 0.4608030262 | N10: =SUM(C10:L10) -> 4.608030262
B12: Frota Patrimonial | C12: =SUM(C13:C13) -> 1 | D12: 1 | E12: 1 | F12: 1 | G12: 1 | H12: 1 | I12: 1 | J12: 1 | K12: 1 | L12: 1 | N12: =SUM(C12:L12) -> 10
B13: ='01. PC'!$C$24 -> Básico | C13: ='05. CAPEX'!D9 -> 1 | D13: ='05. CAPEX'!E9 -> 1 | E13: ='05. CAPEX'!F9 -> 1 | F13: ='05. CAPEX'!G9 -> 1 | G13: ='05. CAPEX'!H9 -> 1 | H13: ='05. CAPEX'!I9 -> 1 | I13: ='05. CAPEX'!J9 -> 1 | J13: ='05. CAPEX'!K9 -> 1 | K13: ='05. CAPEX'!L9 -> 1 | L13: ='05. CAPEX'!M9 -> 1
B15: Frota Operacional | C15: =C16 -> 1 | D15: =D16 -> 1 | E15: 1 | F15: 1 | G15: 1 | H15: 1 | I15: 1 | J15: 1 | K15: 1 | L15: 1 | N15: =SUM(C15:L15) -> 10
B16: ='01. PC'!$C$24 -> Básico | C16: =ROUND((C17*C13),0) -> 1 | D16: 1 | E16: 1 | F16: 1 | G16: 1 | H16: 1 | I16: 1 | J16: 1 | K16: 1 | L16: 1
B17: Percentual | C17: 0.9387755102 | D17: 0.9473684211 | E17: 0.9310344828 | F17: 0.9310344828 | G17: 0.9310344828 | H17: 0.9310344828 | I17: 0.9310344828 | J17: 0.9310344828 | K17: 0.9310344828 | L17: 0.9310344828
B19: Combustível | C19: =(C20)*(1+VLOOKUP($B19,$B$157:$L$178,1+C$8,0))/10^6*(1+$P$19) -> 0.149530017 | D19: 0.149530017 | E19: 0.149530017 | F19: 0.149530017 | G19: 0.149530017 | H19: 0.149530017 | I19: 0.149530017 | J19: 0.149530017 | K19: 0.149530017 | L19: 0.149530017 | N19: =SUM(C19:L19) -> 1.49530017 | P19: ='09. SENSIBILIDADE'!$C$8 -> 0
B20: ='01. PC'!$C$24 -> Básico | C20: =C16*C21*C22*C23 -> 149530.017 | D20: 149530.017 | E20: 149530.017 | F20: 149530.017 | G20: 149530.017 | H20: 149530.017 | I20: 149530.017 | J20: 149530.017 | K20: 149530.017 | L20: 149530.017 | N20: =SUM(C20:L20) -> 1495300.17
B21: Quantidade KM | C21: 78247 | D21: =C21 -> 78247 | E21: =D21 -> 78247 | F21: 78247 | G21: 78247 | H21: 78247 | I21: 78247 | J21: 78247 | K21: 78247 | L21: 78247
B22: Preço do diesel | C22: 4.9 | D22: =C22 -> 4.9 | E22: =D22 -> 4.9 | F22: 4.9 | G22: 4.9 | H22: 4.9 | I22: 4.9 | J22: 4.9 | K22: 4.9 | L22: 4.9
B23: Consumo | C23: 0.39 | D23: =C23 -> 0.39 | E23: 0.39 | F23: 0.39 | G23: 0.39 | H23: 0.39 | I23: 0.39 | J23: 0.39 | K23: 0.39 | L23: 0.39
B25: Lubrificante Diesel | C25: =(C26)*(1+VLOOKUP($B25,$B$157:$L$178,1+C$8,0))/10^6*(1+$P$25) -> 0.009719451105 | D25: 0.009719451105 | E25: 0.009719451105 | F25: 0.009719451105 | G25: 0.009719451105 | H25: 0.009719451105 | I25: 0.009719451105 | J25: 0.009719451105 | K25: 0.009719451105 | L25: 0.009719451105 | N25: =SUM(C25:L25) -> 0.09719451105 | P25: ='09. SENSIBILIDADE'!$C$8 -> 0
B26: ='01. PC'!$C$24 -> Básico | C26: =C20*C27 -> 9719.451105 | D26: 9719.451105 | E26: 9719.451105 | F26: 9719.451105 | G26: 9719.451105 | H26: 9719.451105 | I26: 9719.451105 | J26: 9719.451105 | K26: 9719.451105 | L26: 9719.451105 | N26: =SUM(C26:L26) -> 97194.51105
B27: Percentual | C27: 0.065 | D27: =C27 -> 0.065 | E27: =D27 -> 0.065 | F27: 0.065 | G27: 0.065 | H27: 0.065 | I27: 0.065 | J27: 0.065 | K27: 0.065 | L27: 0.065
B29: Arla 32 | C29: =(C32)*(1+VLOOKUP($B29,$B$157:$L$178,1+C$8,0))/10^6*(1+$P$29) -> 2e-08 | D29: 2e-08 | E29: 2e-08 | F29: 2e-08 | G29: 2e-08 | H29: 2e-08 | I29: 2e-08 | J29: 2e-08 | K29: 2e-08 | L29: 2e-08 | N29: =SUM(C29:L29) -> 2e-07 | P29: ='09. SENSIBILIDADE'!$C$8 -> 0
B30: ='01. PC'!$C$24 -> Básico | C30: =C31*C32 -> 2990.60034 | D30: =D31*D32 -> 2990.60034 | E30: 2990.60034 | F30: 2990.60034 | G30: 2990.60034 | H30: 2990.60034 | I30: 2990.60034 | J30: 2990.60034 | K30: 2990.60034 | L30: 2990.60034 | N30: =SUM(C30:L30) -> 29906.0034
B31: Combustível | C31: =C20 -> 149530.017 | D31: =D20 -> 149530.017 | E31: 149530.017 | F31: 149530.017 | G31: 149530.017 | H31: 149530.017 | I31: 149530.017 | J31: 149530.017 | K31: 149530.017 | L31: 149530.017
B32: Percentual | C32: 0.02 | D32: =C32 -> 0.02 | E32: =D32 -> 0.02 | F32: 0.02 | G32: 0.02 | H32: 0.02 | I32: 0.02 | J32: 0.02 | K32: 0.02 | L32: 0.02
B34: Rodagem | C34: =(C35)*(1+VLOOKUP($B34,$B$157:$L$178,1+C$8,0))/10^6*(1+$P$34) -> 0.015023424 | D34: 0.015023424 | E34: 0.015023424 | F34: 0.015023424 | G34: 0.015023424 | H34: 0.015023424 | I34: 0.015023424 | J34: 0.015023424 | K34: 0.015023424 | L34: 0.015023424 | N34: =SUM(C34:L34) -> 0.15023424 | P34: ='09. SENSIBILIDADE'!$C$8 -> 0
B35: ='01. PC'!$C$24 -> Básico | C35: =C36*C37/C38 -> 15023.424 | D35: =D36*D37/D38 -> 15023.424 | E35: 15023.424 | F35: 15023.424 | G35: 15023.424 | H35: 15023.424 | I35: 15023.424 | J35: 15023.424 | K35: 15023.424 | L35: 15023.424 | N35: =SUM(C35:L35) -> 150234.24
B36: Quantidade Km total | C36: =C16*C21 -> 78247 | D36: 78247 | E36: 78247 | F36: 78247 | G36: 78247 | H36: 78247 | I36: 78247 | J36: 78247 | K36: 78247 | L36: 78247
B37: Preço Jogo e Recaps | C37: 24000 | D37: =C37 -> 24000 | E37: =D37 -> 24000 | F37: 24000 | G37: 24000 | H37: 24000 | I37: 24000 | J37: 24000 | K37: 24000 | L37: 24000
B38: Km Duração jogo Pneus e Recaps | C38: 125000 | D38: =C38 -> 125000 | E38: =D38 -> 125000 | F38: 125000 | G38: 125000 | H38: 125000 | I38: 125000 | J38: 125000 | K38: 125000 | L38: 125000
B40: Peças e Materiais de Manutenção | C40: =(C41)*(1+VLOOKUP($B40,$B$157:$L$178,1+C$8,0))/10^6*(1+$P$40) -> 0.04066968 | D40: 0.04066968 | E40: 0.04066968 | F40: 0.04066968 | G40: 0.04066968 | H40: 0.04066968 | I40: 0.04066968 | J40: 0.04066968 | K40: 0.04066968 | L40: 0.04066968 | N40: =SUM(C40:L40) -> 0.4066968 | P40: ='09. SENSIBILIDADE'!$C$8 -> 0
B41: ='01. PC'!$C$24 -> Básico | C41: =C13*C42*C43 -> 40669.68 | D41: 40669.68 | E41: 40669.68 | F41: 40669.68 | G41: 40669.68 | H41: 40669.68 | I41: 40669.68 | J41: 40669.68 | K41: 40669.68 | L41: 40669.68 | N41: =SUM(C41:L41) -> 406696.8
B42: Preço Unitário | C42: ='05. CAPEX'!$AF$22 -> 508371 | D42: ='05. CAPEX'!$AF$22 -> 508371 | E42: ='05. CAPEX'!$AF$22 -> 508371 | F42: ='05. CAPEX'!$AF$22 -> 508371 | G42: ='05. CAPEX'!$AF$22 -> 508371 | H42: ='05. CAPEX'!$AF$22 -> 508371 | I42: ='05. CAPEX'!$AF$22 -> 508371 | J42: ='05. CAPEX'!$AF$22 -> 508371 | K42: ='05. CAPEX'!$AF$22 -> 508371 | L42: ='05. CAPEX'!$AF$22 -> 508371
B43: Porcent. Do Preço Ônibus Novo | C43: 0.08 | D43: =C43 -> 0.08 | E43: =D43 -> 0.08 | F43: 0.08 | G43: 0.08 | H43: 0.08 | I43: 0.08 | J43: 0.08 | K43: 0.08 | L43: 0.08
B45: Motoristas - Direção | C45: =(C46)*(1+VLOOKUP($B45,$B$157:$L$178,1+C$8,0))/10^6*(1+$P$45) -> 0.122236283 | D45: 0.122236283 | E45: 0.122236283 | F45: 0.122236283 | G45: 0.122236283 | H45: 0.122236283 | I45: 0.122236283 | J45: 0.122236283 | K45: 0.122236283 | L45: 0.122236283 | N45: =SUM(C45:L45) -> 1.22236283 | P45: ='09. SENSIBILIDADE'!$C$8 -> 0
B46: ='01. PC'!$C$24 -> Básico | C46: =C16*C47*C48*(1+C49) -> 122236.283 | D46: 122236.283 | E46: 122236.283 | F46: 122236.283 | G46: 122236.283 | H46: 122236.283 | I46: 122236.283 | J46: 122236.283 | K46: 122236.283 | L46: 122236.283 | N46: =SUM(C46:L46) -> 1222362.83
B47: Salário anual | C47: =1964.2*12 -> 23570.4 | D47: =C47 -> 23570.4 | E47: =D47 -> 23570.4 | F47: 23570.4 | G47: 23570.4 | H47: 23570.4 | I47: 23570.4 | J47: 23570.4 | K47: 23570.4 | L47: 23570.4
B48: Empregados Equiv/ Carro | C48: 3.1622 | D48: =C48 -> 3.1622 | E48: 3.1622 | F48: 3.1622 | G48: 3.1622 | H48: 3.1622 | I48: 3.1622 | J48: 3.1622 | K48: 3.1622 | L48: 3.1622
B49: Encargos Sociais | C49: 0.64 | D49: =C49 -> 0.64 | E49: =D49 -> 0.64 | F49: =E49 -> 0.64 | G49: =F49 -> 0.64 | H49: =G49 -> 0.64 | I49: =H49 -> 0.64 | J49: =I49 -> 0.64 | K49: =J49 -> 0.64 | L49: =K49 -> 0.64
B51: Motoristas - Cobrança | C51: =(C52)*(1+VLOOKUP($B51,$B$157:$L$178,1+C$8,0))/10^6*(1+$P$51) -> 0 | D51: 0 | E51: 0 | F51: 0 | G51: 0 | H51: 0 | I51: 0 | J51: 0 | K51: 0 | L51: 0 | N51: =SUM(C51:L51) -> 0 | P51: ='09. SENSIBILIDADE'!$C$8 -> 0
B52: ='01. PC'!$C$24 -> Básico | C52: =C16*C53*C54 -> 0 | D52: 0 | E52: 0 | F52: 0 | G52: 0 | H52: 0 | I52: 0 | J52: 0 | K52: 0 | L52: 0 | N52: =SUM(C52:L52) -> 0
B53: Fator de Utilização | C53: 0 | D53: =C53 -> 0 | E53: =D53 -> 0 | F53: 0 | G53: 0 | H53: 0 | I53: 0 | J53: 0 | K53: 0 | L53: 0
B54: Salários e Encargos | C54: 0 | D54: =C54 -> 0 | E54: 0 | F54: 0 | G54: 0 | H54: 0 | I54: 0 | J54: 0 | K54: 0 | L54: 0
B56: Cobradores | C56: =(C57)*(1+VLOOKUP($B56,$B$157:$L$178,1+C$8,0))/10^6*(1+$P$56) -> 0.07322415112 | D56: 0.07322415112 | E56: 0.07322415112 | F56: 0.07322415112 | G56: 0.07322415112 | H56: 0.07322415112 | I56: 0.07322415112 | J56: 0.07322415112 | K56: 0.07322415112 | L56: 0.07322415112 | N56: =SUM(C56:L56) -> 0.7322415112 | P56: ='09. SENSIBILIDADE'!$C$8 -> 0
B57: ='01. PC'!$C$24 -> Básico | C57: =C16*C58*C59*(1+C60) -> 73224.15112 | D57: 73224.15112 | E57: 73224.15112 | F57: 73224.15112 | G57: 73224.15112 | H57: 73224.15112 | I57: 73224.15112 | J57: 73224.15112 | K57: 73224.15112 | L57: 73224.15112 | N57: =SUM(C57:L57) -> 732241.5112
B58: Fator de Utilização (equivalente) | C58: =C48 -> 3.1622 | D58: =C58 -> 3.1622 | E58: =D58 -> 3.1622 | F58: 3.1622 | G58: 3.1622 | H58: 3.1622 | I58: 3.1622 | J58: 3.1622 | K58: 3.1622 | L58: 3.1622
B59: Salário anual | C59: =1176.63*12 -> 14119.56 | D59: =C59 -> 14119.56 | E59: 14119.56 | F59: 14119.56 | G59: 14119.56 | H59: 14119.56 | I59: 14119.56 | J59: 14119.56 | K59: 14119.56 | L59: 14119.56
B60: Encargos Sociais | C60: 0.64 | D60: =C60 -> 0.64 | E60: 0.64 | F60: 0.64 | G60: 0.64 | H60: 0.64 | I60: 0.64 | J60: 0.64 | K60: 0.64 | L60: 0.64
B62: Benefícios Trabalhistas | C62: =(C63)*(1+VLOOKUP($B62,$B$157:$L$178,1+C$8,0))/10^6*(1+$P$62) -> 0.0504 | D62: 0.0504 | E62: 0.0504 | F62: 0.0504 | G62: 0.0504 | H62: 0.0504 | I62: 0.0504 | J62: 0.0504 | K62: 0.0504 | L62: 0.0504 | N62: =SUM(C62:L62) -> 0.504 | P62: ='09. SENSIBILIDADE'!$C$8 -> 0
B63: ='01. PC'!$C$24 -> Básico | C63: =C16*C64*C65 -> 50400 | D63: 50400 | E63: 50400 | F63: 50400 | G63: 50400 | H63: 50400 | I63: 50400 | J63: 50400 | K63: 50400 | L63: 50400 | N63: =SUM(C63:L63) -> 504000
B64: Fator de Utilização | C64: 6 | D64: =C64 -> 6 | E64: =D64 -> 6 | F64: 6 | G64: 6 | H64: 6 | I64: 6 | J64: 6 | K64: 6 | L64: 6
B65: Benefício Anual | C65: 8400 | D65: =C65 -> 8400 | E65: 8400 | F65: 8400 | G65: 8400 | H65: 8400 | I65: 8400 | J65: 8400 | K65: 8400 | L65: 8400
B67: Custo Fixo | C67: =(C69+C73+C77+C82+C86+C91+C95+C100+C105+C110+C115+C123+C119)*'03. D&A Fiscal'!C11 -> 0.1413143443 | D67: =(D69+D73+D77+D82+D86+D91+D95+D100+D105+D110+D115+D123+D119)*'03. D&A Fiscal'!D11 -> 0.1413143443 | E67: =(E69+E73+E77+E82+E86+E91+E95+E100+E105+E110+E115+E123+E119)*'03. D&A Fiscal'!E11 -> 0.1413143443 | F67: =(F69+F73+F77+F82+F86+F91+F95+F100+F105+F110+F115+F123+F119)*'03. D&A Fiscal'!F11 -> 0.1413143443 | G67: =(G69+G73+G77+G82+G86+G91+G95+G100+G105+G110+G115+G123+G119)*'03. D&A Fiscal'!G11 -> 0.1413143443 | H67: =(H69+H73+H77+H82+H86+H91+H95+H100+H105+H110+H115+H123+H119)*'03. D&A Fiscal'!H11 -> 0.1413143443 | I67: =(I69+I73+I77+I82+I86+I91+I95+I100+I105+I110+I115+I123+I119)*'03. D&A Fiscal'!I11 -> 0.1413143443 | J67: =(J69+J73+J77+J82+J86+J91+J95+J100+J105+J110+J115+J123+J119)*'03. D&A Fiscal'!J11 -> 0.1413143443 | K67: =(K69+K73+K77+K82+K86+K91+K95+K100+K105+K110+K115+K123+K119)*'03. D&A Fiscal'!K11 -> 0.1413143443 | L67: =(L69+L73+L77+L82+L86+L91+L95+L100+L105+L110+L115+L123+L119)*'03. D&A Fiscal'!L11 -> 0.1413143443 | N67: =SUM(C67:L67) -> 1.413143443
B69: Operação da Frota Auxiliar (Serviços) | C69: =(C70*C71)*(1+VLOOKUP($B69,$B$157:$L$178,1+C$8,0))*(1+$P$69) -> 0.007943603963 | D69: 0.007943603963 | E69: 0.007943603963 | F69: 0.007943603963 | G69: 0.007943603963 | H69: 0.007943603963 | I69: 0.007943603963 | J69: 0.007943603963 | K69: 0.007943603963 | L69: 0.007943603963 | N69: =SUM(C69:L69) -> 0.07943603963 | P69: ='09. SENSIBILIDADE'!$C$8 -> 0
B70: Porcentagem | C70: 0.015 | D70: =C70 -> 0.015 | E70: =D70 -> 0.015 | F70: 0.015 | G70: 0.015 | H70: 0.015 | I70: 0.015 | J70: 0.015 | K70: 0.015 | L70: 0.015
B71: Custos Específicos | C71: =SUM(C86,C91,C62,C56,C51,C45,C40,C34,C29,C25,C19) -> 0.5295735975 | D71: =D10+D86+D91 -> 0.5295735975 | E71: 0.5295735975 | F71: 0.5295735975 | G71: 0.5295735975 | H71: 0.5295735975 | I71: 0.5295735975 | J71: 0.5295735975 | K71: 0.5295735975 | L71: 0.5295735975
B73: Operac. e Manut. Infra Garagem | C73: =(C74*C75*C12)*(1+VLOOKUP($B73,$B$157:$L$178,1+C$8,0))/10^6*(1+$P$73) -> 0.0020468 | D73: 0.0020468 | E73: 0.0020468 | F73: 0.0020468 | G73: 0.0020468 | H73: 0.0020468 | I73: 0.0020468 | J73: 0.0020468 | K73: 0.0020468 | L73: 0.0020468 | N73: =SUM(C73:L73) -> 0.020468 | P73: ='09. SENSIBILIDADE'!$C$8 -> 0
B74: Porcentagem | C74: 0.0043 | D74: =C74 -> 0.0043 | E74: =D74 -> 0.0043 | F74: 0.0043 | G74: 0.0043 | H74: 0.0043 | I74: 0.0043 | J74: 0.0043 | K74: 0.0043 | L74: 0.0043
B75: Preço do Ônibus Básico S/ ITS | C75: ='05. CAPEX'!$AF$23 -> 476000 | D75: =C75 -> 476000 | E75: 476000 | F75: 476000 | G75: 476000 | H75: 476000 | I75: 476000 | J75: 476000 | K75: 476000 | L75: 476000
B77: Operação de ITS | C77: =(C78*C79*C80)*(1+VLOOKUP($B77,$B$157:$L$178,1+C$8,0))/10^6*(1+$P$77) -> 0.006188 | D77: 0.006188 | E77: 0.006188 | F77: 0.006188 | G77: 0.006188 | H77: 0.006188 | I77: 0.006188 | J77: 0.006188 | K77: 0.006188 | L77: 0.006188 | N77: =SUM(C77:L77) -> 0.06188 | P77: ='09. SENSIBILIDADE'!$C$8 -> 0
B78: Porcentagem anual | C78: 0.013 | D78: =C78 -> 0.013 | E78: =D78 -> 0.013 | F78: 0.013 | G78: 0.013 | H78: 0.013 | I78: 0.013 | J78: 0.013 | K78: 0.013 | L78: 0.013
B79: Preço do Ônibus Básico S/ ITS | C79: ='05. CAPEX'!$AF$23 -> 476000 | D79: =C79 -> 476000 | E79: 476000 | F79: 476000 | G79: 476000 | H79: 476000 | I79: 476000 | J79: 476000 | K79: 476000 | L79: 476000
B80: Número Ônibus | C80: =C12 -> 1 | D80: 1 | E80: 1 | F80: 1 | G80: 1 | H80: 1 | I80: 1 | J80: 1 | K80: 1 | L80: 1
B82: Operação de Bilhetagem | C82: =(C83*C84)*(1+VLOOKUP($B82,$B$157:$L$178,1+C$8,0))/10^6*(1+$P$82) -> 0.01763608241 | D82: 0.01763608241 | E82: 0.01763608241 | F82: 0.01763608241 | G82: 0.01763608241 | H82: 0.01763608241 | I82: 0.01763608241 | J82: 0.01763608241 | K82: 0.01763608241 | L82: 0.01763608241 | N82: =SUM(C82:L82) -> 0.1763608241 | P82: ='09. SENSIBILIDADE'!$C$8 -> 0
B83: Porcentagem | C83: 0.025 | D83: =C83 -> 0.025 | E83: =D83 -> 0.025 | F83: 0.025 | G83: 0.025 | H83: 0.025 | I83: 0.025 | J83: 0.025 | K83: 0.025 | L83: 0.025
B84: Receita Eletrônica Aprox | C84: ='08. RECEITA E DEMANDA'!C14*10^6 -> 705443.2962 | D84: ='08. RECEITA E DEMANDA'!D14*10^6 -> 705443.2962 | E84: ='08. RECEITA E DEMANDA'!E14*10^6 -> 705443.2962 | F84: ='08. RECEITA E DEMANDA'!F14*10^6 -> 705443.2962 | G84: ='08. RECEITA E DEMANDA'!G14*10^6 -> 705443.2962 | H84: ='08. RECEITA E DEMANDA'!H14*10^6 -> 705443.2962 | I84: ='08. RECEITA E DEMANDA'!I14*10^6 -> 705443.2962 | J84: ='08. RECEITA E DEMANDA'!J14*10^6 -> 705443.2962 | K84: ='08. RECEITA E DEMANDA'!K14*10^6 -> 705443.2962 | L84: ='08. RECEITA E DEMANDA'!L14*10^6 -> 705443.2962
B86: Fiscalização | C86: =(C87*C88*C16)*(1+C89)/10^6 -> 0.0077310912 | D86: 0.0077310912 | E86: 0.0077310912 | F86: 0.0077310912 | G86: 0.0077310912 | H86: 0.0077310912 | I86: 0.0077310912 | J86: 0.0077310912 | K86: 0.0077310912 | L86: 0.0077310912 | N86: =SUM(C86:L86) -> 0.077310912 | P86: ='09. SENSIBILIDADE'!$C$8 -> 0
B87: Salário Anual | C87: =1964.2*12 -> 23570.4 | D87: =C87 -> 23570.4 | E87: =D87 -> 23570.4 | F87: 23570.4 | G87: 23570.4 | H87: 23570.4 | I87: 23570.4 | J87: 23570.4 | K87: 23570.4 | L87: 23570.4
B88: Empregados por ônibus | C88: 0.2 | D88: =C88 -> 0.2 | E88: 0.2 | F88: 0.2 | G88: 0.2 | H88: 0.2 | I88: 0.2 | J88: 0.2 | K88: 0.2 | L88: 0.2
B89: Benefícios Sociais | C89: 0.64 | D89: =C89 -> 0.64 | E89: 0.64 | F89: 0.64 | G89: 0.64 | H89: 0.64 | I89: 0.64 | J89: 0.64 | K89: 0.64 | L89: 0.64
B91: Mão de Obra Manutenção, Adm. e Diretoria | C91: =(C92*C93)*(1+VLOOKUP($B91,$B$157:$L$178,1+C$8,0))*(1+$P$91) -> 0.06103948013 | D91: 0.06103948013 | E91: 0.06103948013 | F91: 0.06103948013 | G91: 0.06103948013 | H91: 0.06103948013 | I91: 0.06103948013 | J91: 0.06103948013 | K91: 0.06103948013 | L91: 0.06103948013 | N91: =SUM(C91:L91) -> 0.6103948013 | P91: ='09. SENSIBILIDADE'!$C$8 -> 0
B92: Porcentagem | C92: 0.2407 | D92: 0.2407 | E92: 0.2407 | F92: 0.2407 | G92: 0.2407 | H92: 0.2407 | I92: 0.2407 | J92: 0.2407 | K92: 0.2407 | L92: 0.2407
B93: Base Anual | C93: =C45+C51+C56+C62+C86 -> 0.2535915253 | D93: 0.2535915253 | E93: 0.2535915253 | F93: 0.2535915253 | G93: 0.2535915253 | H93: 0.2535915253 | I93: 0.2535915253 | J93: 0.2535915253 | K93: 0.2535915253 | L93: 0.2535915253
B95: Despesas Administrativas Gerais | C95: =(C96*C97*C98)*(1+VLOOKUP($B95,$B$157:$L$178,1+C$8,0))/10^6*(1+$P$95) -> 0.01904 | D95: 0.01904 | E95: 0.01904 | F95: 0.01904 | G95: 0.01904 | H95: 0.01904 | I95: 0.01904 | J95: 0.01904 | K95: 0.01904 | L95: 0.01904 | N95: =SUM(C95:L95) -> 0.1904 | P95: ='09. SENSIBILIDADE'!$C$8 -> 0
B96: Percentual | C96: 0.04 | D96: =C96 -> 0.04 | E96: =D96 -> 0.04 | F96: 0.04 | G96: 0.04 | H96: 0.04 | I96: 0.04 | J96: 0.04 | K96: 0.04 | L96: 0.04
B97: Preço do Ônibus Básico S/ ITS | C97: ='05. CAPEX'!$AF$23 -> 476000 | D97: =C97 -> 476000 | E97: 476000 | F97: 476000 | G97: 476000 | H97: 476000 | I97: 476000 | J97: 476000 | K97: 476000 | L97: 476000
B98: Número Ônibus | C98: =C12 -> 1 | D98: 1 | E98: 1 | F98: 1 | G98: 1 | H98: 1 | I98: 1 | J98: 1 | K98: 1 | L98: 1
B100: Locação de Infraestrutura Garagem | C100: =(C101*C102*C103)*(1+VLOOKUP($B100,$B$157:$L$178,1+C$8,0))/10^6*(1+$P$100) -> 0.00952 | D100: 0.00952 | E100: 0.00952 | F100: 0.00952 | G100: 0.00952 | H100: 0.00952 | I100: 0.00952 | J100: 0.00952 | K100: 0.00952 | L100: 0.00952 | N100: =SUM(C100:L100) -> 0.0952 | P100: ='09. SENSIBILIDADE'!$C$8 -> 0
B101: Percentual | C101: 0.02 | D101: =C101 -> 0.02 | E101: =D101 -> 0.02 | F101: 0.02 | G101: 0.02 | H101: 0.02 | I101: 0.02 | J101: 0.02 | K101: 0.02 | L101: 0.02
B102: Preço do Ônibus Básico S/ ITS | C102: ='05. CAPEX'!$AF$23 -> 476000 | D102: =C102 -> 476000 | E102: 476000 | F102: 476000 | G102: 476000 | H102: 476000 | I102: 476000 | J102: 476000 | K102: 476000 | L102: 476000
B103: Número Ônibus | C103: =C12 -> 1 | D103: 1 | E103: 1 | F103: 1 | G103: 1 | H103: 1 | I103: 1 | J103: 1 | K103: 1 | L103: 1
B105: Manutenção de Infraestrutura | C105: =(C106*C107*C108)*(1+VLOOKUP($B105,$B$157:$L$178,1+C$8,0))/10^6*(1+$P$105) -> 0 | D105: 0 | E105: 0 | F105: 0 | G105: 0 | H105: 0 | I105: 0 | J105: 0 | K105: 0 | L105: 0 | N105: =SUM(C105:L105) -> 0 | P105: ='09. SENSIBILIDADE'!$C$8 -> 0
B106: Percentual | C106: 0 | D106: =C106 -> 0 | E106: =D106 -> 0 | F106: 0 | G106: 0 | H106: 0 | I106: 0 | J106: 0 | K106: 0 | L106: 0
B107: Valor ônibus básico | C107: =C42 -> 508371 | D107: =C107 -> 508371 | E107: 508371 | F107: 508371 | G107: 508371 | H107: 508371 | I107: 508371 | J107: 508371 | K107: 508371 | L107: 508371
B108: Número Ônibus | C108: =C12 -> 1 | D108: 1 | E108: 1 | F108: 1 | G108: 1 | H108: 1 | I108: 1 | J108: 1 | K108: 1 | L108: 1
B110: Despesas Ambientais | C110: =(C111*C112*C113)*(1+VLOOKUP($B110,$B$157:$L$178,1+C$8,0))/10^6*(1+$P$110) -> 0.00476 | D110: 0.00476 | E110: 0.00476 | F110: 0.00476 | G110: 0.00476 | H110: 0.00476 | I110: 0.00476 | J110: 0.00476 | K110: 0.00476 | L110: 0.00476 | N110: =SUM(C110:L110) -> 0.0476 | P110: ='09. SENSIBILIDADE'!$C$8 -> 0
B111: Porcentual Preço ônibus | C111: 0.01 | D111: =C111 -> 0.01 | E111: =D111 -> 0.01 | F111: 0.01 | G111: 0.01 | H111: 0.01 | I111: 0.01 | J111: 0.01 | K111: 0.01 | L111: 0.01
B112: Preço do Ônibus Básico S/ ITS | C112: ='05. CAPEX'!$AF$23 -> 476000 | D112: =C112 -> 476000 | E112: 476000 | F112: 476000 | G112: 476000 | H112: 476000 | I112: 476000 | J112: 476000 | K112: 476000 | L112: 476000
B113: Número Ônibus | C113: =C12 -> 1 | D113: 1 | E113: 1 | F113: 1 | G113: 1 | H113: 1 | I113: 1 | J113: 1 | K113: 1 | L113: 1
B115: Garantias Contratuais | C115: =(C116*C117)*(1+VLOOKUP($B115,$B$157:$L$178,1+C$8,0))/10^6*(1+$P$115) -> 0.001410886592 | D115: 0.001410886592 | E115: 0.001410886592 | F115: 0.001410886592 | G115: 0.001410886592 | H115: 0.001410886592 | I115: 0.001410886592 | J115: 0.001410886592 | K115: 0.001410886592 | L115: 0.001410886592 | N115: =SUM(C115:L115) -> 0.01410886592 | P115: ='09. SENSIBILIDADE'!$C$8 -> 0
B116: Valor Unitário (R$) | C116: 0.002 | D116: =C116 -> 0.002 | E116: =D116 -> 0.002 | F116: 0.002 | G116: 0.002 | H116: 0.002 | I116: 0.002 | J116: 0.002 | K116: 0.002 | L116: 0.002
B117: Receita Eletrônica Aprox | C117: =C84 -> 705443.2962 | D117: =D84 -> 705443.2962 | E117: 705443.2962 | F117: 705443.2962 | G117: 705443.2962 | H117: 705443.2962 | I117: 705443.2962 | J117: 705443.2962 | K117: 705443.2962 | L117: 705443.2962
B119: Manutenção Infra Elétrica | C119: =(C120*C121)*(1+VLOOKUP($B119,$B$157:$L$178,1+C$8,0))/10^6*(1+$P$119)*'02. FCL'!C8 -> 0 | D119: =(D120*D121)*(1+VLOOKUP($B119,$B$157:$L$178,1+D$8,0))/10^6*(1+$P$119)*'02. FCL'!D8 -> 0 | E119: =(E120*E121)*(1+VLOOKUP($B119,$B$157:$L$178,1+E$8,0))/10^6*(1+$P$119)*'02. FCL'!E8 -> 0 | F119: =(F120*F121)*(1+VLOOKUP($B119,$B$157:$L$178,1+F$8,0))/10^6*(1+$P$119)*'02. FCL'!F8 -> 0 | G119: =(G120*G121)*(1+VLOOKUP($B119,$B$157:$L$178,1+G$8,0))/10^6*(1+$P$119)*'02. FCL'!G8 -> 0 | H119: =(H120*H121)*(1+VLOOKUP($B119,$B$157:$L$178,1+H$8,0))/10^6*(1+$P$119)*'02. FCL'!H8 -> 0 | I119: =(I120*I121)*(1+VLOOKUP($B119,$B$157:$L$178,1+I$8,0))/10^6*(1+$P$119)*'02. FCL'!I8 -> 0 | J119: =(J120*J121)*(1+VLOOKUP($B119,$B$157:$L$178,1+J$8,0))/10^6*(1+$P$119)*'02. FCL'!J8 -> 0 | K119: =(K120*K121)*(1+VLOOKUP($B119,$B$157:$L$178,1+K$8,0))/10^6*(1+$P$119)*'02. FCL'!K8 -> 0 | L119: =(L120*L121)*(1+VLOOKUP($B119,$B$157:$L$178,1+L$8,0))/10^6*(1+$P$119)*'02. FCL'!L8 -> 0 | N119: =SUM(C119:L119) -> 0 | P119: ='09. SENSIBILIDADE'!$C$8 -> 0
B120: Percentual | C120: 0.01 | D120: =C120 -> 0.01 | E120: =D120 -> 0.01 | F120: 0.01 | G120: 0.01 | H120: 0.01 | I120: 0.01 | J120: 0.01 | K120: 0.01 | L120: 0.01
B121: Carregadores e placas | C121: ='03. D&A Fiscal'!$C$18*10^6 -> 0 | D121: =C121 -> 0 | E121: 0 | F121: 0 | G121: 0 | H121: 0 | I121: 0 | J121: 0 | K121: 0 | L121: 0
B123: Seguro e Licenciamento | C123: =(C124*C125*C126)*(1+VLOOKUP($B123,$B$157:$L$178,1+C$8,0))/10^6*(1+$P$123) -> 0.0039984 | D123: 0.0039984 | E123: 0.0039984 | F123: 0.0039984 | G123: 0.0039984 | H123: 0.0039984 | I123: 0.0039984 | J123: 0.0039984 | K123: 0.0039984 | L123: 0.0039984 | N123: =SUM(C123:L123) -> 0.039984 | P123: ='09. SENSIBILIDADE'!$C$8 -> 0
B124: Porcentual ônibus básico | C124: 0.0084 | D124: =C124 -> 0.0084 | E124: =D124 -> 0.0084 | F124: 0.0084 | G124: 0.0084 | H124: 0.0084 | I124: 0.0084 | J124: 0.0084 | K124: 0.0084 | L124: 0.0084
B125: Preço do Ônibus Básico S/ ITS | C125: ='05. CAPEX'!$AF$23 -> 476000 | D125: =C125 -> 476000 | E125: 476000 | F125: 476000 | G125: 476000 | H125: 476000 | I125: 476000 | J125: 476000 | K125: 476000 | L125: 476000
B126: Número Ônibus | C126: =C12 -> 1 | D126: 1 | E126: 1 | F126: 1 | G126: 1 | H126: 1 | I126: 1 | J126: 1 | K126: 1 | L126: 1
B128: Custo Total | C128: =C10+C67 -> 0.6021173705 | D128: 0.6021173705 | E128: 0.6021173705 | F128: 0.6021173705 | G128: 0.6021173705 | H128: 0.6021173705 | I128: 0.6021173705 | J128: 0.6021173705 | K128: 0.6021173705 | L128: 0.6021173705 | N128: =SUM(C128:L128) -> 6.021173705
B130: Índices anuais
B131: Combustível | D131: =HLOOKUP('01. PC'!$C30,'10. ÍNDICES'!$C$9:$M$900,21+D$8,0) -> 0.0392 | E131: =HLOOKUP('01. PC'!$C30,'10. ÍNDICES'!$C$9:$M$900,21+E$8,0) -> 0.0325 | F131: =HLOOKUP('01. PC'!$C30,'10. ÍNDICES'!$C$9:$M$900,21+F$8,0) -> 0.031 | G131: =HLOOKUP('01. PC'!$C30,'10. ÍNDICES'!$C$9:$M$900,21+G$8,0) -> 0.0301 | H131: =HLOOKUP('01. PC'!$C30,'10. ÍNDICES'!$C$9:$M$900,21+H$8,0) -> 0.03 | I131: =HLOOKUP('01. PC'!$C30,'10. ÍNDICES'!$C$9:$M$900,21+I$8,0) -> 0.03 | J131: =HLOOKUP('01. PC'!$C30,'10. ÍNDICES'!$C$9:$M$900,21+J$8,0) -> 0.03 | K131: =HLOOKUP('01. PC'!$C30,'10. ÍNDICES'!$C$9:$M$900,21+K$8,0) -> 0.03 | L131: =HLOOKUP('01. PC'!$C30,'10. ÍNDICES'!$C$9:$M$900,21+L$8,0) -> 0.03
B132: Lubrificante Diesel | D132: =HLOOKUP('01. PC'!$C31,'10. ÍNDICES'!$C$9:$M$900,21+D$8,0) -> 0.0392 | E132: =HLOOKUP('01. PC'!$C31,'10. ÍNDICES'!$C$9:$M$900,21+E$8,0) -> 0.0325 | F132: =HLOOKUP('01. PC'!$C31,'10. ÍNDICES'!$C$9:$M$900,21+F$8,0) -> 0.031 | G132: =HLOOKUP('01. PC'!$C31,'10. ÍNDICES'!$C$9:$M$900,21+G$8,0) -> 0.0301 | H132: =HLOOKUP('01. PC'!$C31,'10. ÍNDICES'!$C$9:$M$900,21+H$8,0) -> 0.03 | I132: =HLOOKUP('01. PC'!$C31,'10. ÍNDICES'!$C$9:$M$900,21+I$8,0) -> 0.03 | J132: =HLOOKUP('01. PC'!$C31,'10. ÍNDICES'!$C$9:$M$900,21+J$8,0) -> 0.03 | K132: =HLOOKUP('01. PC'!$C31,'10. ÍNDICES'!$C$9:$M$900,21+K$8,0) -> 0.03 | L132: =HLOOKUP('01. PC'!$C31,'10. ÍNDICES'!$C$9:$M$900,21+L$8,0) -> 0.03
B133: Arla 32 | D133: =HLOOKUP('01. PC'!$C32,'10. ÍNDICES'!$C$9:$M$900,21+D$8,0) -> 0.0392 | E133: =HLOOKUP('01. PC'!$C32,'10. ÍNDICES'!$C$9:$M$900,21+E$8,0) -> 0.0325 | F133: =HLOOKUP('01. PC'!$C32,'10. ÍNDICES'!$C$9:$M$900,21+F$8,0) -> 0.031 | G133: =HLOOKUP('01. PC'!$C32,'10. ÍNDICES'!$C$9:$M$900,21+G$8,0) -> 0.0301 | H133: =HLOOKUP('01. PC'!$C32,'10. ÍNDICES'!$C$9:$M$900,21+H$8,0) -> 0.03 | I133: =HLOOKUP('01. PC'!$C32,'10. ÍNDICES'!$C$9:$M$900,21+I$8,0) -> 0.03 | J133: =HLOOKUP('01. PC'!$C32,'10. ÍNDICES'!$C$9:$M$900,21+J$8,0) -> 0.03 | K133: =HLOOKUP('01. PC'!$C32,'10. ÍNDICES'!$C$9:$M$900,21+K$8,0) -> 0.03 | L133: =HLOOKUP('01. PC'!$C32,'10. ÍNDICES'!$C$9:$M$900,21+L$8,0) -> 0.03
B134: Rodagem | D134: =HLOOKUP('01. PC'!$C33,'10. ÍNDICES'!$C$9:$M$900,21+D$8,0) -> 0.0392 | E134: =HLOOKUP('01. PC'!$C33,'10. ÍNDICES'!$C$9:$M$900,21+E$8,0) -> 0.0325 | F134: =HLOOKUP('01. PC'!$C33,'10. ÍNDICES'!$C$9:$M$900,21+F$8,0) -> 0.031 | G134: =HLOOKUP('01. PC'!$C33,'10. ÍNDICES'!$C$9:$M$900,21+G$8,0) -> 0.0301 | H134: =HLOOKUP('01. PC'!$C33,'10. ÍNDICES'!$C$9:$M$900,21+H$8,0) -> 0.03 | I134: =HLOOKUP('01. PC'!$C33,'10. ÍNDICES'!$C$9:$M$900,21+I$8,0) -> 0.03 | J134: =HLOOKUP('01. PC'!$C33,'10. ÍNDICES'!$C$9:$M$900,21+J$8,0) -> 0.03 | K134: =HLOOKUP('01. PC'!$C33,'10. ÍNDICES'!$C$9:$M$900,21+K$8,0) -> 0.03 | L134: =HLOOKUP('01. PC'!$C33,'10. ÍNDICES'!$C$9:$M$900,21+L$8,0) -> 0.03
B135: Peças e Materiais de Manutenção | D135: =HLOOKUP('01. PC'!$C34,'10. ÍNDICES'!$C$9:$M$900,21+D$8,0) -> 0.0392 | E135: =HLOOKUP('01. PC'!$C34,'10. ÍNDICES'!$C$9:$M$900,21+E$8,0) -> 0.0325 | F135: =HLOOKUP('01. PC'!$C34,'10. ÍNDICES'!$C$9:$M$900,21+F$8,0) -> 0.031 | G135: =HLOOKUP('01. PC'!$C34,'10. ÍNDICES'!$C$9:$M$900,21+G$8,0) -> 0.0301 | H135: =HLOOKUP('01. PC'!$C34,'10. ÍNDICES'!$C$9:$M$900,21+H$8,0) -> 0.03 | I135: =HLOOKUP('01. PC'!$C34,'10. ÍNDICES'!$C$9:$M$900,21+I$8,0) -> 0.03 | J135: =HLOOKUP('01. PC'!$C34,'10. ÍNDICES'!$C$9:$M$900,21+J$8,0) -> 0.03 | K135: =HLOOKUP('01. PC'!$C34,'10. ÍNDICES'!$C$9:$M$900,21+K$8,0) -> 0.03 | L135: =HLOOKUP('01. PC'!$C34,'10. ÍNDICES'!$C$9:$M$900,21+L$8,0) -> 0.03
B136: Motoristas - Direção | D136: =HLOOKUP('01. PC'!$C35,'10. ÍNDICES'!$C$9:$M$900,21+D$8,0) -> 0.0392 | E136: =HLOOKUP('01. PC'!$C35,'10. ÍNDICES'!$C$9:$M$900,21+E$8,0) -> 0.0325 | F136: =HLOOKUP('01. PC'!$C35,'10. ÍNDICES'!$C$9:$M$900,21+F$8,0) -> 0.031 | G136: =HLOOKUP('01. PC'!$C35,'10. ÍNDICES'!$C$9:$M$900,21+G$8,0) -> 0.0301 | H136: =HLOOKUP('01. PC'!$C35,'10. ÍNDICES'!$C$9:$M$900,21+H$8,0) -> 0.03 | I136: =HLOOKUP('01. PC'!$C35,'10. ÍNDICES'!$C$9:$M$900,21+I$8,0) -> 0.03 | J136: =HLOOKUP('01. PC'!$C35,'10. ÍNDICES'!$C$9:$M$900,21+J$8,0) -> 0.03 | K136: =HLOOKUP('01. PC'!$C35,'10. ÍNDICES'!$C$9:$M$900,21+K$8,0) -> 0.03 | L136: =HLOOKUP('01. PC'!$C35,'10. ÍNDICES'!$C$9:$M$900,21+L$8,0) -> 0.03
B137: Motoristas - Cobrança | D137: =HLOOKUP('01. PC'!$C36,'10. ÍNDICES'!$C$9:$M$900,21+D$8,0) -> 0.0392 | E137: =HLOOKUP('01. PC'!$C36,'10. ÍNDICES'!$C$9:$M$900,21+E$8,0) -> 0.0325 | F137: =HLOOKUP('01. PC'!$C36,'10. ÍNDICES'!$C$9:$M$900,21+F$8,0) -> 0.031 | G137: =HLOOKUP('01. PC'!$C36,'10. ÍNDICES'!$C$9:$M$900,21+G$8,0) -> 0.0301 | H137: =HLOOKUP('01. PC'!$C36,'10. ÍNDICES'!$C$9:$M$900,21+H$8,0) -> 0.03 | I137: =HLOOKUP('01. PC'!$C36,'10. ÍNDICES'!$C$9:$M$900,21+I$8,0) -> 0.03 | J137: =HLOOKUP('01. PC'!$C36,'10. ÍNDICES'!$C$9:$M$900,21+J$8,0) -> 0.03 | K137: =HLOOKUP('01. PC'!$C36,'10. ÍNDICES'!$C$9:$M$900,21+K$8,0) -> 0.03 | L137: =HLOOKUP('01. PC'!$C36,'10. ÍNDICES'!$C$9:$M$900,21+L$8,0) -> 0.03
B138: Cobradores | D138: =HLOOKUP('01. PC'!$C37,'10. ÍNDICES'!$C$9:$M$900,21+D$8,0) -> 0.0392 | E138: =HLOOKUP('01. PC'!$C37,'10. ÍNDICES'!$C$9:$M$900,21+E$8,0) -> 0.0325 | F138: =HLOOKUP('01. PC'!$C37,'10. ÍNDICES'!$C$9:$M$900,21+F$8,0) -> 0.031 | G138: =HLOOKUP('01. PC'!$C37,'10. ÍNDICES'!$C$9:$M$900,21+G$8,0) -> 0.0301 | H138: =HLOOKUP('01. PC'!$C37,'10. ÍNDICES'!$C$9:$M$900,21+H$8,0) -> 0.03 | I138: =HLOOKUP('01. PC'!$C37,'10. ÍNDICES'!$C$9:$M$900,21+I$8,0) -> 0.03 | J138: =HLOOKUP('01. PC'!$C37,'10. ÍNDICES'!$C$9:$M$900,21+J$8,0) -> 0.03 | K138: =HLOOKUP('01. PC'!$C37,'10. ÍNDICES'!$C$9:$M$900,21+K$8,0) -> 0.03 | L138: =HLOOKUP('01. PC'!$C37,'10. ÍNDICES'!$C$9:$M$900,21+L$8,0) -> 0.03
B139: Benefícios Trabalhistas | D139: =HLOOKUP('01. PC'!$C38,'10. ÍNDICES'!$C$9:$M$900,21+D$8,0) -> 0.0392 | E139: =HLOOKUP('01. PC'!$C38,'10. ÍNDICES'!$C$9:$M$900,21+E$8,0) -> 0.0325 | F139: =HLOOKUP('01. PC'!$C38,'10. ÍNDICES'!$C$9:$M$900,21+F$8,0) -> 0.031 | G139: =HLOOKUP('01. PC'!$C38,'10. ÍNDICES'!$C$9:$M$900,21+G$8,0) -> 0.0301 | H139: =HLOOKUP('01. PC'!$C38,'10. ÍNDICES'!$C$9:$M$900,21+H$8,0) -> 0.03 | I139: =HLOOKUP('01. PC'!$C38,'10. ÍNDICES'!$C$9:$M$900,21+I$8,0) -> 0.03 | J139: =HLOOKUP('01. PC'!$C38,'10. ÍNDICES'!$C$9:$M$900,21+J$8,0) -> 0.03 | K139: =HLOOKUP('01. PC'!$C38,'10. ÍNDICES'!$C$9:$M$900,21+K$8,0) -> 0.03 | L139: =HLOOKUP('01. PC'!$C38,'10. ÍNDICES'!$C$9:$M$900,21+L$8,0) -> 0.03
B140: Operação da Frota Auxiliar (Serviços) | D140: =HLOOKUP('01. PC'!$C39,'10. ÍNDICES'!$C$9:$M$900,21+D$8,0) -> 0.0392 | E140: =HLOOKUP('01. PC'!$C39,'10. ÍNDICES'!$C$9:$M$900,21+E$8,0) -> 0.0325 | F140: =HLOOKUP('01. PC'!$C39,'10. ÍNDICES'!$C$9:$M$900,21+F$8,0) -> 0.031 | G140: =HLOOKUP('01. PC'!$C39,'10. ÍNDICES'!$C$9:$M$900,21+G$8,0) -> 0.0301 | H140: =HLOOKUP('01. PC'!$C39,'10. ÍNDICES'!$C$9:$M$900,21+H$8,0) -> 0.03 | I140: =HLOOKUP('01. PC'!$C39,'10. ÍNDICES'!$C$9:$M$900,21+I$8,0) -> 0.03 | J140: =HLOOKUP('01. PC'!$C39,'10. ÍNDICES'!$C$9:$M$900,21+J$8,0) -> 0.03 | K140: =HLOOKUP('01. PC'!$C39,'10. ÍNDICES'!$C$9:$M$900,21+K$8,0) -> 0.03 | L140: =HLOOKUP('01. PC'!$C39,'10. ÍNDICES'!$C$9:$M$900,21+L$8,0) -> 0.03
B141: Operac. e Manut. Infra Garagem | D141: =HLOOKUP('01. PC'!$C40,'10. ÍNDICES'!$C$9:$M$900,21+D$8,0) -> 0.0392 | E141: =HLOOKUP('01. PC'!$C40,'10. ÍNDICES'!$C$9:$M$900,21+E$8,0) -> 0.0325 | F141: =HLOOKUP('01. PC'!$C40,'10. ÍNDICES'!$C$9:$M$900,21+F$8,0) -> 0.031 | G141: =HLOOKUP('01. PC'!$C40,'10. ÍNDICES'!$C$9:$M$900,21+G$8,0) -> 0.0301 | H141: =HLOOKUP('01. PC'!$C40,'10. ÍNDICES'!$C$9:$M$900,21+H$8,0) -> 0.03 | I141: =HLOOKUP('01. PC'!$C40,'10. ÍNDICES'!$C$9:$M$900,21+I$8,0) -> 0.03 | J141: =HLOOKUP('01. PC'!$C40,'10. ÍNDICES'!$C$9:$M$900,21+J$8,0) -> 0.03 | K141: =HLOOKUP('01. PC'!$C40,'10. ÍNDICES'!$C$9:$M$900,21+K$8,0) -> 0.03 | L141: =HLOOKUP('01. PC'!$C40,'10. ÍNDICES'!$C$9:$M$900,21+L$8,0) -> 0.03
B142: Operação de ITS | D142: =HLOOKUP('01. PC'!$C41,'10. ÍNDICES'!$C$9:$M$900,21+D$8,0) -> 0.0392 | E142: =HLOOKUP('01. PC'!$C41,'10. ÍNDICES'!$C$9:$M$900,21+E$8,0) -> 0.0325 | F142: =HLOOKUP('01. PC'!$C41,'10. ÍNDICES'!$C$9:$M$900,21+F$8,0) -> 0.031 | G142: =HLOOKUP('01. PC'!$C41,'10. ÍNDICES'!$C$9:$M$900,21+G$8,0) -> 0.0301 | H142: =HLOOKUP('01. PC'!$C41,'10. ÍNDICES'!$C$9:$M$900,21+H$8,0) -> 0.03 | I142: =HLOOKUP('01. PC'!$C41,'10. ÍNDICES'!$C$9:$M$900,21+I$8,0) -> 0.03 | J142: =HLOOKUP('01. PC'!$C41,'10. ÍNDICES'!$C$9:$M$900,21+J$8,0) -> 0.03 | K142: =HLOOKUP('01. PC'!$C41,'10. ÍNDICES'!$C$9:$M$900,21+K$8,0) -> 0.03 | L142: =HLOOKUP('01. PC'!$C41,'10. ÍNDICES'!$C$9:$M$900,21+L$8,0) -> 0.03
B143: Operação de Bilhetagem | D143: =HLOOKUP('01. PC'!$C42,'10. ÍNDICES'!$C$9:$M$900,21+D$8,0) -> 0.0392 | E143: =HLOOKUP('01. PC'!$C42,'10. ÍNDICES'!$C$9:$M$900,21+E$8,0) -> 0.0325 | F143: =HLOOKUP('01. PC'!$C42,'10. ÍNDICES'!$C$9:$M$900,21+F$8,0) -> 0.031 | G143: =HLOOKUP('01. PC'!$C42,'10. ÍNDICES'!$C$9:$M$900,21+G$8,0) -> 0.0301 | H143: =HLOOKUP('01. PC'!$C42,'10. ÍNDICES'!$C$9:$M$900,21+H$8,0) -> 0.03 | I143: =HLOOKUP('01. PC'!$C42,'10. ÍNDICES'!$C$9:$M$900,21+I$8,0) -> 0.03 | J143: =HLOOKUP('01. PC'!$C42,'10. ÍNDICES'!$C$9:$M$900,21+J$8,0) -> 0.03 | K143: =HLOOKUP('01. PC'!$C42,'10. ÍNDICES'!$C$9:$M$900,21+K$8,0) -> 0.03 | L143: =HLOOKUP('01. PC'!$C42,'10. ÍNDICES'!$C$9:$M$900,21+L$8,0) -> 0.03
B144: Fiscalização | D144: =HLOOKUP('01. PC'!$C43,'10. ÍNDICES'!$C$9:$M$900,21+D$8,0) -> 0.0392 | E144: =HLOOKUP('01. PC'!$C43,'10. ÍNDICES'!$C$9:$M$900,21+E$8,0) -> 0.0325 | F144: =HLOOKUP('01. PC'!$C43,'10. ÍNDICES'!$C$9:$M$900,21+F$8,0) -> 0.031 | G144: =HLOOKUP('01. PC'!$C43,'10. ÍNDICES'!$C$9:$M$900,21+G$8,0) -> 0.0301 | H144: =HLOOKUP('01. PC'!$C43,'10. ÍNDICES'!$C$9:$M$900,21+H$8,0) -> 0.03 | I144: =HLOOKUP('01. PC'!$C43,'10. ÍNDICES'!$C$9:$M$900,21+I$8,0) -> 0.03 | J144: =HLOOKUP('01. PC'!$C43,'10. ÍNDICES'!$C$9:$M$900,21+J$8,0) -> 0.03 | K144: =HLOOKUP('01. PC'!$C43,'10. ÍNDICES'!$C$9:$M$900,21+K$8,0) -> 0.03 | L144: =HLOOKUP('01. PC'!$C43,'10. ÍNDICES'!$C$9:$M$900,21+L$8,0) -> 0.03
B145: Mão de Obra Manutenção, Adm. e Diretoria | D145: =HLOOKUP('01. PC'!$C44,'10. ÍNDICES'!$C$9:$M$900,21+D$8,0) -> 0.0392 | E145: =HLOOKUP('01. PC'!$C44,'10. ÍNDICES'!$C$9:$M$900,21+E$8,0) -> 0.0325 | F145: =HLOOKUP('01. PC'!$C44,'10. ÍNDICES'!$C$9:$M$900,21+F$8,0) -> 0.031 | G145: =HLOOKUP('01. PC'!$C44,'10. ÍNDICES'!$C$9:$M$900,21+G$8,0) -> 0.0301 | H145: =HLOOKUP('01. PC'!$C44,'10. ÍNDICES'!$C$9:$M$900,21+H$8,0) -> 0.03 | I145: =HLOOKUP('01. PC'!$C44,'10. ÍNDICES'!$C$9:$M$900,21+I$8,0) -> 0.03 | J145: =HLOOKUP('01. PC'!$C44,'10. ÍNDICES'!$C$9:$M$900,21+J$8,0) -> 0.03 | K145: =HLOOKUP('01. PC'!$C44,'10. ÍNDICES'!$C$9:$M$900,21+K$8,0) -> 0.03 | L145: =HLOOKUP('01. PC'!$C44,'10. ÍNDICES'!$C$9:$M$900,21+L$8,0) -> 0.03
B146: Despesas Administrativas Gerais | D146: =HLOOKUP('01. PC'!$C45,'10. ÍNDICES'!$C$9:$M$900,21+D$8,0) -> 0.0392 | E146: =HLOOKUP('01. PC'!$C45,'10. ÍNDICES'!$C$9:$M$900,21+E$8,0) -> 0.0325 | F146: =HLOOKUP('01. PC'!$C45,'10. ÍNDICES'!$C$9:$M$900,21+F$8,0) -> 0.031 | G146: =HLOOKUP('01. PC'!$C45,'10. ÍNDICES'!$C$9:$M$900,21+G$8,0) -> 0.0301 | H146: =HLOOKUP('01. PC'!$C45,'10. ÍNDICES'!$C$9:$M$900,21+H$8,0) -> 0.03 | I146: =HLOOKUP('01. PC'!$C45,'10. ÍNDICES'!$C$9:$M$900,21+I$8,0) -> 0.03 | J146: =HLOOKUP('01. PC'!$C45,'10. ÍNDICES'!$C$9:$M$900,21+J$8,0) -> 0.03 | K146: =HLOOKUP('01. PC'!$C45,'10. ÍNDICES'!$C$9:$M$900,21+K$8,0) -> 0.03 | L146: =HLOOKUP('01. PC'!$C45,'10. ÍNDICES'!$C$9:$M$900,21+L$8,0) -> 0.03
B147: Locação de Infraestrutura Garagem | D147: =HLOOKUP('01. PC'!$C46,'10. ÍNDICES'!$C$9:$M$900,21+D$8,0) -> 0.0392 | E147: =HLOOKUP('01. PC'!$C46,'10. ÍNDICES'!$C$9:$M$900,21+E$8,0) -> 0.0325 | F147: =HLOOKUP('01. PC'!$C46,'10. ÍNDICES'!$C$9:$M$900,21+F$8,0) -> 0.031 | G147: =HLOOKUP('01. PC'!$C46,'10. ÍNDICES'!$C$9:$M$900,21+G$8,0) -> 0.0301 | H147: =HLOOKUP('01. PC'!$C46,'10. ÍNDICES'!$C$9:$M$900,21+H$8,0) -> 0.03 | I147: =HLOOKUP('01. PC'!$C46,'10. ÍNDICES'!$C$9:$M$900,21+I$8,0) -> 0.03 | J147: =HLOOKUP('01. PC'!$C46,'10. ÍNDICES'!$C$9:$M$900,21+J$8,0) -> 0.03 | K147: =HLOOKUP('01. PC'!$C46,'10. ÍNDICES'!$C$9:$M$900,21+K$8,0) -> 0.03 | L147: =HLOOKUP('01. PC'!$C46,'10. ÍNDICES'!$C$9:$M$900,21+L$8,0) -> 0.03
B148: Manutenção de Infraestrutura | D148: =HLOOKUP('01. PC'!$C47,'10. ÍNDICES'!$C$9:$M$900,21+D$8,0) -> 0.0392 | E148: =HLOOKUP('01. PC'!$C47,'10. ÍNDICES'!$C$9:$M$900,21+E$8,0) -> 0.0325 | F148: =HLOOKUP('01. PC'!$C47,'10. ÍNDICES'!$C$9:$M$900,21+F$8,0) -> 0.031 | G148: =HLOOKUP('01. PC'!$C47,'10. ÍNDICES'!$C$9:$M$900,21+G$8,0) -> 0.0301 | H148: =HLOOKUP('01. PC'!$C47,'10. ÍNDICES'!$C$9:$M$900,21+H$8,0) -> 0.03 | I148: =HLOOKUP('01. PC'!$C47,'10. ÍNDICES'!$C$9:$M$900,21+I$8,0) -> 0.03 | J148: =HLOOKUP('01. PC'!$C47,'10. ÍNDICES'!$C$9:$M$900,21+J$8,0) -> 0.03 | K148: =HLOOKUP('01. PC'!$C47,'10. ÍNDICES'!$C$9:$M$900,21+K$8,0) -> 0.03 | L148: =HLOOKUP('01. PC'!$C47,'10. ÍNDICES'!$C$9:$M$900,21+L$8,0) -> 0.03
B149: Despesas Ambientais | D149: =HLOOKUP('01. PC'!$C48,'10. ÍNDICES'!$C$9:$M$900,21+D$8,0) -> 0.0392 | E149: =HLOOKUP('01. PC'!$C48,'10. ÍNDICES'!$C$9:$M$900,21+E$8,0) -> 0.0325 | F149: =HLOOKUP('01. PC'!$C48,'10. ÍNDICES'!$C$9:$M$900,21+F$8,0) -> 0.031 | G149: =HLOOKUP('01. PC'!$C48,'10. ÍNDICES'!$C$9:$M$900,21+G$8,0) -> 0.0301 | H149: =HLOOKUP('01. PC'!$C48,'10. ÍNDICES'!$C$9:$M$900,21+H$8,0) -> 0.03 | I149: =HLOOKUP('01. PC'!$C48,'10. ÍNDICES'!$C$9:$M$900,21+I$8,0) -> 0.03 | J149: =HLOOKUP('01. PC'!$C48,'10. ÍNDICES'!$C$9:$M$900,21+J$8,0) -> 0.03 | K149: =HLOOKUP('01. PC'!$C48,'10. ÍNDICES'!$C$9:$M$900,21+K$8,0) -> 0.03 | L149: =HLOOKUP('01. PC'!$C48,'10. ÍNDICES'!$C$9:$M$900,21+L$8,0) -> 0.03
B150: Garantias Contratuais | D150: =HLOOKUP('01. PC'!$C49,'10. ÍNDICES'!$C$9:$M$900,21+D$8,0) -> 0.0392 | E150: =HLOOKUP('01. PC'!$C49,'10. ÍNDICES'!$C$9:$M$900,21+E$8,0) -> 0.0325 | F150: =HLOOKUP('01. PC'!$C49,'10. ÍNDICES'!$C$9:$M$900,21+F$8,0) -> 0.031 | G150: =HLOOKUP('01. PC'!$C49,'10. ÍNDICES'!$C$9:$M$900,21+G$8,0) -> 0.0301 | H150: =HLOOKUP('01. PC'!$C49,'10. ÍNDICES'!$C$9:$M$900,21+H$8,0) -> 0.03 | I150: =HLOOKUP('01. PC'!$C49,'10. ÍNDICES'!$C$9:$M$900,21+I$8,0) -> 0.03 | J150: =HLOOKUP('01. PC'!$C49,'10. ÍNDICES'!$C$9:$M$900,21+J$8,0) -> 0.03 | K150: =HLOOKUP('01. PC'!$C49,'10. ÍNDICES'!$C$9:$M$900,21+K$8,0) -> 0.03 | L150: =HLOOKUP('01. PC'!$C49,'10. ÍNDICES'!$C$9:$M$900,21+L$8,0) -> 0.03
B151: Manutenção Infra Elétrica | D151: =HLOOKUP('01. PC'!$C51,'10. ÍNDICES'!$C$9:$M$900,21+D$8,0) -> 0.0392 | E151: =HLOOKUP('01. PC'!$C51,'10. ÍNDICES'!$C$9:$M$900,21+E$8,0) -> 0.0325 | F151: =HLOOKUP('01. PC'!$C51,'10. ÍNDICES'!$C$9:$M$900,21+F$8,0) -> 0.031 | G151: =HLOOKUP('01. PC'!$C51,'10. ÍNDICES'!$C$9:$M$900,21+G$8,0) -> 0.0301 | H151: =HLOOKUP('01. PC'!$C51,'10. ÍNDICES'!$C$9:$M$900,21+H$8,0) -> 0.03 | I151: =HLOOKUP('01. PC'!$C51,'10. ÍNDICES'!$C$9:$M$900,21+I$8,0) -> 0.03 | J151: =HLOOKUP('01. PC'!$C51,'10. ÍNDICES'!$C$9:$M$900,21+J$8,0) -> 0.03 | K151: =HLOOKUP('01. PC'!$C51,'10. ÍNDICES'!$C$9:$M$900,21+K$8,0) -> 0.03 | L151: =HLOOKUP('01. PC'!$C51,'10. ÍNDICES'!$C$9:$M$900,21+L$8,0) -> 0.03
B152: Seguro e Licenciamento | D152: =HLOOKUP('01. PC'!$C51,'10. ÍNDICES'!$C$9:$M$900,21+D$8,0) -> 0.0392 | E152: =HLOOKUP('01. PC'!$C51,'10. ÍNDICES'!$C$9:$M$900,21+E$8,0) -> 0.0325 | F152: =HLOOKUP('01. PC'!$C51,'10. ÍNDICES'!$C$9:$M$900,21+F$8,0) -> 0.031 | G152: =HLOOKUP('01. PC'!$C51,'10. ÍNDICES'!$C$9:$M$900,21+G$8,0) -> 0.0301 | H152: =HLOOKUP('01. PC'!$C51,'10. ÍNDICES'!$C$9:$M$900,21+H$8,0) -> 0.03 | I152: =HLOOKUP('01. PC'!$C51,'10. ÍNDICES'!$C$9:$M$900,21+I$8,0) -> 0.03 | J152: =HLOOKUP('01. PC'!$C51,'10. ÍNDICES'!$C$9:$M$900,21+J$8,0) -> 0.03 | K152: =HLOOKUP('01. PC'!$C51,'10. ÍNDICES'!$C$9:$M$900,21+K$8,0) -> 0.03 | L152: =HLOOKUP('01. PC'!$C51,'10. ÍNDICES'!$C$9:$M$900,21+L$8,0) -> 0.03
B153: Reposição de Baterias | D153: =HLOOKUP('01. PC'!$C52,'10. ÍNDICES'!$C$9:$M$900,21+D$8,0) -> 0.0392 | E153: =HLOOKUP('01. PC'!$C52,'10. ÍNDICES'!$C$9:$M$900,21+E$8,0) -> 0.0325 | F153: =HLOOKUP('01. PC'!$C52,'10. ÍNDICES'!$C$9:$M$900,21+F$8,0) -> 0.031 | G153: =HLOOKUP('01. PC'!$C52,'10. ÍNDICES'!$C$9:$M$900,21+G$8,0) -> 0.0301 | H153: =HLOOKUP('01. PC'!$C52,'10. ÍNDICES'!$C$9:$M$900,21+H$8,0) -> 0.03 | I153: =HLOOKUP('01. PC'!$C52,'10. ÍNDICES'!$C$9:$M$900,21+I$8,0) -> 0.03 | J153: =HLOOKUP('01. PC'!$C52,'10. ÍNDICES'!$C$9:$M$900,21+J$8,0) -> 0.03 | K153: =HLOOKUP('01. PC'!$C52,'10. ÍNDICES'!$C$9:$M$900,21+K$8,0) -> 0.03 | L153: =HLOOKUP('01. PC'!$C52,'10. ÍNDICES'!$C$9:$M$900,21+L$8,0) -> 0.03
B154: Operação ITS/SBE Embarcado | D154: =HLOOKUP('01. PC'!$C53,'10. ÍNDICES'!$C$9:$M$900,21+D$8,0) -> 0.0392 | E154: =HLOOKUP('01. PC'!$C53,'10. ÍNDICES'!$C$9:$M$900,21+E$8,0) -> 0.0325 | F154: =HLOOKUP('01. PC'!$C53,'10. ÍNDICES'!$C$9:$M$900,21+F$8,0) -> 0.031 | G154: =HLOOKUP('01. PC'!$C53,'10. ÍNDICES'!$C$9:$M$900,21+G$8,0) -> 0.0301 | H154: =HLOOKUP('01. PC'!$C53,'10. ÍNDICES'!$C$9:$M$900,21+H$8,0) -> 0.03 | I154: =HLOOKUP('01. PC'!$C53,'10. ÍNDICES'!$C$9:$M$900,21+I$8,0) -> 0.03 | J154: =HLOOKUP('01. PC'!$C53,'10. ÍNDICES'!$C$9:$M$900,21+J$8,0) -> 0.03 | K154: =HLOOKUP('01. PC'!$C53,'10. ÍNDICES'!$C$9:$M$900,21+K$8,0) -> 0.03 | L154: =HLOOKUP('01. PC'!$C53,'10. ÍNDICES'!$C$9:$M$900,21+L$8,0) -> 0.03
B156: Índices diferenças
B157: Combustível | C157: =C183/C$210-1 -> 0 | D157: =D183/D$210-1 -> 0 | E157: 0 | F157: 0 | G157: 0 | H157: 0 | I157: 0 | J157: 0 | K157: 0 | L157: 0
B158: Lubrificante Diesel | C158: 0 | D158: =D184/D$210-1 -> 0 | E158: 0 | F158: 0 | G158: 0 | H158: 0 | I158: 0 | J158: 0 | K158: 0 | L158: 0
B159: Arla 32 | C159: 0 | D159: =D185/D$210-1 -> 0 | E159: 0 | F159: 0 | G159: 0 | H159: 0 | I159: 0 | J159: 0 | K159: 0 | L159: 0
B160: Rodagem | C160: 0 | D160: =D186/D$210-1 -> 0 | E160: 0 | F160: 0 | G160: 0 | H160: 0 | I160: 0 | J160: 0 | K160: 0 | L160: 0
B161: Peças e Materiais de Manutenção | C161: 0 | D161: =D187/D$210-1 -> 0 | E161: 0 | F161: 0 | G161: 0 | H161: 0 | I161: 0 | J161: 0 | K161: 0 | L161: 0
B162: Motoristas - Direção | C162: 0 | D162: =D188/D$210-1 -> 0 | E162: 0 | F162: 0 | G162: 0 | H162: 0 | I162: 0 | J162: 0 | K162: 0 | L162: 0
B163: Motoristas - Cobrança | C163: 0 | D163: =D189/D$210-1 -> 0 | E163: 0 | F163: 0 | G163: 0 | H163: 0 | I163: 0 | J163: 0 | K163: 0 | L163: 0
B164: Cobradores | C164: 0 | D164: =D190/D$210-1 -> 0 | E164: 0 | F164: 0 | G164: 0 | H164: 0 | I164: 0 | J164: 0 | K164: 0 | L164: 0
B165: Benefícios Trabalhistas | C165: 0 | D165: =D191/D$210-1 -> 0 | E165: 0 | F165: 0 | G165: 0 | H165: 0 | I165: 0 | J165: 0 | K165: 0 | L165: 0
B166: Operação da Frota Auxiliar (Serviços) | C166: 0 | D166: =D192/D$210-1 -> 0 | E166: 0 | F166: 0 | G166: 0 | H166: 0 | I166: 0 | J166: 0 | K166: 0 | L166: 0
B167: Operac. e Manut. Infra Garagem | C167: 0 | D167: =D193/D$210-1 -> 0 | E167: 0 | F167: 0 | G167: 0 | H167: 0 | I167: 0 | J167: 0 | K167: 0 | L167: 0
B168: Operação de ITS | C168: 0 | D168: =D194/D$210-1 -> 0 | E168: 0 | F168: 0 | G168: 0 | H168: =H194/H$210-1 -> 0 | I168: 0 | J168: 0 | K168: 0 | L168: 0
B169: Operação de Bilhetagem | C169: 0 | D169: 0 | E169: 0 | F169: 0 | G169: 0 | H169: =H195/H$210-1 -> 0 | I169: 0 | J169: 0 | K169: 0 | L169: 0
B170: Fiscalização | C170: 0 | D170: 0 | E170: 0 | F170: 0 | G170: 0 | H170: =H196/H$210-1 -> 0 | I170: 0 | J170: 0 | K170: 0 | L170: 0
B171: Mão de Obra Manutenção, Adm. e Diretoria | C171: 0 | D171: 0 | E171: 0 | F171: 0 | G171: 0 | H171: =H197/H$210-1 -> 0 | I171: 0 | J171: 0 | K171: 0 | L171: 0
B172: Despesas Administrativas Gerais | C172: 0 | D172: 0 | E172: 0 | F172: 0 | G172: 0 | H172: =H198/H$210-1 -> 0 | I172: 0 | J172: 0 | K172: 0 | L172: 0
B173: Locação de Infraestrutura Garagem | C173: 0 | D173: 0 | E173: 0 | F173: 0 | G173: 0 | H173: =H199/H$210-1 -> 0 | I173: 0 | J173: 0 | K173: 0 | L173: 0
B174: Manutenção de Infraestrutura | C174: 0 | D174: 0 | E174: 0 | F174: 0 | G174: 0 | H174: =H200/H$210-1 -> 0 | I174: 0 | J174: 0 | K174: 0 | L174: 0
B175: Despesas Ambientais | C175: 0 | D175: 0 | E175: 0 | F175: 0 | G175: 0 | H175: =H201/H$210-1 -> 0 | I175: 0 | J175: 0 | K175: 0 | L175: 0
B176: Garantias Contratuais | C176: 0 | D176: 0 | E176: 0 | F176: 0 | G176: 0 | H176: =H202/H$210-1 -> 0 | I176: 0 | J176: 0 | K176: 0 | L176: 0
B177: Manutenção Infra Elétrica | C177: 0 | D177: 0 | E177: 0 | F177: 0 | G177: 0 | H177: =H203/H$210-1 -> 0 | I177: 0 | J177: 0 | K177: 0 | L177: 0
B178: Seguro e Licenciamento | C178: 0 | D178: 0 | E178: 0 | F178: 0 | G178: 0 | H178: =H204/H$210-1 -> 0 | I178: 0 | J178: 0 | K178: 0 | L178: 0
B179: Reposição de baterias | C179: 0 | D179: 0 | E179: 0 | F179: 0 | G179: 0 | H179: =H205/H$210-1 -> 0 | I179: 0 | J179: 0 | K179: 0 | L179: 0
B180: Operação ITS/SBE Embarcado | C180: 0 | D180: =D206/D$210-1 -> 0 | E180: 0 | F180: 0 | G180: 0 | H180: 0 | I180: 0 | J180: 0 | K180: 0 | L180: 0
B182: Índices acumulados
B183: Combustível | C183: 1 | D183: =(C183)*(1+D131) -> 1.0392 | E183: 1.072974 | F183: 1.106236194 | G183: 1.139533903 | H183: 1.173719921 | I183: 1.208931518 | J183: 1.245199464 | K183: 1.282555448 | L183: 1.321032111
B184: Lubrificante Diesel | C184: 1 | D184: =(C184)*(1+D132) -> 1.0392 | E184: 1.072974 | F184: 1.106236194 | G184: 1.139533903 | H184: 1.173719921 | I184: 1.208931518 | J184: 1.245199464 | K184: 1.282555448 | L184: 1.321032111
B185: Arla 32 | C185: 1 | D185: =(C185)*(1+D133) -> 1.0392 | E185: 1.072974 | F185: 1.106236194 | G185: 1.139533903 | H185: 1.173719921 | I185: 1.208931518 | J185: 1.245199464 | K185: 1.282555448 | L185: 1.321032111
B186: Rodagem | C186: 1 | D186: =(C186)*(1+D134) -> 1.0392 | E186: 1.072974 | F186: 1.106236194 | G186: 1.139533903 | H186: 1.173719921 | I186: 1.208931518 | J186: 1.245199464 | K186: 1.282555448 | L186: 1.321032111
B187: Peças e Materiais de Manutenção | C187: 1 | D187: =(C187)*(1+D135) -> 1.0392 | E187: 1.072974 | F187: 1.106236194 | G187: 1.139533903 | H187: 1.173719921 | I187: 1.208931518 | J187: 1.245199464 | K187: 1.282555448 | L187: 1.321032111
B188: Motoristas - Direção | C188: 1 | D188: =(C188)*(1+D136) -> 1.0392 | E188: 1.072974 | F188: 1.106236194 | G188: 1.139533903 | H188: 1.173719921 | I188: 1.208931518 | J188: 1.245199464 | K188: 1.282555448 | L188: 1.321032111
B189: Motoristas - Cobrança | C189: 1 | D189: =(C189)*(1+D137) -> 1.0392 | E189: 1.072974 | F189: 1.106236194 | G189: 1.139533903 | H189: 1.173719921 | I189: 1.208931518 | J189: 1.245199464 | K189: 1.282555448 | L189: 1.321032111
B190: Cobradores | C190: 1 | D190: =(C190)*(1+D138) -> 1.0392 | E190: 1.072974 | F190: 1.106236194 | G190: 1.139533903 | H190: 1.173719921 | I190: 1.208931518 | J190: 1.245199464 | K190: 1.282555448 | L190: 1.321032111
B191: Benefícios Trabalhistas | C191: 1 | D191: =(C191)*(1+D139) -> 1.0392 | E191: 1.072974 | F191: 1.106236194 | G191: 1.139533903 | H191: 1.173719921 | I191: 1.208931518 | J191: 1.245199464 | K191: 1.282555448 | L191: 1.321032111
B192: Operação da Frota Auxiliar (Serviços) | C192: 1 | D192: =(C192)*(1+D140) -> 1.0392 | E192: 1.072974 | F192: 1.106236194 | G192: 1.139533903 | H192: 1.173719921 | I192: 1.208931518 | J192: 1.245199464 | K192: 1.282555448 | L192: 1.321032111
B193: Operac. e Manut. Infra Garagem | C193: 1 | D193: =(C193)*(1+D141) -> 1.0392 | E193: 1.072974 | F193: 1.106236194 | G193: 1.139533903 | H193: 1.173719921 | I193: 1.208931518 | J193: 1.245199464 | K193: 1.282555448 | L193: 1.321032111
B194: Operação de ITS | C194: 1 | D194: =(C194)*(1+D142) -> 1.0392 | E194: 1.072974 | F194: 1.106236194 | G194: 1.139533903 | H194: 1.173719921 | I194: 1.208931518 | J194: 1.245199464 | K194: 1.282555448 | L194: 1.321032111
B195: Operação de Bilhetagem | C195: 1 | D195: =(C195)*(1+D143) -> 1.0392 | E195: 1.072974 | F195: 1.106236194 | G195: 1.139533903 | H195: 1.173719921 | I195: 1.208931518 | J195: 1.245199464 | K195: 1.282555448 | L195: 1.321032111
B196: Fiscalização | C196: 1 | D196: =(C196)*(1+D144) -> 1.0392 | E196: 1.072974 | F196: 1.106236194 | G196: 1.139533903 | H196: 1.173719921 | I196: 1.208931518 | J196: 1.245199464 | K196: 1.282555448 | L196: 1.321032111
B197: Mão de Obra Manutenção, Adm. e Diretoria | C197: 1 | D197: =(C197)*(1+D145) -> 1.0392 | E197: 1.072974 | F197: 1.106236194 | G197: 1.139533903 | H197: 1.173719921 | I197: 1.208931518 | J197: 1.245199464 | K197: 1.282555448 | L197: 1.321032111
B198: Despesas Administrativas Gerais | C198: 1 | D198: =(C198)*(1+D146) -> 1.0392 | E198: 1.072974 | F198: 1.106236194 | G198: 1.139533903 | H198: 1.173719921 | I198: 1.208931518 | J198: 1.245199464 | K198: 1.282555448 | L198: 1.321032111
B199: Locação de Infraestrutura Garagem | C199: 1 | D199: =(C199)*(1+D147) -> 1.0392 | E199: 1.072974 | F199: 1.106236194 | G199: 1.139533903 | H199: 1.173719921 | I199: 1.208931518 | J199: 1.245199464 | K199: 1.282555448 | L199: 1.321032111
B200: Manutenção de Infraestrutura | C200: 1 | D200: =(C200)*(1+D148) -> 1.0392 | E200: 1.072974 | F200: 1.106236194 | G200: 1.139533903 | H200: 1.173719921 | I200: 1.208931518 | J200: 1.245199464 | K200: 1.282555448 | L200: 1.321032111
B201: Despesas Ambientais | C201: 1 | D201: =(C201)*(1+D149) -> 1.0392 | E201: 1.072974 | F201: 1.106236194 | G201: 1.139533903 | H201: 1.173719921 | I201: 1.208931518 | J201: 1.245199464 | K201: 1.282555448 | L201: 1.321032111
B202: Garantias Contratuais | C202: 1 | D202: =(C202)*(1+D150) -> 1.0392 | E202: 1.072974 | F202: 1.106236194 | G202: 1.139533903 | H202: 1.173719921 | I202: 1.208931518 | J202: 1.245199464 | K202: 1.282555448 | L202: 1.321032111
B203: Manutenção Infra Elétrica | C203: 1 | D203: =(C203)*(1+D151) -> 1.0392 | E203: =(D203)*(1+E151) -> 1.072974 | F203: =(E203)*(1+F151) -> 1.106236194 | G203: =(F203)*(1+G151) -> 1.139533903 | H203: =(G203)*(1+H151) -> 1.173719921 | I203: =(H203)*(1+I151) -> 1.208931518 | J203: =(I203)*(1+J151) -> 1.245199464 | K203: =(J203)*(1+K151) -> 1.282555448 | L203: =(K203)*(1+L151) -> 1.321032111
B204: Seguro e Licenciamento | C204: 1 | D204: =(C204)*(1+D152) -> 1.0392 | E204: 1.072974 | F204: 1.106236194 | G204: 1.139533903 | H204: 1.173719921 | I204: 1.208931518 | J204: 1.245199464 | K204: 1.282555448 | L204: 1.321032111
B205: Reposição de baterias | C205: 1 | D205: =(C205)*(1+D153) -> 1.0392 | E205: =(D205)*(1+E153) -> 1.072974 | F205: =(E205)*(1+F153) -> 1.106236194 | G205: =(F205)*(1+G153) -> 1.139533903 | H205: =(G205)*(1+H153) -> 1.173719921 | I205: =(H205)*(1+I153) -> 1.208931518 | J205: =(I205)*(1+J153) -> 1.245199464 | K205: =(J205)*(1+K153) -> 1.282555448 | L205: =(K205)*(1+L153) -> 1.321032111
B206: Operação ITS/SBE Embarcado | C206: 1 | D206: =(C206)*(1+D154) -> 1.0392 | E206: =(D206)*(1+E154) -> 1.072974 | F206: =(E206)*(1+F154) -> 1.106236194 | G206: =(F206)*(1+G154) -> 1.139533903 | H206: =(G206)*(1+H154) -> 1.173719921 | I206: =(H206)*(1+I154) -> 1.208931518 | J206: =(I206)*(1+J154) -> 1.245199464 | K206: =(J206)*(1+K154) -> 1.282555448 | L206: =(K206)*(1+L154) -> 1.321032111
B208: Índice acumulado - Receita
B209: ='01. PC'!C61 -> IPCA | D209: =HLOOKUP('01. PC'!$C61,'10. ÍNDICES'!$C$9:$M$900,21+D$8,0) -> 0.0392 | E209: =HLOOKUP('01. PC'!$C61,'10. ÍNDICES'!$C$9:$M$900,21+E$8,0) -> 0.0325 | F209: =HLOOKUP('01. PC'!$C61,'10. ÍNDICES'!$C$9:$M$900,21+F$8,0) -> 0.031 | G209: =HLOOKUP('01. PC'!$C61,'10. ÍNDICES'!$C$9:$M$900,21+G$8,0) -> 0.0301 | H209: =HLOOKUP('01. PC'!$C61,'10. ÍNDICES'!$C$9:$M$900,21+H$8,0) -> 0.03 | I209: =HLOOKUP('01. PC'!$C61,'10. ÍNDICES'!$C$9:$M$900,21+I$8,0) -> 0.03 | J209: =HLOOKUP('01. PC'!$C61,'10. ÍNDICES'!$C$9:$M$900,21+J$8,0) -> 0.03 | K209: =HLOOKUP('01. PC'!$C61,'10. ÍNDICES'!$C$9:$M$900,21+K$8,0) -> 0.03 | L209: =HLOOKUP('01. PC'!$C61,'10. ÍNDICES'!$C$9:$M$900,21+L$8,0) -> 0.03
B210: Acumulado | C210: 1 | D210: =(C210)*(1+D209) -> 1.0392 | E210: =(D210)*(1+E209) -> 1.072974 | F210: 1.106236194 | G210: 1.139533903 | H210: 1.173719921 | I210: 1.208931518 | J210: 1.245199464 | K210: 1.282555448 | L210: 1.321032111

Sheet 07. (a)TRIBUTOS LREAL
O1: REGIME | P1: PIS | Q1: COFINS | R1: IR | S1: CS | T1: ISS | U1: INSS | V1: RESEGE
O2: REAL | R2: 0.25 | S2: 0.09 | T2: 0.03 | V2: 0
B6: Tributos (R$ Milhões)
B8: PRAZO | C8: =IF(C10<=('01. PC'!$C$18),1,0) -> 1 | D8: =IF(D10<=('01. PC'!$C$18),1,0) -> 1 | E8: =IF(E10<=('01. PC'!$C$18),1,0) -> 1 | F8: =IF(F10<=('01. PC'!$C$18),1,0) -> 1 | G8: =IF(G10<=('01. PC'!$C$18),1,0) -> 1 | H8: =IF(H10<=('01. PC'!$C$18),1,0) -> 1 | I8: =IF(I10<=('01. PC'!$C$18),1,0) -> 1 | J8: =IF(J10<=('01. PC'!$C$18),1,0) -> 1 | K8: =IF(K10<=('01. PC'!$C$18),1,0) -> 1 | L8: =IF(L10<=('01. PC'!$C$18),1,0) -> 1
B10: ANO | C10: 1 | D10: 2 | E10: 3 | F10: 4 | G10: 5 | H10: 6 | I10: 7 | J10: 8 | K10: 9 | L10: 10 | N10: Total
B12: Receitas | C12: =C14 -> 0.7054432962 | D12: =D14 -> 0.7054432962 | E12: 0.7054432962 | F12: 0.7054432962 | G12: 0.7054432962 | H12: 0.7054432962 | I12: 0.7054432962 | J12: 0.7054432962 | K12: 0.7054432962 | L12: 0.7054432962 | N12: =SUM(C12:L12) -> 7.054432962
B14: Receita Tarifária | C14: ='02. FCL'!C14 -> 0.7054432962 | D14: ='02. FCL'!D14 -> 0.7054432962 | E14: ='02. FCL'!E14 -> 0.7054432962 | F14: ='02. FCL'!F14 -> 0.7054432962 | G14: ='02. FCL'!G14 -> 0.7054432962 | H14: ='02. FCL'!H14 -> 0.7054432962 | I14: ='02. FCL'!I14 -> 0.7054432962 | J14: ='02. FCL'!J14 -> 0.7054432962 | K14: ='02. FCL'!K14 -> 0.7054432962 | L14: ='02. FCL'!L14 -> 0.7054432962 | N14: =SUM(C14:L14) -> 7.054432962
B16: ISS | C16: =(C19)*$T$2 -> 0.02116329889 | D16: =(D19)*$T$2 -> 0.02116329889 | E16: 0.02116329889 | F16: 0.02116329889 | G16: 0.02116329889 | H16: 0.02116329889 | I16: 0.02116329889 | J16: 0.02116329889 | K16: 0.02116329889 | L16: 0.02116329889 | N16: =SUM(C16:L16) -> 0.2116329889
B18: Base de Incidência
B19: Receita Tarifária | C19: ='02. FCL'!C14 -> 0.7054432962 | D19: ='02. FCL'!D14 -> 0.7054432962 | E19: ='02. FCL'!E14 -> 0.7054432962 | F19: ='02. FCL'!F14 -> 0.7054432962 | G19: ='02. FCL'!G14 -> 0.7054432962 | H19: ='02. FCL'!H14 -> 0.7054432962 | I19: ='02. FCL'!I14 -> 0.7054432962 | J19: ='02. FCL'!J14 -> 0.7054432962 | K19: ='02. FCL'!K14 -> 0.7054432962 | L19: ='02. FCL'!L14 -> 0.7054432962 | N19: =SUM(C19:L19) -> 7.054432962
B21: INSS | C21: =(C24)*$U$2 -> 0 | D21: =(D24)*$U$2 -> 0 | E21: 0 | F21: 0 | G21: 0 | H21: 0 | I21: 0 | J21: 0 | K21: 0 | L21: 0 | N21: =SUM(C21:L21) -> 0
B23: Base de Incidência
B24: Receita Tarifária | C24: ='02. FCL'!C14 -> 0.7054432962 | D24: ='02. FCL'!D14 -> 0.7054432962 | E24: ='02. FCL'!E14 -> 0.7054432962 | F24: ='02. FCL'!F14 -> 0.7054432962 | G24: ='02. FCL'!G14 -> 0.7054432962 | H24: ='02. FCL'!H14 -> 0.7054432962 | I24: ='02. FCL'!I14 -> 0.7054432962 | J24: ='02. FCL'!J14 -> 0.7054432962 | K24: ='02. FCL'!K14 -> 0.7054432962 | L24: ='02. FCL'!L14 -> 0.7054432962 | N24: =SUM(C24:L24) -> 7.054432962
B26: RESEGE | C26: =(C29)*$V$2 -> 0 | D26: =(D29)*$V$2 -> 0 | E26: 0 | F26: 0 | G26: 0 | H26: 0 | I26: 0 | J26: 0 | K26: 0 | L26: 0 | N26: =SUM(C26:L26) -> 0
B28: Base de Incidência
B29: Receita Tarifária | C29: ='02. FCL'!C14 -> 0.7054432962 | D29: ='02. FCL'!D14 -> 0.7054432962 | E29: ='02. FCL'!E14 -> 0.7054432962 | F29: ='02. FCL'!F14 -> 0.7054432962 | G29: ='02. FCL'!G14 -> 0.7054432962 | H29: ='02. FCL'!H14 -> 0.7054432962 | I29: ='02. FCL'!I14 -> 0.7054432962 | J29: ='02. FCL'!J14 -> 0.7054432962 | K29: ='02. FCL'!K14 -> 0.7054432962 | L29: ='02. FCL'!L14 -> 0.7054432962 | N29: =SUM(C29:L29) -> 7.054432962
B31: PIS E COFINS - DEVIDO | C31: =(C34)*($P$2+$Q$2) -> 0 | D31: =(D34)*($P$2+$Q$2) -> 0 | E31: 0 | F31: 0 | G31: 0 | H31: 0 | I31: 0 | J31: 0 | K31: 0 | L31: 0 | N31: =SUM(C31:L31) -> 0
B33: Base de Incidência
B34: Receita Tarifária | N34: =SUM(C34:L34) -> 0
B36: PIS E COFINS - CRÉDITO | C36: =SUM(C38:C43)*($P$2+$Q$2) -> 0 | D36: 0 | E36: 0 | F36: 0 | G36: 0 | H36: 0 | I36: 0 | J36: 0 | K36: 0 | L36: 0 | N36: =SUM(C36:L36) -> 0
B38: Combustível | N38: =SUM(C38:L38) -> 0
B39: Lubrificantes | N39: 0
B40: Arla 32 | N40: 0
B41: Rodagem | N41: 0
B42: Peças | N42: 0
B43: Depreciação | N43: 0
B45: Direito de Uso Crédito Tributário | C45: =IF((C14)>0,(C31),0) -> 0 | D45: =IF((D14)>0,(D31),0) -> 0 | E45: 0 | F45: 0 | G45: 0 | H45: 0 | I45: 0 | J45: 0 | K45: 0 | L45: 0 | N45: =SUM(C45:L45) -> 0
B47: Uso Crédito Tributário Real | C47: =IF(C45>0,IF(C45<C53,C45,C53),0) -> 0 | D47: =IF(D45>0,IF(C51/((1+D103)^1)+D53>0,IF(D45-(C51/((1+D103)^1)+D53)>0,C51/((1+D103)^1)+D53,D45),0),0) -> 0 | E47: 0 | F47: 0 | G47: 0 | H47: 0 | I47: 0 | J47: 0 | K47: 0 | L47: 0 | N47: =SUM(C47:L47) -> 0
B49: Despesas Tributária | C49: =C31 -> 0 | D49: 0 | E49: 0 | F49: 0 | G49: 0 | H49: 0 | I49: 0 | J49: 0 | K49: 0 | L49: 0 | N49: =SUM(C49:L49) -> 0
B51: Estoque de Crédito Tributário | C51: =C53-C47 -> 0 | D51: =C51/(1+D103)^1+D53-D47 -> 0 | E51: 0 | F51: 0 | G51: 0 | H51: 0 | I51: 0 | J51: 0 | K51: 0 | L51: 0 | N51: =SUM(C51:L51) -> 0
B53: Criação de Crédito Tributário Nominal | C53: =SUM(C55:C64) -> 0 | D53: 0 | E53: 0 | F53: 0 | G53: 0 | H53: 0 | I53: 0 | J53: 0 | K53: 0 | L53: 0 | N53: =SUM(C53:L53) -> 0
B55: 1 | C55: =C$36 -> 0 | N55: =SUM(C55:L55) -> 0
B56: 2 | D56: =D$36 -> 0 | N56: 0
B57: 3 | E57: =E$36 -> 0 | N57: 0
B58: 4 | F58: =F$36 -> 0 | N58: 0
B59: 5 | G59: =G$36 -> 0 | N59: 0
B60: 6 | H60: =H$36 -> 0 | N60: 0
B61: 7 | I61: =I$36 -> 0 | N61: 0
B62: 8 | J62: =J$36 -> 0 | N62: 0
B63: 9 | K63: =K$36 -> 0 | N63: 0
B64: 10 | L64: =L$36 -> 0 | N64: 0
B66: Pis e Cofins Líquido | C66: =C49-C47 -> 0 | D66: 0 | E66: 0 | F66: 0 | G66: 0 | H66: 0 | I66: 0 | J66: 0 | K66: 0 | L66: 0 | N66: =SUM(C66:L66) -> 0
B68: Opex | C68: =-'02. FCL'!C16 -> 0.6021173705 | D68: =-'02. FCL'!D16 -> 0.6021173705 | E68: =-'02. FCL'!E16 -> 0.6021173705 | F68: =-'02. FCL'!F16 -> 0.6021173705 | G68: =-'02. FCL'!G16 -> 0.6021173705 | H68: =-'02. FCL'!H16 -> 0.6021173705 | I68: =-'02. FCL'!I16 -> 0.6021173705 | J68: =-'02. FCL'!J16 -> 0.6021173705 | K68: =-'02. FCL'!K16 -> 0.6021173705 | L68: =-'02. FCL'!L16 -> 0.6021173705 | N68: =SUM(C68:L68) -> 6.021173705
B70: Depreciação Real | C70: ='03. D&A Fiscal'!C73 -> 0.1210407143 | D70: ='03. D&A Fiscal'!D73 -> 0.1152768707 | E70: ='03. D&A Fiscal'!E73 -> 0.109787496 | F70: ='03. D&A Fiscal'!F73 -> 0.10455952 | G70: ='03. D&A Fiscal'!G73 -> 0 | H70: ='03. D&A Fiscal'!H73 -> 0 | I70: ='03. D&A Fiscal'!I73 -> 0 | J70: ='03. D&A Fiscal'!J73 -> 0 | K70: ='03. D&A Fiscal'!K73 -> 0 | L70: ='03. D&A Fiscal'!L73 -> 0 | N70: =SUM(C70:L70) -> 0.4506646009
B72: LAIR | C72: =C12-C16-C21-C26-C66-C68-C70 -> -0.03887808741 | D72: -0.03311424387 | E72: -0.02762486907 | F72: -0.02239689307 | G72: 0.08216262688 | H72: 0.08216262688 | I72: 0.08216262688 | J72: 0.08216262688 | K72: 0.08216262688 | L72: 0.08216262688 | N72: =SUM(C72:L72) -> 0.3709616679
B74: ANO | C74: 1 | D74: 2 | E74: 3 | F74: 4 | G74: 5 | H74: 6 | I74: 7 | J74: 8 | K74: 9 | L74: 10 | N74: Total
B76: IRPJ/CSLL | C76: =IF(C72>0,C101-C99,0) -> 0 | D76: 0 | E76: 0 | F76: 0 | G76: 0.0195547052 | H76: 0.0195547052 | I76: 0.0195547052 | J76: 0.0195547052 | K76: 0.02772885646 | L76: 0.02793529314 | N76: =SUM(C76:L76) -> 0.1338829704
B78: Alíquotas Efetivas (%) | C78: =IFERROR(IF(C72<0,0,C76/C72),0) -> 0 | D78: =IFERROR(IF(D72<0,0,D76/D72),0) -> 0 | E78: 0 | F78: 0 | G78: 0.238 | H78: 0.238 | I78: 0.238 | J78: 0.238 | K78: 0.3374874626 | L78: 0.34 | N78: =SUM(C78:L78) -> 1.629487463
B80: Criação de Crédito Tributário | C80: =IF(C72<0,-C72*($R$2+$S$2),0) -> 0.01321854972 | D80: 0.01125884292 | E80: 0.009392455484 | F80: 0.007614943645 | G80: 0 | H80: 0 | I80: 0 | J80: 0 | K80: 0 | L80: 0 | N80: =SUM(C80:L80) -> 0.04148479176
B82: Estoque de Crédito Tributário | C82: =C84 -> 0.01321854972 | D82: =C82/(1+D103)^1+D84-D99 -> 0.02384793788 | E82: 0.03210477728 | F82: 0.03819092201 | G82: 0.02799171873 | H82: 0.0182781918 | I82: 0.009027213774 | J82: 0.0002167585094 | K82: 0 | L82: 0 | N82: =SUM(C82:L82) -> 0.1628760697
B84: Crédito Tributário | C84: =SUM(C86:C95) -> 0.01321854972 | D84: 0.01125884292 | E84: 0.009392455484 | F84: 0.007614943645 | G84: 0 | H84: 0 | I84: 0 | J84: 0 | K84: 0 | L84: 0 | N84: =SUM(C84:L84) -> 0.04148479176
B86: 1 | C86: =C$80 -> 0.01321854972 | N86: =SUM(C86:L86) -> 0.01321854972
B87: 2 | D87: =D$80 -> 0.01125884292 | N87: 0.01125884292
B88: 3 | E88: =E$80 -> 0.009392455484 | N88: 0.009392455484
B89: 4 | F89: =F$80 -> 0.007614943645 | N89: 0.007614943645
B90: 5 | G90: =G$80 -> 0 | N90: 0
B91: 6 | H91: =H$80 -> 0 | N91: 0
B92: 7 | I92: =I$80 -> 0 | N92: 0
B93: 8 | J93: =J$80 -> 0 | N93: 0
B94: 9 | K94: =K$80 -> 0 | N94: 0
B95: 10 | L95: =L$80 -> 0 | N95: 0
B97: Direito de Uso de Crédito Tributário | C97: =IF(C72>0,C72*($R$2+$S$2)*0.3,0) -> 0 | D97: 0 | E97: 0 | F97: 0 | G97: 0.008380587942 | H97: 0.008380587942 | I97: 0.008380587942 | J97: 0.008380587942 | K97: 0.008380587942 | L97: 0.008380587942 | N97: =SUM(C97:L97) -> 0.05028352765
B99: Uso de Crédito Tributário Real | C99: =IF(C72>0,0,C97) -> 0 | D99: =IF(D97>0,IF(C82/((1+D103)^1)>0,IF(D97-C82/((1+D103)^1)>0,C82/((1+D103)^1),D97),0),0) -> 0 | E99: 0 | F99: 0 | G99: 0.008380587942 | H99: 0.008380587942 | I99: 0.008380587942 | J99: 0.008380587942 | K99: 0.0002064366756 | L99: 0 | N99: =SUM(C99:L99) -> 0.03372878844
B101: Despesas Tributárias | C101: =IF(C72>0,C72*($R$2+$S$2),0) -> 0 | D101: 0 | E101: 0 | F101: 0 | G101: 0.02793529314 | H101: 0.02793529314 | I101: 0.02793529314 | J101: 0.02793529314 | K101: 0.02793529314 | L101: 0.02793529314 | N101: =SUM(C101:L101) -> 0.1676117588
B103: Inflação Anual | C103: ='01. PC'!C65 -> 0.05 | D103: ='01. PC'!D65 -> 0.05 | E103: ='01. PC'!E65 -> 0.05 | F103: ='01. PC'!F65 -> 0.05 | G103: ='01. PC'!G65 -> 0.05 | H103: ='01. PC'!H65 -> 0.05 | I103: ='01. PC'!I65 -> 0.05 | J103: ='01. PC'!J65 -> 0.05 | K103: ='01. PC'!K65 -> 0.05 | L103: ='01. PC'!L65 -> 0.05
B105: Inflação Acumulada | C105: =C103 -> 0.05 | D105: =(1+D103)*(1+C105)-1 -> 0.1025 | E105: =(1+E103)*(1+D105)-1 -> 0.157625 | F105: 0.21550625 | G105: 0.2762815625 | H105: 0.3400956406 | I105: 0.4071004227 | J105: 0.4774554438 | K105: 0.551328216 | L105: 0.6288946268
B107: Simulação VPL - Regime Lucro Real - R$ Milhões
B109: Receita | C109: ='02. FCL'!C12 -> 0.7054432962 | D109: ='02. FCL'!D12 -> 0.7054432962 | E109: ='02. FCL'!E12 -> 0.7054432962 | F109: ='02. FCL'!F12 -> 0.7054432962 | G109: ='02. FCL'!G12 -> 0.7054432962 | H109: ='02. FCL'!H12 -> 0.7054432962 | I109: ='02. FCL'!I12 -> 0.7054432962 | J109: ='02. FCL'!J12 -> 0.7054432962 | K109: ='02. FCL'!K12 -> 0.7054432962 | L109: ='02. FCL'!L12 -> 0.7054432962 | N109: =SUM(C109:L109) -> 7.054432962
B111: Opex | C111: ='02. FCL'!C16 -> -0.6021173705 | D111: ='02. FCL'!D16 -> -0.6021173705 | E111: ='02. FCL'!E16 -> -0.6021173705 | F111: ='02. FCL'!F16 -> -0.6021173705 | G111: ='02. FCL'!G16 -> -0.6021173705 | H111: ='02. FCL'!H16 -> -0.6021173705 | I111: ='02. FCL'!I16 -> -0.6021173705 | J111: ='02. FCL'!J16 -> -0.6021173705 | K111: ='02. FCL'!K16 -> -0.6021173705 | L111: ='02. FCL'!L16 -> -0.6021173705 | N111: =SUM(C111:L111) -> -6.021173705
B113: CAPEX | C113: ='02. FCL'!C21 -> -0.508371 | D113: ='02. FCL'!D21 -> 0 | E113: ='02. FCL'!E21 -> 0 | F113: ='02. FCL'!F21 -> 0 | G113: ='02. FCL'!G21 -> 0 | H113: ='02. FCL'!H21 -> 0 | I113: ='02. FCL'!I21 -> 0 | J113: ='02. FCL'!J21 -> 0 | K113: ='02. FCL'!K21 -> 0 | L113: ='02. FCL'!L21 -> 0 | N113: =SUM(C113:L113) -> -0.508371
B115: Impostos Total | C115: =-(C16+C21+C26+C66+C76) -> -0.02116329889 | D115: -0.02116329889 | E115: -0.02116329889 | F115: -0.02116329889 | G115: -0.04071800408 | H115: -0.04071800408 | I115: -0.04071800408 | J115: -0.04071800408 | K115: -0.04889215535 | L115: -0.04909859203 | N115: =SUM(C115:L115) -> -0.3455159593
B117: NIG | C117: ='02. FCL'!C35 -> 0 | D117: ='02. FCL'!D35 -> 0 | E117: ='02. FCL'!E35 -> 0 | F117: ='02. FCL'!F35 -> 0 | G117: ='02. FCL'!G35 -> 0 | H117: ='02. FCL'!H35 -> 0 | I117: ='02. FCL'!I35 -> 0 | J117: ='02. FCL'!J35 -> 0 | K117: ='02. FCL'!K35 -> 0 | L117: ='02. FCL'!L35 -> 0 | N117: =SUM(C117:L117) -> 0
B119: Saldo Caixa | C119: =C109+C111+C113+C115+C117 -> -0.4262083731 | D119: =D109+D111+D113+D115+D117 -> 0.08216262688 | E119: 0.08216262688 | F119: 0.08216262688 | G119: 0.06260792168 | H119: 0.06260792168 | I119: 0.06260792168 | J119: 0.06260792168 | K119: 0.05443377042 | L119: 0.05422733374 | N119: =SUM(C119:L119) -> 0.1793722984
B121: VPL - Ano 0 - Real | C121: =C119 -> -0.4262083731 | D121: =D119/((1+D127)*(1+C131)) -> 0.06990771664 | E121: 0.06448378448 | F121: 0.05948067912 | G121: 0.04180770139 | H121: 0.03856396598 | I121: 0.03557190237 | J121: 0.03281198409 | K121: 0.02631461515 | L121: 0.02418088868 | N121: =SUM(C121:L121) -> -0.03308513523
B123: VPL - Ano 0 - Presumido | C123: ='07. (b)TRIBUTOS LPRESUMID'!C56 -> -0.5029606038 | D123: ='07. (b)TRIBUTOS LPRESUMID'!D56 -> 0.004603412308 | E123: ='07. (b)TRIBUTOS LPRESUMID'!E56 -> 0.004246247216 | F123: ='07. (b)TRIBUTOS LPRESUMID'!F56 -> 0.003916793503 | G123: ='07. (b)TRIBUTOS LPRESUMID'!G56 -> 0.003612901126 | H123: ='07. (b)TRIBUTOS LPRESUMID'!H56 -> 0.003332586855 | I123: ='07. (b)TRIBUTOS LPRESUMID'!I56 -> 0.003074021337 | J123: ='07. (b)TRIBUTOS LPRESUMID'!J56 -> 0.002835517149 | K123: ='07. (b)TRIBUTOS LPRESUMID'!K56 -> 0.002615517793 | L123: ='07. (b)TRIBUTOS LPRESUMID'!L56 -> 0.002412587534 | N123: =SUM(C123:L123) -> -0.4723110189
B125: Regime escolhido | C125: =IF(C123>C121,"Pres.","Real") -> Real | D125: =IF(D123>D121,"Pres.","Real") -> Real | E125: Real | F125: Real | G125: Real | H125: Real | I125: Real | J125: Real | K125: Real | L125: Real
B127: WACC real | C127: ='01. PC'!$C$10 -> 0.08411311767 | D127: ='01. PC'!$C$10 -> 0.08411311767 | E127: ='01. PC'!$C$10 -> 0.08411311767 | F127: ='01. PC'!$C$10 -> 0.08411311767 | G127: ='01. PC'!$C$10 -> 0.08411311767 | H127: ='01. PC'!$C$10 -> 0.08411311767 | I127: ='01. PC'!$C$10 -> 0.08411311767 | J127: ='01. PC'!$C$10 -> 0.08411311767 | K127: ='01. PC'!$C$10 -> 0.08411311767 | L127: ='01. PC'!$C$10 -> 0.08411311767
B129: WACC Escohido | C129: =IF(C125="Real",C127,'07. (b)TRIBUTOS LPRESUMID'!C60) -> 0.08411311767 | D129: =IF(D125="Real",D127,'07. (b)TRIBUTOS LPRESUMID'!D60) -> 0.08411311767 | E129: =IF(E125="Real",E127,'07. (b)TRIBUTOS LPRESUMID'!E60) -> 0.08411311767 | F129: =IF(F125="Real",F127,'07. (b)TRIBUTOS LPRESUMID'!F60) -> 0.08411311767 | G129: =IF(G125="Real",G127,'07. (b)TRIBUTOS LPRESUMID'!G60) -> 0.08411311767 | H129: =IF(H125="Real",H127,'07. (b)TRIBUTOS LPRESUMID'!H60) -> 0.08411311767 | I129: =IF(I125="Real",I127,'07. (b)TRIBUTOS LPRESUMID'!I60) -> 0.08411311767 | J129: =IF(J125="Real",J127,'07. (b)TRIBUTOS LPRESUMID'!J60) -> 0.08411311767 | K129: =IF(K125="Real",K127,'07. (b)TRIBUTOS LPRESUMID'!K60) -> 0.08411311767 | L129: =IF(L125="Real",L127,'07. (b)TRIBUTOS LPRESUMID'!L60) -> 0.08411311767
B131: WACC Acumulado | C131: =IF(C125="Real",C127,'07. (b)TRIBUTOS LPRESUMID'!C64) -> 0.08411311767 | D131: =(1+C131)*(1+D129)-1 -> 0.1753012519 | E131: 0.2741595044 | F131: 0.3813330327 | G131: 0.4975212606 | H131: 0.6234824427 | I131: 0.7600386124 | J131: 0.9080809473 | K131: 1.068575585 | L131: 1.242569926

Sheet 07. (b)TRIBUTOS LPRESUMID
O1: REGIME | P1: PIS | Q1: COFINS | R1: IR | S1: CS | T1: ISS | U1: INSS | V1: RESEGE | W1: PRESUNÇÃO
O2: PRESUMIDO | R2: 0.25 | S2: 0.09 | T2: 0.03 | V2: 0 | W2: 0.32
B8: Tributos (R$ Milhões)
B10: ANO | C10: 1 | D10: 2 | E10: 3 | F10: 4 | G10: 5 | H10: 6 | I10: 7 | J10: 8 | K10: 9 | L10: 10 | N10: Total
B12: Receitas | C12: =C14 -> 0.7054432962 | D12: =D14 -> 0.7054432962 | E12: 0.7054432962 | F12: 0.7054432962 | G12: 0.7054432962 | H12: 0.7054432962 | I12: 0.7054432962 | J12: 0.7054432962 | K12: 0.7054432962 | L12: 0.7054432962 | N12: =SUM(C12:L12) -> 7.054432962
B14: Receita Tarifária | C14: ='02. FCL'!C14 -> 0.7054432962 | D14: ='02. FCL'!D14 -> 0.7054432962 | E14: ='02. FCL'!E14 -> 0.7054432962 | F14: ='02. FCL'!F14 -> 0.7054432962 | G14: ='02. FCL'!G14 -> 0.7054432962 | H14: ='02. FCL'!H14 -> 0.7054432962 | I14: ='02. FCL'!I14 -> 0.7054432962 | J14: ='02. FCL'!J14 -> 0.7054432962 | K14: ='02. FCL'!K14 -> 0.7054432962 | L14: ='02. FCL'!L14 -> 0.7054432962 | N14: =SUM(C14:L14) -> 7.054432962
B16: ISS sobre Receitas | C16: =-(C18)*$T$2 -> -0.02116329889 | D16: =-(D18)*$T$2 -> -0.02116329889 | E16: -0.02116329889 | F16: -0.02116329889 | G16: -0.02116329889 | H16: -0.02116329889 | I16: -0.02116329889 | J16: -0.02116329889 | K16: -0.02116329889 | L16: -0.02116329889 | N16: =SUM(C16:L16) -> -0.2116329889
B18: Receita Tarifária | C18: ='02. FCL'!C14 -> 0.7054432962 | D18: ='02. FCL'!D14 -> 0.7054432962 | E18: ='02. FCL'!E14 -> 0.7054432962 | F18: ='02. FCL'!F14 -> 0.7054432962 | G18: ='02. FCL'!G14 -> 0.7054432962 | H18: ='02. FCL'!H14 -> 0.7054432962 | I18: ='02. FCL'!I14 -> 0.7054432962 | J18: ='02. FCL'!J14 -> 0.7054432962 | K18: ='02. FCL'!K14 -> 0.7054432962 | L18: ='02. FCL'!L14 -> 0.7054432962 | N18: =SUM(C18:L18) -> 7.054432962
B20: PIS e Cofins | C20: =-(C22)*($P$2+$Q$2) -> 0 | D20: =-(D22)*($P$2+$Q$2) -> 0 | E20: 0 | F20: 0 | G20: 0 | H20: 0 | I20: 0 | J20: 0 | K20: 0 | L20: 0 | N20: =SUM(C20:L20) -> 0
B22: Receita Tarifária | C22: ='02. FCL'!C14 -> 0.7054432962 | D22: ='02. FCL'!D14 -> 0.7054432962 | E22: ='02. FCL'!E14 -> 0.7054432962 | F22: ='02. FCL'!F14 -> 0.7054432962 | G22: ='02. FCL'!G14 -> 0.7054432962 | H22: ='02. FCL'!H14 -> 0.7054432962 | I22: ='02. FCL'!I14 -> 0.7054432962 | J22: ='02. FCL'!J14 -> 0.7054432962 | K22: ='02. FCL'!K14 -> 0.7054432962 | L22: ='02. FCL'!L14 -> 0.7054432962 | N22: =SUM(C22:L22) -> 7.054432962
B24: INSS | C24: =-(C26)*($U$2) -> 0 | D24: =-(D26)*($U$2) -> 0 | E24: 0 | F24: 0 | G24: 0 | H24: 0 | I24: 0 | J24: 0 | K24: 0 | L24: 0 | N24: =SUM(C24:L24) -> 0
B26: Receita Tarifária | C26: ='02. FCL'!C14 -> 0.7054432962 | D26: ='02. FCL'!D14 -> 0.7054432962 | E26: ='02. FCL'!E14 -> 0.7054432962 | F26: ='02. FCL'!F14 -> 0.7054432962 | G26: ='02. FCL'!G14 -> 0.7054432962 | H26: ='02. FCL'!H14 -> 0.7054432962 | I26: ='02. FCL'!I14 -> 0.7054432962 | J26: ='02. FCL'!J14 -> 0.7054432962 | K26: ='02. FCL'!K14 -> 0.7054432962 | L26: ='02. FCL'!L14 -> 0.7054432962 | N26: =SUM(C26:L26) -> 7.054432962
B28: RESEGE | C28: =-(C30)*($V$2) -> 0 | D28: =-(D30)*($V$2) -> 0 | E28: 0 | F28: 0 | G28: 0 | H28: 0 | I28: 0 | J28: 0 | K28: 0 | L28: 0 | N28: =SUM(C28:L28) -> 0
B30: Receita Tarifária | C30: ='02. FCL'!C14 -> 0.7054432962 | D30: ='02. FCL'!D14 -> 0.7054432962 | E30: ='02. FCL'!E14 -> 0.7054432962 | F30: ='02. FCL'!F14 -> 0.7054432962 | G30: ='02. FCL'!G14 -> 0.7054432962 | H30: ='02. FCL'!H14 -> 0.7054432962 | I30: ='02. FCL'!I14 -> 0.7054432962 | J30: ='02. FCL'!J14 -> 0.7054432962 | K30: ='02. FCL'!K14 -> 0.7054432962 | L30: ='02. FCL'!L14 -> 0.7054432962 | N30: =SUM(C30:L30) -> 7.054432962
B32: LAIR Presumido | C32: =C12*$W$2 -> 0.2257418548 | D32: 0.2257418548 | E32: 0.2257418548 | F32: 0.2257418548 | G32: 0.2257418548 | H32: 0.2257418548 | I32: 0.2257418548 | J32: 0.2257418548 | K32: 0.2257418548 | L32: 0.2257418548 | N32: =SUM(C32:L32) -> 2.257418548
B34: IRPJ/CSLL | C34: =-IF(C32<=0,C32*0%,C32*($R$2+$S$2)) -> -0.07675223063 | D34: -0.07675223063 | E34: -0.07675223063 | F34: -0.07675223063 | G34: -0.07675223063 | H34: -0.07675223063 | I34: -0.07675223063 | J34: -0.07675223063 | K34: -0.07675223063 | L34: -0.07675223063 | N34: =SUM(C34:L34) -> -0.7675223063
B36: Total de Impostos (R$ Mil) | C36: =C16+C20+C24+C28+C34 -> -0.09791552952 | D36: -0.09791552952 | E36: -0.09791552952 | F36: -0.09791552952 | G36: -0.09791552952 | H36: -0.09791552952 | I36: -0.09791552952 | J36: -0.09791552952 | K36: -0.09791552952 | L36: -0.09791552952 | N36: =SUM(C36:L36) -> -0.9791552952
B39: Simulação VPL - Regime Lucro Presumido - R$ Milhões
B42: Receita | C42: ='02. FCL'!C12 -> 0.7054432962 | D42: ='02. FCL'!D12 -> 0.7054432962 | E42: ='02. FCL'!E12 -> 0.7054432962 | F42: ='02. FCL'!F12 -> 0.7054432962 | G42: ='02. FCL'!G12 -> 0.7054432962 | H42: ='02. FCL'!H12 -> 0.7054432962 | I42: ='02. FCL'!I12 -> 0.7054432962 | J42: ='02. FCL'!J12 -> 0.7054432962 | K42: ='02. FCL'!K12 -> 0.7054432962 | L42: ='02. FCL'!L12 -> 0.7054432962 | N42: =SUM(C42:L42) -> 7.054432962
B44: Opex | C44: ='02. FCL'!C16 -> -0.6021173705 | D44: ='02. FCL'!D16 -> -0.6021173705 | E44: ='02. FCL'!E16 -> -0.6021173705 | F44: ='02. FCL'!F16 -> -0.6021173705 | G44: ='02. FCL'!G16 -> -0.6021173705 | H44: ='02. FCL'!H16 -> -0.6021173705 | I44: ='02. FCL'!I16 -> -0.6021173705 | J44: ='02. FCL'!J16 -> -0.6021173705 | K44: ='02. FCL'!K16 -> -0.6021173705 | L44: ='02. FCL'!L16 -> -0.6021173705 | N44: =SUM(C44:L44) -> -6.021173705
B46: CAPEX | C46: ='02. FCL'!C21 -> -0.508371 | D46: ='02. FCL'!D21 -> 0 | E46: ='02. FCL'!E21 -> 0 | F46: ='02. FCL'!F21 -> 0 | G46: ='02. FCL'!G21 -> 0 | H46: ='02. FCL'!H21 -> 0 | I46: ='02. FCL'!I21 -> 0 | J46: ='02. FCL'!J21 -> 0 | K46: ='02. FCL'!K21 -> 0 | L46: ='02. FCL'!L21 -> 0 | N46: =SUM(C46:L46) -> -0.508371
B48: Impostos Total | C48: =C36 -> -0.09791552952 | D48: -0.09791552952 | E48: -0.09791552952 | F48: -0.09791552952 | G48: -0.09791552952 | H48: -0.09791552952 | I48: -0.09791552952 | J48: -0.09791552952 | K48: -0.09791552952 | L48: -0.09791552952 | N48: =SUM(C48:L48) -> -0.9791552952
B50: NIG | C50: ='02. FCL'!C35 -> 0 | D50: ='02. FCL'!D35 -> 0 | E50: ='02. FCL'!E35 -> 0 | F50: ='02. FCL'!F35 -> 0 | G50: ='02. FCL'!G35 -> 0 | H50: ='02. FCL'!H35 -> 0 | I50: ='02. FCL'!I35 -> 0 | J50: ='02. FCL'!J35 -> 0 | K50: ='02. FCL'!K35 -> 0 | L50: ='02. FCL'!L35 -> 0 | N50: =SUM(C50:L50) -> 0
B52: Saldo Caixa | C52: =C42+C44+C46+C48+C50 -> -0.5029606038 | D52: =D42+D44+D46+D48+D50 -> 0.005410396248 | E52: 0.005410396248 | F52: 0.005410396248 | G52: 0.005410396248 | H52: 0.005410396248 | I52: 0.005410396248 | J52: 0.005410396248 | K52: 0.005410396248 | L52: 0.005410396248 | N52: =SUM(C52:L52) -> -0.4542670375
B54: VPL - Ano 0 - Real | C54: ='07. (a)TRIBUTOS LREAL'!C121 -> -0.4262083731 | D54: ='07. (a)TRIBUTOS LREAL'!D121 -> 0.06990771664 | E54: ='07. (a)TRIBUTOS LREAL'!E121 -> 0.06448378448 | F54: ='07. (a)TRIBUTOS LREAL'!F121 -> 0.05948067912 | G54: ='07. (a)TRIBUTOS LREAL'!G121 -> 0.04180770139 | H54: ='07. (a)TRIBUTOS LREAL'!H121 -> 0.03856396598 | I54: ='07. (a)TRIBUTOS LREAL'!I121 -> 0.03557190237 | J54: ='07. (a)TRIBUTOS LREAL'!J121 -> 0.03281198409 | K54: ='07. (a)TRIBUTOS LREAL'!K121 -> 0.02631461515 | L54: ='07. (a)TRIBUTOS LREAL'!L121 -> 0.02418088868 | N54: =SUM(C54:L54) -> -0.03308513523
B56: VPL - Ano 0 - Presumido | C56: =C52 -> -0.5029606038 | D56: =D52/((1+D60)*(1+C64)) -> 0.004603412308 | E56: =E52/((1+E60)*(1+D64)) -> 0.004246247216 | F56: 0.003916793503 | G56: 0.003612901126 | H56: 0.003332586855 | I56: 0.003074021337 | J56: 0.002835517149 | K56: 0.002615517793 | L56: 0.002412587534 | N56: =SUM(C56:L56) -> -0.4723110189
B58: Regime escolhido | C58: =IF(C56>C54,"Pres.","Real") -> Real | D58: =IF(D56>D54,"Pres.","Real") -> Real | E58: Real | F58: Real | G58: Real | H58: Real | I58: Real | J58: Real | K58: Real | L58: Real
B60: WACC presumido | C60: ='01. PC'!$C$10 -> 0.08411311767 | D60: ='01. PC'!$C$10 -> 0.08411311767 | E60: ='01. PC'!$C$10 -> 0.08411311767 | F60: ='01. PC'!$C$10 -> 0.08411311767 | G60: ='01. PC'!$C$10 -> 0.08411311767 | H60: ='01. PC'!$C$10 -> 0.08411311767 | I60: ='01. PC'!$C$10 -> 0.08411311767 | J60: ='01. PC'!$C$10 -> 0.08411311767 | K60: ='01. PC'!$C$10 -> 0.08411311767 | L60: ='01. PC'!$C$10 -> 0.08411311767
B62: WACC escolhido | C62: =IF(C58="real",'07. (a)TRIBUTOS LREAL'!C129,'07. (b)TRIBUTOS LPRESUMID'!C60) -> 0.08411311767 | D62: =IF(D58="real",'07. (a)TRIBUTOS LREAL'!D129,'07. (b)TRIBUTOS LPRESUMID'!D60) -> 0.08411311767 | E62: =IF(E58="real",'07. (a)TRIBUTOS LREAL'!E129,'07. (b)TRIBUTOS LPRESUMID'!E60) -> 0.08411311767 | F62: =IF(F58="real",'07. (a)TRIBUTOS LREAL'!F129,'07. (b)TRIBUTOS LPRESUMID'!F60) -> 0.08411311767 | G62: =IF(G58="real",'07. (a)TRIBUTOS LREAL'!G129,'07. (b)TRIBUTOS LPRESUMID'!G60) -> 0.08411311767 | H62: =IF(H58="real",'07. (a)TRIBUTOS LREAL'!H129,'07. (b)TRIBUTOS LPRESUMID'!H60) -> 0.08411311767 | I62: =IF(I58="real",'07. (a)TRIBUTOS LREAL'!I129,'07. (b)TRIBUTOS LPRESUMID'!I60) -> 0.08411311767 | J62: =IF(J58="real",'07. (a)TRIBUTOS LREAL'!J129,'07. (b)TRIBUTOS LPRESUMID'!J60) -> 0.08411311767 | K62: =IF(K58="real",'07. (a)TRIBUTOS LREAL'!K129,'07. (b)TRIBUTOS LPRESUMID'!K60) -> 0.08411311767 | L62: =IF(L58="real",'07. (a)TRIBUTOS LREAL'!L129,'07. (b)TRIBUTOS LPRESUMID'!L60) -> 0.08411311767
B64: WACC Acumulado | C64: =C62 -> 0.08411311767 | D64: =(1+D62)*(1+C64)-1 -> 0.1753012519 | E64: =(1+E62)*(1+D64)-1 -> 0.2741595044 | F64: 0.3813330327 | G64: 0.4975212606 | H64: 0.6234824427 | I64: 0.7600386124 | J64: 0.9080809473 | K64: 1.068575585 | L64: 1.242569926

Sheet 08. RECEITA E DEMANDA
B6: Receita (R$ Milhões)
B8: PRAZO | C8: =IF(C10<=('01. PC'!$C$18),1,0) -> 1 | D8: =IF(D10<=('01. PC'!$C$18),1,0) -> 1 | E8: =IF(E10<=('01. PC'!$C$18),1,0) -> 1 | F8: =IF(F10<=('01. PC'!$C$18),1,0) -> 1 | G8: =IF(G10<=('01. PC'!$C$18),1,0) -> 1 | H8: =IF(H10<=('01. PC'!$C$18),1,0) -> 1 | I8: =IF(I10<=('01. PC'!$C$18),1,0) -> 1 | J8: =IF(J10<=('01. PC'!$C$18),1,0) -> 1 | K8: =IF(K10<=('01. PC'!$C$18),1,0) -> 1 | L8: =IF(L10<=('01. PC'!$C$18),1,0) -> 1
B10: Receita | C10: 1 | D10: =C10+1 -> 2 | E10: =D10+1 -> 3 | F10: =E10+1 -> 4 | G10: =F10+1 -> 5 | H10: =G10+1 -> 6 | I10: =H10+1 -> 7 | J10: =I10+1 -> 8 | K10: =J10+1 -> 9 | L10: =K10+1 -> 10 | N10: TOTAL | P10: RISCO
B12: Total Receita - R$ Milhões | C12: =C14 -> 0.7054432962 | D12: =D14 -> 0.7054432962 | E12: 0.7054432962 | F12: 0.7054432962 | G12: 0.7054432962 | H12: 0.7054432962 | I12: 0.7054432962 | J12: 0.7054432962 | K12: 0.7054432962 | L12: 0.7054432962 | N12: =SUM(C12:L12) -> 7.054432962
B14: Receita Tarifária | C14: =(C16*C17)/10^6*C$8 -> 0.7054432962 | D14: =(D16*D17)/10^6*D$8 -> 0.7054432962 | E14: 0.7054432962 | F14: 0.7054432962 | G14: 0.7054432962 | H14: 0.7054432962 | I14: 0.7054432962 | J14: 0.7054432962 | K14: 0.7054432962 | L14: 0.7054432962 | N14: =SUM(C14:L14) -> 7.054432962
B16: Passageiros Equivalente | C16: ='01. PC'!$C$22*(1+$P$16) -> 200000 | D16: =C16 -> 200000 | E16: =D16 -> 200000 | F16: 200000 | G16: 200000 | H16: 200000 | I16: 200000 | J16: 200000 | K16: 200000 | L16: 200000 | P16: ='09. SENSIBILIDADE'!$C$12 -> 0
B17: Tarifa | C17: ='01. PC'!$C$20*(1+$P$17) -> 3.527216481 | D17: =C17 -> 3.527216481 | E17: =D17 -> 3.527216481 | F17: 3.527216481 | G17: 3.527216481 | H17: 3.527216481 | I17: 3.527216481 | J17: 3.527216481 | K17: 3.527216481 | L17: 3.527216481 | P17: ='09. SENSIBILIDADE'!$C$14 -> 0

Sheet 09. SENSIBILIDADE
B8: Opex | C8: 0
B10: Capex | C10: 0
B12: Demanda | C12: 0
B14: Tarifa | C14: 0
D17: Sensibilidade a TIR do Projeto | O17: Sensibilidade a TIR do Projeto
D18: Capex (Milhões) | N18: Demanda
C19: ='01. PC'!$C$12 -> 0.08410173317 | D19: -0.15 | E19: -0.1 | F19: -0.05 | G19: 0 | H19: 0.05 | I19: 0.1 | J19: 0.15 | M19: ='01. PC'!$C$12 -> 0.08410173317 | N19: -0.15 | O19: -0.1 | P19: -0.05 | Q19: 0 | R19: 0.05 | S19: 0.1 | T19: 0.15
B20: Opex (Milhões) | C20: -0.15 | D20: 0.4471814236 | E20: 0.4114516844 | F20: 0.3802307376 | G20: 0.3526544967 | H20: 0.3280704551 | I20: 0.3059763009 | J20: 0.2859787616 | L20: Tarifa | M20: -0.15 | R20: -0.2212102631 | S20: -0.07497593188 | T20: 0.03217187308
C21: -0.1 | D21: 0.34020452 | E21: 0.3124104089 | F21: 0.2878262838 | G21: 0.265877602 | H21: 0.2461226821 | I21: 0.2282160367 | J21: 0.211871512 | M21: -0.1 | Q21: -0.188661171 | R21: -0.04809239958 | S21: 0.05962172759 | T21: 0.1508684614
C22: -0.05 | D22: 0.2377423272 | E22: 0.2163381282 | F22: 0.1965153856 | G22: 0.1775767429 | H22: 0.1603438992 | I22: 0.144410052 | J22: 0.1299115366 | M22: -0.05 | P22: -0.1788160201 | Q22: -0.03514746829 | R22: 0.07487502195 | S22: 0.1707833469 | T22: 0.2589847022
C23: 0 | D23: 0.1281145396 | E23: 0.1103039744 | F23: 0.09433492529 | G23: 0.07997432758 | H23: 0.06697068208 | I23: 0.05511787665 | J23: 0.04388996076 | M23: 0 | O23: -0.188661171 | P23: -0.03514746829 | Q23: 0.07997432758 | R23: 0.18067943 | S23: 0.2725029791 | T23: 0.3644417267
C24: 0.05 | D24: 0.004962880435 | E24: -0.008677293826 | F24: -0.02108462053 | G24: -0.03244287174 | H24: -0.04289926291 | I24: -0.05257331551 | J24: -0.06156322946 | M24: 0.05 | N24: -0.2212102631 | O24: -0.04809239958 | P24: 0.07487502195 | Q24: 0.18067943 | R24: 0.2770198225 | S24: 0.3738786752 | T24: 0.4768520025
C25: 0.1 | D25: -0.158704358 | E25: -0.1671917963 | F25: -0.175037178 | G25: -0.1823235557 | H25: -0.1891193393 | I25: -0.1954814885 | J25: -0.20145789 | M25: 0.1 | N25: -0.07497593188 | O25: 0.05962172759 | P25: 0.1707833469 | Q25: 0.2725029791 | R25: 0.3738786752 | S25: 0.4819626025 | T25: 0.6004596233
C26: 0.15 | M26: 0.15 | N26: 0.03217187308 | O26: 0.1508684614 | P26: 0.2589847022 | Q26: 0.3644417267 | R26: 0.4768520025 | S26: 0.6004596233 | T26: 0.8465263556

Sheet 10. ÍNDICES
C7: Ano | D7: 2001 | E7: Indice | F7: IPCA
C8: Projeções Consolidadas
C9: IPCA | D9: IGP-M | E9: IPCA15 | F9: IPA-M | G9: IPC-M | H9: INCC-M | I9: IGP-DI | J9: IPA-DI | K9: IPC-DI | L9: INCC-DI | M9: IPC Fipe
B10: 2001 | C10: 0.07673263015 | D10: 0.1037233156 | E10: 0.0751271385 | F10: 0.118803239 | G10: 0.07737887395 | H10: 0.09042990622 | I10: 0.08972415975 | J10: 0.1188366355 | K10: 0.08047355606 | L10: 0.08845299004 | M10: 0.07125524993
B11: 2002 | C11: 0.1253033708 | D11: 0.253038577 | E11: 0.1198681219 | F11: 0.3364443702 | G11: 0.1186746234 | H11: 0.1245403234 | I11: 0.2641184788 | J11: 0.3541363725 | K11: 0.1215131986 | L11: 0.1286755119 | M11: 0.09919885263
B12: 2003 | C12: 0.09299949329 | D12: 0.08691368015 | E12: 0.09861218248 | F12: 0.07644720549 | G12: 0.09334569445 | H12: 0.1474618317 | I12: 0.0766302882 | J12: 0.06273472341 | K12: 0.08920356656 | L12: 0.1441665148 | M12: 0.08166707842
B13: 2004 | C13: 0.07600644138 | D13: 0.1241998728 | E13: 0.07535458583 | F13: 0.1508283785 | G13: 0.0620625676 | H13: 0.1094275827 | I13: 0.121303303 | J13: 0.1468379574 | K13: 0.06278414715 | L13: 0.1104341283 | M13: 0.06565397393
B14: 2005 | C14: 0.05689733346 | D14: 0.01200760304 | E14: 0.05878553024 | F14: -0.009356394227 | G14: 0.04970564464 | H14: 0.06848829829 | I14: 0.01232126922 | J14: -0.009627299867 | K14: 0.04929061227 | L14: 0.06828444014 | M14: 0.04525429674
B15: 2006 | C15: 0.03141774968 | D15: 0.03847625996 | E15: 0.02957021293 | F15: 0.04386682559 | G15: 0.01882063383 | H15: 0.05045160461 | I15: 0.03797262724 | J15: 0.04315680159 | K15: 0.02064427618 | L15: 0.05035851759 | M15: 0.02542088124
B16: 2007 | C16: 0.04457330433 | D16: 0.07746273733 | E16: 0.04363711615 | F16: 0.09199722376 | G16: 0.04633253841 | H16: 0.06032378813 | I16: 0.07898405024 | J16: 0.09431272195 | K16: 0.0461305069 | L16: 0.06269150952 | M16: 0.04372264038
B17: 2008 | C17: 0.05902313418 | D17: 0.0980543128 | E17: 0.06101867606 | F17: 0.1084112636 | G17: 0.06066992251 | H17: 0.119673677 | I17: 0.09107305045 | J17: 0.09796319193 | K17: 0.06066361063 | L17: 0.1186015986 | M17: 0.06172905476
B18: 2009 | C18: 0.0431202833 | D18: -0.01712275357 | E18: 0.04186806677 | F18: -0.04412798834 | G18: 0.03968090489 | H18: 0.03206179204 | I18: -0.01436402006 | J18: -0.04085817757 | K18: 0.03926118401 | L18: 0.03247425758 | M18: 0.03648961447
B19: 2010 | C19: 0.05909068347 | D19: 0.1132201732 | E19: 0.05792513717 | F19: 0.1391244818 | G19: 0.06091983324 | H19: 0.07568334134 | I19: 0.1130579322 | J19: 0.1383355609 | K19: 0.06228122631 | L19: 0.07771734883 | M19: 0.0641294058
B20: 2011 | C20: 0.06503109041 | D20: 0.05097744614 | E20: 0.06555626233 | F20: 0.04359398057 | G20: 0.06159373746 | H20: 0.07584156842 | I20: 0.05012535922 | J20: 0.04115426436 | K20: 0.06359494366 | L20: 0.07481765155 | M20: 0.05804399189
B21: 2012 | C21: 0.05838568998 | D21: 0.07811928044 | E21: 0.05776087714 | F21: 0.08652072075 | G21: 0.05785199584 | H21: 0.0726218647 | I21: 0.08112065781 | J21: 0.09137184186 | K21: 0.05733242673 | L21: 0.07119740184 | M21: 0.05111606935
B22: 2013 | C22: 0.0591081808 | D22: 0.05525658421 | E22: 0.05848114629 | F22: 0.05123300789 | G22: 0.05509712114 | H22: 0.08069430928 | I22: 0.05527757994 | J22: 0.05064289481 | K22: 0.05635435965 | L22: 0.08087493555 | M22: 0.03890943859
B23: 2014 | C23: 0.06407616596 | D23: 0.03674882508 | E23: 0.06461048404 | F23: 0.02134657329 | G23: 0.06767043611 | H23: 0.0674004472 | I23: 0.03779997091 | J23: 0.02166280468 | K23: 0.06862618803 | L23: 0.06944929719 | M23: 0.05206396727
B24: 2015 | C24: 0.10673498 | D24: 0.1054429461 | E24: 0.107065071 | F24: 0.1119185012 | G24: 0.1023358604 | H24: 0.07216996411 | I24: 0.1067860742 | J24: 0.11318841 | K24: 0.1053775677 | L24: 0.07493890454 | M24: 0.1108003778
B25: 2016 | C25: 0.06288055054 | D25: 0.0719070751 | E25: 0.06583325421 | F25: 0.07627000343 | G25: 0.0626334606 | H25: 0.06337445332 | I25: 0.07153318977 | J25: 0.07733399421 | K25: 0.0618808086 | L25: 0.06112220745 | M25: 0.06549008707
B26: 2017 | C26: 0.02947349908 | D26: -0.005325890366 | E26: 0.02937093539 | F26: -0.02544774291 | G26: 0.03131700914 | H26: 0.04025352747 | I26: -0.004230711057 | J26: -0.02517394396 | K26: 0.0322274181 | L26: 0.04246236578 | M26: 0.02280608271
B27: 2018 | C27: 0.03745482122 | D27: 0.07552135634 | E27: 0.03860544807 | F27: 0.09417635255 | G27: 0.04121177735 | H27: 0.03968101206 | I27: 0.0710206239 | J27: 0.08730628365 | K27: 0.04337443551 | L27: 0.03832393341 | M27: 0.02993580541
B28: 2019 | C28: 0.04306039984 | D28: 0.07317908281 | E28: 0.03913212759 | F28: 0.09091735383 | G28: 0.03789212942 | H28: 0.04132997711 | I28: 0.07677588541 | J28: 0.09604711084 | K28: 0.04121298994 | L28: 0.04143242256 | M28: 0.04380824972
B29: 2020 | C29: 0.04517341501 | D29: 0.2313905404 | E29: 0.04227459099 | F29: 0.3164428285 | G29: 0.04821933886 | H29: 0.0868439462 | I29: 0.2307433448 | J29: 0.317304172 | K29: 0.05166328772 | L29: 0.08812907778 | M29: 0.05636113257
B30: 2021 | C30: 0.0718 | D30: 0.198 | E30: 0.06884860044 | F30: 0.2540579373 | G30: 0.07051435548 | H30: 0.1081649232 | I30: 0.1931001272 | J30: 0.2495689536 | K30: 0.07295289067 | L30: 0.1105833398 | M30: 0.06965146042
B31: 2022 | C31: 0.0392 | D31: 0.0499 | E31: 0.0396859767 | F31: 0.04590438743 | G31: 0.03671631122 | H31: 0.07084962443 | I31: 0.04423486096 | J31: 0.03874573327 | K31: 0.03677291782 | L31: 0.07238709509 | M31: 0.03643009604
B32: 2023 | C32: 0.0325 | D32: 0.04 | E32: 0.03179988418 | F32: 0.04006907497 | G32: 0.03185136844 | H32: 0.05327146662 | I32: 0.03918779856 | J32: 0.03863087079 | K32: 0.03314285626 | L32: 0.05390296065 | M32: 0.03067598421
B33: 2024 | C33: 0.031 | D33: 0.04 | E33: 0.02993782658 | F33: 0.04072204255 | G33: 0.03063658674 | H33: 0.04664684812 | I33: 0.03927209007 | J33: 0.03898838139 | K33: 0.03198749612 | L33: 0.04671733293 | M33: 0.02949375263
B34: 2025 | C34: 0.0301 | D34: 0.0362 | E34: 0.02901063868 | F34: 0.03532683575 | G34: 0.02979882327 | H34: 0.04320500271 | I34: 0.03541120666 | J34: 0.03346258726 | K34: 0.03114205134 | L34: 0.04293729674 | M34: 0.02859353709
B35: 2026 | C35: 0.03 | D35: 0.035 | E35: 0.02888731434 | F35: 0.03375003726 | G35: 0.02973726517 | H35: 0.04172859557 | I35: 0.03434145488 | J35: 0.03202778158 | K35: 0.0310958453 | L35: 0.04127401209 | M35: 0.02845663072
B36: 2027 | C36: 0.03 | D36: 0.035 | E36: 0.02888173096 | F36: 0.0338017335 | G36: 0.02974041539 | H36: 0.04122235005 | I36: 0.0343793875 | J36: 0.03211765666 | K36: 0.03109978014 | L36: 0.04067922384 | M36: 0.02845687333
B37: 2028 | C37: 0.03 | D37: 0.035 | E37: 0.02888147818 | F37: 0.03380003861 | G37: 0.02974025417 | H37: 0.04104876344 | I37: 0.03437804244 | J37: 0.03211202696 | K37: 0.03109944506 | L37: 0.0404665284 | M37: 0.0284568729
B38: 2029 | C38: 0.03 | D38: 0.035 | E38: 0.02888146674 | F38: 0.03380009418 | G38: 0.02974026242 | H38: 0.04098924229 | I38: 0.03437809013 | J38: 0.0321123796 | K38: 0.03109947359 | L38: 0.0403904688 | M38: 0.0284568729
B39: 2030 | C39: 0.03 | D39: 0.035 | E39: 0.02888146622 | F39: 0.03380009236 | G39: 0.029740262 | H39: 0.04096883307 | I39: 0.03437808844 | J39: 0.03211235751 | K39: 0.03109947116 | L39: 0.04036327 | M39: 0.0284568729
B40: 2031 | C40: 0.03 | D40: 0.035 | E40: 0.0288814662 | F40: 0.03380009242 | G40: 0.02974026202 | H40: 0.04096183495 | I40: 0.0343780885 | J40: 0.03211235889 | K40: 0.03109947137 | L40: 0.04035354375 | M40: 0.0284568729
B41: 2032 | C41: 0.03 | D41: 0.035 | E41: 0.02888146619 | F41: 0.03380009241 | G41: 0.02974026202 | H41: 0.04095943537 | I41: 0.0343780885 | J41: 0.03211235881 | K41: 0.03109947135 | L41: 0.04035006565 | M41: 0.0284568729
B42: 2033 | C42: 0.03 | D42: 0.035 | E42: 0.02888146619 | F42: 0.03380009241 | G42: 0.02974026202 | H42: 0.04095861257 | I42: 0.0343780885 | J42: 0.03211235881 | K42: 0.03109947136 | L42: 0.04034882189 | M42: 0.0284568729
B43: 2034 | C43: 0.03 | D43: 0.035 | E43: 0.02888146619 | F43: 0.03380009241 | G43: 0.02974026202 | H43: 0.04095833044 | I43: 0.0343780885 | J43: 0.03211235881 | K43: 0.03109947136 | L43: 0.04034837712 | M43: 0.0284568729
B44: 2035 | C44: 0.03 | D44: 0.035 | E44: 0.02888146619 | F44: 0.03380009241 | G44: 0.02974026202 | H44: 0.0409582337 | I44: 0.0343780885 | J44: 0.03211235881 | K44: 0.03109947136 | L44: 0.04034821808 | M44: 0.0284568729
B45: 2036 | C45: 0.03 | D45: 0.035 | E45: 0.02888146619 | F45: 0.03380009241 | G45: 0.02974026202 | H45: 0.04095820053 | I45: 0.0343780885 | J45: 0.03211235881 | K45: 0.03109947136 | L45: 0.0403481612 | M45: 0.0284568729
B46: 2037 | C46: 0.03 | D46: 0.035 | E46: 0.02888146619 | F46: 0.03380009241 | G46: 0.02974026202 | H46: 0.04095818916 | I46: 0.0343780885 | J46: 0.03211235881 | K46: 0.03109947136 | L46: 0.04034814086 | M46: 0.0284568729
B47: 2038 | C47: 0.03 | D47: 0.035 | E47: 0.02888146619 | F47: 0.03380009241 | G47: 0.02974026202 | H47: 0.04095818526 | I47: 0.0343780885 | J47: 0.03211235881 | K47: 0.03109947136 | L47: 0.04034813359 | M47: 0.0284568729
B48: 2039 | C48: 0.03 | D48: 0.035 | E48: 0.02888146619 | F48: 0.03380009241 | G48: 0.02974026202 | H48: 0.04095818392 | I48: 0.0343780885 | J48: 0.03211235881 | K48: 0.03109947136 | L48: 0.04034813099 | M48: 0.0284568729
B49: 2040 | C49: 0.03 | D49: 0.035 | E49: 0.02888146619 | F49: 0.03380009241 | G49: 0.02974026202 | H49: 0.04095818346 | I49: 0.0343780885 | J49: 0.03211235881 | K49: 0.03109947136 | L49: 0.04034813006 | M49: 0.0284568729
B50: 2041 | C50: 0.03 | D50: 0.035 | E50: 0.02888146619 | F50: 0.03380009241 | G50: 0.02974026202 | H50: 0.04095818331 | I50: 0.0343780885 | J50: 0.03211235881 | K50: 0.03109947136 | L50: 0.04034812973 | M50: 0.0284568729
B51: 2042 | C51: 0.03 | D51: 0.035 | E51: 0.02888146619 | F51: 0.03380009241 | G51: 0.02974026202 | H51: 0.04095818325 | I51: 0.0343780885 | J51: 0.03211235881 | K51: 0.03109947136 | L51: 0.04034812961 | M51: 0.0284568729
B52: 2043 | C52: 0.03 | D52: 0.035 | E52: 0.02888146619 | F52: 0.03380009241 | G52: 0.02974026202 | H52: 0.04095818323 | I52: 0.0343780885 | J52: 0.03211235881 | K52: 0.03109947136 | L52: 0.04034812956 | M52: 0.0284568729
B53: 2044 | C53: 0.03 | D53: 0.035 | E53: 0.02888146619 | F53: 0.03380009241 | G53: 0.02974026202 | H53: 0.04095818323 | I53: 0.0343780885 | J53: 0.03211235881 | K53: 0.03109947136 | L53: 0.04034812955 | M53: 0.0284568729
B54: 2045 | C54: 0.03 | D54: 0.035 | E54: 0.02888146619 | F54: 0.03380009241 | G54: 0.02974026202 | H54: 0.04095818322 | I54: 0.0343780885 | J54: 0.03211235881 | K54: 0.03109947136 | L54: 0.04034812954 | M54: 0.0284568729
B55: 2046 | C55: 0.03 | D55: 0.035 | E55: 0.02888146619 | F55: 0.03380009241 | G55: 0.02974026202 | H55: 0.04095818322 | I55: 0.0343780885 | J55: 0.03211235881 | K55: 0.03109947136 | L55: 0.04034812954 | M55: 0.0284568729
B56: 2047 | C56: 0.03 | D56: 0.035 | E56: 0.02888146619 | F56: 0.03380009241 | G56: 0.02974026202 | H56: 0.04095818322 | I56: 0.0343780885 | J56: 0.03211235881 | K56: 0.03109947136 | L56: 0.04034812954 | M56: 0.0284568729
B57: 2048 | C57: 0.03 | D57: 0.035 | E57: 0.02888146619 | F57: 0.03380009241 | G57: 0.02974026202 | H57: 0.04095818322 | I57: 0.0343780885 | J57: 0.03211235881 | K57: 0.03109947136 | L57: 0.04034812954 | M57: 0.0284568729
B58: 2049 | C58: 0.03 | D58: 0.035 | E58: 0.02888146619 | F58: 0.03380009241 | G58: 0.02974026202 | H58: 0.04095818322 | I58: 0.0343780885 | J58: 0.03211235881 | K58: 0.03109947136 | L58: 0.04034812954 | M58: 0.0284568729
B59: 2050 | C59: 0.03 | D59: 0.035 | E59: 0.02888146619 | F59: 0.03380009241 | G59: 0.02974026202 | H59: 0.04095818322 | I59: 0.0343780885 | J59: 0.03211235881 | K59: 0.03109947136 | L59: 0.04034812954 | M59: 0.0284568729
B60: 2051 | C60: 0.03 | D60: 0.035 | E60: 0.02888146619 | F60: 0.03380009241 | G60: 0.02974026202 | H60: 0.04095818322 | I60: 0.0343780885 | J60: 0.03211235881 | K60: 0.03109947136 | L60: 0.04034812954 | M60: 0.0284568729
B61: 2052 | C61: 0.03 | D61: 0.035 | E61: 0.02888146619 | F61: 0.03380009241 | G61: 0.02974026202 | H61: 0.04095818322 | I61: 0.0343780885 | J61: 0.03211235881 | K61: 0.03109947136 | L61: 0.04034812954 | M61: 0.0284568729
B62: 2053 | C62: 0.03 | D62: 0.035 | E62: 0.02888146619 | F62: 0.03380009241 | G62: 0.02974026202 | H62: 0.04095818322 | I62: 0.0343780885 | J62: 0.03211235881 | K62: 0.03109947136 | L62: 0.04034812954 | M62: 0.0284568729
B63: 2054 | C63: 0.03 | D63: 0.035 | E63: 0.02888146619 | F63: 0.03380009241 | G63: 0.02974026202 | H63: 0.04095818322 | I63: 0.0343780885 | J63: 0.03211235881 | K63: 0.03109947136 | L63: 0.04034812954 | M63: 0.0284568729
B64: 2055 | C64: 0.03 | D64: 0.035 | E64: 0.02888146619 | F64: 0.03380009241 | G64: 0.02974026202 | H64: 0.04095818322 | I64: 0.0343780885 | J64: 0.03211235881 | K64: 0.03109947136 | L64: 0.04034812954 | M64: 0.0284568729
B65: 2056 | C65: 0.03 | D65: 0.035 | E65: 0.02888146619 | F65: 0.03380009241 | G65: 0.02974026202 | H65: 0.04095818322 | I65: 0.0343780885 | J65: 0.03211235881 | K65: 0.03109947136 | L65: 0.04034812954 | M65: 0.0284568729
B66: 2057 | C66: 0.03 | D66: 0.035 | E66: 0.02888146619 | F66: 0.03380009241 | G66: 0.02974026202 | H66: 0.04095818322 | I66: 0.0343780885 | J66: 0.03211235881 | K66: 0.03109947136 | L66: 0.04034812954 | M66: 0.0284568729
B67: 2058 | C67: 0.03 | D67: 0.035 | E67: 0.02888146619 | F67: 0.03380009241 | G67: 0.02974026202 | H67: 0.04095818322 | I67: 0.0343780885 | J67: 0.03211235881 | K67: 0.03109947136 | L67: 0.04034812954 | M67: 0.0284568729
B68: 2059 | C68: 0.03 | D68: 0.035 | E68: 0.02888146619 | F68: 0.03380009241 | G68: 0.02974026202 | H68: 0.04095818322 | I68: 0.0343780885 | J68: 0.03211235881 | K68: 0.03109947136 | L68: 0.04034812954 | M68: 0.0284568729
B69: 2060 | C69: 0.03 | D69: 0.035 | E69: 0.02888146619 | F69: 0.03380009241 | G69: 0.02974026202 | H69: 0.04095818322 | I69: 0.0343780885 | J69: 0.03211235881 | K69: 0.03109947136 | L69: 0.04034812954 | M69: 0.0284568729
B70: 2061 | C70: 0.03 | D70: 0.035 | E70: 0.02888146619 | F70: 0.03380009241 | G70: 0.02974026202 | H70: 0.04095818322 | I70: 0.0343780885 | J70: 0.03211235881 | K70: 0.03109947136 | L70: 0.04034812954 | M70: 0.0284568729
B71: 2062 | C71: 0.03 | D71: 0.035 | E71: 0.02888146619 | F71: 0.03380009241 | G71: 0.02974026202 | H71: 0.04095818322 | I71: 0.0343780885 | J71: 0.03211235881 | K71: 0.03109947136 | L71: 0.04034812954 | M71: 0.0284568729
B72: 2063 | C72: 0.03 | D72: 0.035 | E72: 0.02888146619 | F72: 0.03380009241 | G72: 0.02974026202 | H72: 0.04095818322 | I72: 0.0343780885 | J72: 0.03211235881 | K72: 0.03109947136 | L72: 0.04034812954 | M72: 0.0284568729
B73: 2064 | C73: 0.03 | D73: 0.035 | E73: 0.02888146619 | F73: 0.03380009241 | G73: 0.02974026202 | H73: 0.04095818322 | I73: 0.0343780885 | J73: 0.03211235881 | K73: 0.03109947136 | L73: 0.04034812954 | M73: 0.0284568729
B74: 2065 | C74: 0.03 | D74: 0.035 | E74: 0.02888146619 | F74: 0.03380009241 | G74: 0.02974026202 | H74: 0.04095818322 | I74: 0.0343780885 | J74: 0.03211235881 | K74: 0.03109947136 | L74: 0.04034812954 | M74: 0.0284568729
B75: 2066 | C75: 0.03 | D75: 0.035 | E75: 0.02888146619 | F75: 0.03380009241 | G75: 0.02974026202 | H75: 0.04095818322 | I75: 0.0343780885 | J75: 0.03211235881 | K75: 0.03109947136 | L75: 0.04034812954 | M75: 0.0284568729
B76: 2067 | C76: 0.03 | D76: 0.035 | E76: 0.02888146619 | F76: 0.03380009241 | G76: 0.02974026202 | H76: 0.04095818322 | I76: 0.0343780885 | J76: 0.03211235881 | K76: 0.03109947136 | L76: 0.04034812954 | M76: 0.0284568729
B77: 2068 | C77: 0.03 | D77: 0.035 | E77: 0.02888146619 | F77: 0.03380009241 | G77: 0.02974026202 | H77: 0.04095818322 | I77: 0.0343780885 | J77: 0.03211235881 | K77: 0.03109947136 | L77: 0.04034812954 | M77: 0.0284568729
B78: 2069 | C78: 0.03 | D78: 0.035 | E78: 0.02888146619 | F78: 0.03380009241 | G78: 0.02974026202 | H78: 0.04095818322 | I78: 0.0343780885 | J78: 0.03211235881 | K78: 0.03109947136 | L78: 0.04034812954 | M78: 0.0284568729
B79: 2070 | C79: 0.03 | D79: 0.035 | E79: 0.02888146619 | F79: 0.03380009241 | G79: 0.02974026202 | H79: 0.04095818322 | I79: 0.0343780885 | J79: 0.03211235881 | K79: 0.03109947136 | L79: 0.04034812954 | M79: 0.0284568729
B80: 2071 | C80: 0.03 | D80: 0.035 | E80: 0.02888146619 | F80: 0.03380009241 | G80: 0.02974026202 | H80: 0.04095818322 | I80: 0.0343780885 | J80: 0.03211235881 | K80: 0.03109947136 | L80: 0.04034812954 | M80: 0.0284568729
B81: 2072 | C81: 0.03 | D81: 0.035 | E81: 0.02888146619 | F81: 0.03380009241 | G81: 0.02974026202 | H81: 0.04095818322 | I81: 0.0343780885 | J81: 0.03211235881 | K81: 0.03109947136 | L81: 0.04034812954 | M81: 0.0284568729
B82: 2073 | C82: 0.03 | D82: 0.035 | E82: 0.02888146619 | F82: 0.03380009241 | G82: 0.02974026202 | H82: 0.04095818322 | I82: 0.0343780885 | J82: 0.03211235881 | K82: 0.03109947136 | L82: 0.04034812954 | M82: 0.0284568729
B83: 2074 | C83: 0.03 | D83: 0.035 | E83: 0.02888146619 | F83: 0.03380009241 | G83: 0.02974026202 | H83: 0.04095818322 | I83: 0.0343780885 | J83: 0.03211235881 | K83: 0.03109947136 | L83: 0.04034812954 | M83: 0.0284568729
B84: 2075 | C84: 0.03 | D84: 0.035 | E84: 0.02888146619 | F84: 0.03380009241 | G84: 0.02974026202 | H84: 0.04095818322 | I84: 0.0343780885 | J84: 0.03211235881 | K84: 0.03109947136 | L84: 0.04034812954 | M84: 0.0284568729
B85: 2076 | C85: 0.03 | D85: 0.035 | E85: 0.02888146619 | F85: 0.03380009241 | G85: 0.02974026202 | H85: 0.04095818322 | I85: 0.0343780885 | J85: 0.03211235881 | K85: 0.03109947136 | L85: 0.04034812954 | M85: 0.0284568729
B86: 2077 | C86: 0.03 | D86: 0.035 | E86: 0.02888146619 | F86: 0.03380009241 | G86: 0.02974026202 | H86: 0.04095818322 | I86: 0.0343780885 | J86: 0.03211235881 | K86: 0.03109947136 | L86: 0.04034812954 | M86: 0.0284568729
B87: 2078 | C87: 0.03 | D87: 0.035 | E87: 0.02888146619 | F87: 0.03380009241 | G87: 0.02974026202 | H87: 0.04095818322 | I87: 0.0343780885 | J87: 0.03211235881 | K87: 0.03109947136 | L87: 0.04034812954 | M87: 0.0284568729
B88: 2079 | C88: 0.03 | D88: 0.035 | E88: 0.02888146619 | F88: 0.03380009241 | G88: 0.02974026202 | H88: 0.04095818322 | I88: 0.0343780885 | J88: 0.03211235881 | K88: 0.03109947136 | L88: 0.04034812954 | M88: 0.0284568729
B89: 2080 | C89: 0.03 | D89: 0.035 | E89: 0.02888146619 | F89: 0.03380009241 | G89: 0.02974026202 | H89: 0.04095818322 | I89: 0.0343780885 | J89: 0.03211235881 | K89: 0.03109947136 | L89: 0.04034812954 | M89: 0.0284568729
B90: 2081 | C90: 0.03 | D90: 0.035 | E90: 0.02888146619 | F90: 0.03380009241 | G90: 0.02974026202 | H90: 0.04095818322 | I90: 0.0343780885 | J90: 0.03211235881 | K90: 0.03109947136 | L90: 0.04034812954 | M90: 0.0284568729

Sheet 11. WACC
B6: Lucro Real | F6: Lucro Presumido
B7: Variáveis | D7: Premissas | F7: Variáveis | H7: Premissas
B9: Custo de Capital Próprio (Ke) - Real | D9: =B9 -> Custo de Capital Próprio (Ke) - Real | F9: =B9 -> Custo de Capital Próprio (Ke) - Real | H9: =F9 -> Custo de Capital Próprio (Ke) - Real
B10: Taxa Livre de Risco (Rf) | C10: 0.05786818182 | D10: TESOURO NTNB 2035 (07/2022) | F10: =B10 -> Taxa Livre de Risco (Rf) | G10: =C10 -> 0.05786818182 | H10: =D10 -> TESOURO NTNB 2035 (07/2022)
B11: Prêmio de Risco de Mercado (Rm - Rf) | C11: 0.0531514471 | D11: Shiler | F11: =B11 -> Prêmio de Risco de Mercado (Rm - Rf) | G11: 0.0531514471 | H11: =D11 -> Shiler
B12: Beta Alavancado | C12: 1.310056572 | D12: Setor de transportes | F12: Beta Alavancado | G12: 1.310056572 | H12: =D12 -> Setor de transportes
B13: Ke (BRL Real) | C13: =C12*C11+C10 -> 0.1274995844 | D13: Ke (BRL Real) = Rf + B(Rm - Rf) + CRP | F13: Ke (BRL Real) | G13: =G12*G11+G10 -> 0.1274995844 | H13: =D13 -> Ke (BRL Real) = Rf + B(Rm - Rf) + CRP
B15: Custo da Dívida (Kd) - Real | D15: =B15 -> Custo da Dívida (Kd) - Real | F15: =B15 -> Custo da Dívida (Kd) - Real | H15: =F15 -> Custo da Dívida (Kd) - Real
B16: Alíquota do Imposto de Renda e Contribuição Social Efetivos (t) | C16: 0.34 | D16: Alíquota de IRPJ e CSLL sobre o Lucro Líquido vigente no Brasil | F16: =B16 -> Alíquota do Imposto de Renda e Contribuição Social Efetivos (t) | H16: =D16 -> Alíquota de IRPJ e CSLL sobre o Lucro Líquido vigente no Brasil
B17: Inflação Brasil | C17: 0.04444 | D17: Média expectativa focus para próximos 5 anos | F17: =B17 -> Inflação Brasil | G17: 0.04444 | H17: =D17 -> Média expectativa focus para próximos 5 anos
B18: Taxa de Juros Nominal | C18: 0.1330866667 | D18: Demonstrações Financeiras Empresas do setor 1T2022 | F18: Taxa de Juros Nominal | G18: =C18 -> 0.1330866667 | H18: =D18 -> Demonstrações Financeiras Empresas do setor 1T2022
B19: Kd nominal com benefício fiscal | C19: 0.0878372 | D19: Kd - Alíquota de imposto | F19: Kd nominal com benefício fiscal | G19: =G18*(1-G16) -> 0.1330866667 | H19: =D19 -> Kd - Alíquota de imposto
B21: Kd real com benefício fiscal | C21: =(1+C19)/(1+C17) -1 -> 0.04155068745 | D21: =B21 -> Kd real com benefício fiscal | F21: =B21 -> Kd real com benefício fiscal | G21: =(1+G19)/(1+G17) -1 -> 0.08487482925 | H21: =D21 -> Kd real com benefício fiscal
B23: Estrutura de Capital | D23: =B23 -> Estrutura de Capital | F23: Estrutura de Capital | H23: =F23 -> Estrutura de Capital
B24: Dívida Bruta / Capital Total (D) | C24: 0.5047937586 | D24: Média do setor: Transportes 2015-2T2022 | F24: Dívida Bruta / Capital Total (D) | G24: =C24 -> 0.5047937586 | H24: =D24 -> Média do setor: Transportes 2015-2T2022
B25: Equity / Capital Total (E) | C25: 0.4952062414 | D25: Média do setor: Transportes 2015-2T2022 | F25: Equity / Capital Total (E) | G25: 0.4952062414 | H25: =D25 -> Média do setor: Transportes 2015-2T2022
B27: WACC Real | C27: =C24*C21+C25*C13 -> 0.08411311767 | D27: Kd x Wd + Ke x We | F27: =B27 -> WACC Real | G27: =G24*G21+G25*G13 -> 0.105982874 | H27: =D27 -> Kd x Wd + Ke x We
